Workbook

Sheet TD_ListaInd (hidden)
A5: . | F5: Año
A6: EJE | B6: Indicador | C6: Subindicador | D6: Unidad | E6: Fuente web | F6: 2014 | G6: 2015 | H6: 2016 | I6: 2017 | J6: 2018 | K6: 2021 | L6: 2019 | M6: 2020 | N6: (en blanco)
A7: EJE 1: ACTIVIDADES ECONÓMICAS PRODUCTIVAS | B7: Índice del sector manufactura | C7: Índice de Volumen Físico Sector Fabril (Año base 2012=100) | D7: Porcentaje | E7: INEI: Compendio Estadístico Perú | F7: 101.1 | G7: 99.6 | H7: 98.2 | I7: 98.2 | J7: 104.1 | K7: 116.9 | L7: 104.8 | M7: 114.7
A8: EJE 1: ACTIVIDADES ECONÓMICAS PRODUCTIVAS | B8: Ingreso de visitantes extranjeros | C8: Total | D8: Extranjeros | E8: INEI: Compendio Estadístico Perú | F8: 3214934 | G8: 3455709 | H8: 3744461 | I8: 3744461 | J8: 0
A9: EJE 1: ACTIVIDADES ECONÓMICAS PRODUCTIVAS | B9: Ingreso de visitantes extranjeros | C9: Resto de mundo | D9: Extranjeros | E9: INEI: Compendio Estadístico Perú | F9: 1435785 | G9: 1536470 | H9: 1634009 | I9: 1634009 | J9: 0
A10: EJE 1: ACTIVIDADES ECONÓMICAS PRODUCTIVAS | B10: Ingreso de visitantes extranjeros | C10: Sud americanos | D10: Extranjeros | E10: INEI: Compendio Estadístico Perú | F10: 1779149 | G10: 1919232 | H10: 2110452 | I10: 2110452 | J10: 0
A11: EJE 1: ACTIVIDADES ECONÓMICAS PRODUCTIVAS | B11: Gasto promedio por turista (US Dólar) | C11: Total | D11: US Dólar | E11: INEI: Compendio Estadístico Perú | F11: 1362 | G11: 1444 | H11: 1330 | I11: 1330 | J11: 0
A12: EJE 1: ACTIVIDADES ECONÓMICAS PRODUCTIVAS | B12: Gasto promedio por turista (US Dólar) | C12: Diario | D12: US Dólar | E12: INEI: Compendio Estadístico Perú | F12: 114 | G12: 115 | H12: 110 | I12: 110 | J12: 0
A13: EJE 1: ACTIVIDADES ECONÓMICAS PRODUCTIVAS | B13: Definir nuevos circuitos turísticos complementarios. | C13: Circuitos turísticos | D13: Circuitos | E13: Ministerio de Comercio Exterior y Turismo - MINCETUR | F13: 2 | G13: 0 | H13: 0 | I13: 0 | J13: 0
A14: EJE 1: ACTIVIDADES ECONÓMICAS PRODUCTIVAS | B14: Incremento del número de aeropuertos que reciban vuelos internacionales. | C14: Aeropuertos | D14: Aeropuertos | E14: Ministerio de Transportes y Comunicaciones - MTC | F14: 3 | G14: 0 | H14: 0 | I14: 0 | J14: 0
A15: EJE 1: ACTIVIDADES ECONÓMICAS PRODUCTIVAS | B15: Exportaciones FOB No tradicionales (Millones de dólares) | C15: Agropecuarios | D15: Dolares | E15: INEI: Compendio Estadístico Perú | F15: 4231.3 | G15: 4408.6 | H15: 4701.8 | I15: 4701.8 | J15: 4910.1 | K15: 5412.2 | L15: 5379.3 | M15: 5440
A16: EJE 1: ACTIVIDADES ECONÓMICAS PRODUCTIVAS | B16: Exportaciones FOB No tradicionales (Millones de dólares) | C16: Maderas y Papeles y sus Manufacturas | D16: Dolares | E16: INEI: Compendio Estadístico Perú | F16: 416.3 | G16: 353 | H16: 322.1 | I16: 322.1 | J16: 339 | K16: 328.7 | L16: 482.6 | M16: 329
A17: EJE 1: ACTIVIDADES ECONÓMICAS PRODUCTIVAS | B17: Exportaciones FOB No tradicionales (Millones de dólares) | C17: Metal-Mecánicos | D17: Dolares | E17: INEI: Compendio Estadístico Perú | F17: 581.3 | G17: 533.2 | H17: 445 | I17: 445 | J17: 615.8 | K17: 475.9 | L17: 572 | M17: 471
A18: EJE 1: ACTIVIDADES ECONÓMICAS PRODUCTIVAS | B18: Exportaciones FOB No tradicionales (Millones de dólares) | C18: Minerales No Metálicos | D18: Dolares | E18: INEI: Compendio Estadístico Perú | F18: 663.6 | G18: 698.5 | H18: 640.3 | I18: 640.3 | J18: 571.8 | K18: 412.9 | L18: 583.7 | M18: 413
A19: EJE 1: ACTIVIDADES ECONÓMICAS PRODUCTIVAS | B19: Exportaciones FOB No tradicionales (Millones de dólares) | C19: Pesqueros | D19: Dolares | E19: INEI: Compendio Estadístico Perú | F19: 1155.3 | G19: 932.6 | H19: 908.7 | I19: 908.7 | J19: 2994.9 | K19: 947.2 | L19: 3854.6 | M19: 949
A20: EJE 1: ACTIVIDADES ECONÓMICAS PRODUCTIVAS | B20: Exportaciones FOB No tradicionales (Millones de dólares) | C20: Químicos | D20: Dolares | E20: INEI: Compendio Estadístico Perú | F20: 1515 | G20: 1405.9 | H20: 1341.5 | I20: 1341.5 | J20: 1333.2 | K20: 1462.6 | L20: 1441.3 | M20: 1455
A21: EJE 1: ACTIVIDADES ECONÓMICAS PRODUCTIVAS | B21: Exportaciones FOB No tradicionales (Millones de dólares) | C21: Sidero-Metalúrgicos y Joyería | D21: Dolares | E21: INEI: Compendio Estadístico Perú | F21: 1148.5 | G21: 1080.6 | H21: 1084.1 | I21: 1084.1 | J21: 1294.2 | K21: 947.5 | L21: 1252.3 | M21: 949
A22: EJE 1: ACTIVIDADES ECONÓMICAS PRODUCTIVAS | B22: Exportaciones FOB No tradicionales (Millones de dólares) | C22: Textiles | D22: Dolares | E22: INEI: Compendio Estadístico Perú | F22: 1800.2 | G22: 1331.2 | H22: 1196.1 | I22: 1196.1 | J22: 1058.2 | K22: 830.6 | L22: 1080 | M22: 833
A23: EJE 1: ACTIVIDADES ECONÓMICAS PRODUCTIVAS | B23: Exportaciones FOB No tradicionales (Millones de dólares) | C23: Valor Total | D23: Dolares | E23: INEI: Compendio Estadístico Perú | F23: 11676.5 | G23: 10894.6 | H23: 10782.5 | I23: 10782.5 | J23: 13297.2 | K23: 10817.6 | L23: 14645.8 | M23: 10839
A24: EJE 1: ACTIVIDADES ECONÓMICAS PRODUCTIVAS | B24: Número de institiciones acreditadas para realizar la certificación de origen y calidad. | C24: Entidades | D24: Instituciones | E24: Ministerio de Comercio Exterior y Turismo - MINCETUR | F24: 10 | G24: 0 | H24: 0 | I24: 0 | J24: 21 | K24: 22 | L24: 21 | M24: 21
A25: EJE 1: ACTIVIDADES ECONÓMICAS PRODUCTIVAS | B25: Plan Nacional y planes regionales aprobados y con financiamiento. para la promoción y sostenimiento de las unidades económicas urbanas de pequeña escala. | C25: Plan Nacional | D25: Planes | E25: No determinado | F25: 0 | G25: 0 | H25: 0 | I25: 0 | J25: 0
A26: EJE 1: ACTIVIDADES ECONÓMICAS PRODUCTIVAS | B26: Plan Nacional y planes regionales aprobados y con financiamiento. para la promoción y sostenimiento de las unidades económicas urbanas de pequeña escala. | C26: Planes Regionales implementados y con financiamiento | D26: Planes | E26: No determinado | F26: 0 | G26: 0 | H26: 0 | I26: 0 | J26: 0
A27: EJE 1: ACTIVIDADES ECONÓMICAS PRODUCTIVAS | B27: Asistencia técnica permanente para su capitalización y diversificación productiva. | C27: Informes | D27: Informes | E27: Ministerio de la Producción - PRODUCE / Ministerio de Comercio Exterior y Turismo - MINCETUR / Ministerio de Agricultura y Riego - MINAGRI | F27: 0 | G27: 0 | H27: 0 | I27: 0 | J27: 0
A28: EJE 1: ACTIVIDADES ECONÓMICAS PRODUCTIVAS | B28: Acceso a financiamiento | C28: Reportes | D28: Financiamiento | E28: Ministerio de la Producción - PRODUCE / Ministerio de Comercio Exterior y Turismo - MINCETUR / Ministerio de Agricultura y Riego - MINAGRI / COFIDE | F28: 0 | G28: 0 | H28: 0 | I28: 0 | J28: 0
A29: EJE 1: ACTIVIDADES ECONÓMICAS PRODUCTIVAS | B29: Sistema Nacional de Parques Industriales implementado. (DL 199) | C29: Nacional | D29: Parques | E29: Ministerio de la Producción - PRODUCE | F29: 0 | G29: 0 | H29: 0 | I29: 0 | J29: 0
A30: EJE 1: ACTIVIDADES ECONÓMICAS PRODUCTIVAS | B30: Número de convenios suscritos con Gobiernos Regionales para la implementación de Parques Industritales. | C30: Convenios suscritos | D30: Número | E30: Ministerio de la Producción - PRODUCE | F30: 0 | G30: 0 | H30: 0 | I30: 0 | J30: 0
A31: EJE 1: ACTIVIDADES ECONÓMICAS PRODUCTIVAS | B31: Número de Parques Industriales potenciados que promueven innovación tecnológica y el desarrollo productivo. | C31: 3 (Norte)/3 (Centro)/3 (Sur) | D31: Número | E31: Ministerio de la Producción - PRODUCE | F31: 0 | G31: 0 | H31: 0 | I31: 0 | J31: 0
A32: EJE 2: INFRAESTRUCTURA LOGÍSTICA, DE TRANSPORTE Y DE COMUNICACIONES | B32: Miles de personas en vuelos nacionales | C32: Nacional | D32: Número de personas | E32: Ministerio de Transportes y Comuniciaciones - MTC: Transporte Aereo Pasajeros 2017 | F32: 8950.2 | G32: 10005.2 | H32: 10794 | I32: 11708.3 | J32: 12.71 | L32: 13.828 | M32: 4.876
A33: EJE 2: INFRAESTRUCTURA LOGÍSTICA, DE TRANSPORTE Y DE COMUNICACIONES | B33: Miles de personas en vuelos internacionales | C33: Internacional | D33: Número de personas | E33: Ministerio de Transportes y Comuniciaciones - MTC: Transporte Aereo Pasajeros 2017 | F33: 8485.3 | G33: 9026.1 | H33: 9964.2 | I33: 9964.2 | J33: 1880.7 | L33: 12.371 | M33: 2.965
A34: EJE 2: INFRAESTRUCTURA LOGÍSTICA, DE TRANSPORTE Y DE COMUNICACIONES | B34: Toneladas en vuelos nacionales | C34: Nacional | D34: Toneladas | E34: Ministerio de Transportes y Comuniciaciones - MTC: Transporte Aereo Pasajeros 2018 | F34: 32336.5 | G34: 31573.2 | H34: 28477.2 | I34: 30256 | J34: 0 | L34: 30.301 | M34: 18.393
A35: EJE 2: INFRAESTRUCTURA LOGÍSTICA, DE TRANSPORTE Y DE COMUNICACIONES | B35: Toneladas en vuelos internacionales | C35: Internacional | D35: Toneladas | E35: Ministerio de Transportes y Comuniciaciones - MTC: Transporte Aereo Pasajeros 2018 | F35: 305620.6 | G35: 307842.4 | H35: 289166.9 | I35: 289166.9 | J35: 0 | L35: 258.413 | M35: 176.283
A36: EJE 2: INFRAESTRUCTURA LOGÍSTICA, DE TRANSPORTE Y DE COMUNICACIONES | B36: % de hogares con al menos 1 miembro con teléfono celular | C36: Total | D36: Porcentaje | E36: INEI: Boletín Estadísticas de las TIC. Abril-Junio 2018. Cuadros No. 1 y 2 | F36: 84.9 | G36: 87.2 | H36: 88.9 | I36: 88.9 | J36: 90.9 | K36: 94.2 | L36: 92.6 | M36: 93.2
A37: EJE 2: INFRAESTRUCTURA LOGÍSTICA, DE TRANSPORTE Y DE COMUNICACIONES | B37: % de hogares con al menos 1 miembro con teléfono celular | C37: Rural | D37: Porcentaje | E37: INEI: Boletín Estadísticas de las TIC. Abril-Junio 2018. Cuadros No. 1 y 3 | F37: 68.9 | G37: 73.1 | H37: 76.4 | I37: 76.4 | J37: 79 | K37: 84.6 | L37: 81.9 | M37: 82.3
A38: EJE 2: INFRAESTRUCTURA LOGÍSTICA, DE TRANSPORTE Y DE COMUNICACIONES | B38: Municipalidades con conexión por fibra óptica o transporte de alta velocidad (con cobertura internet) | C38: Distritos con cobertura Internet | D38: Distritos | E38: INEI - RENAMU. Cuadro No. 8 - Municipalidades que cuentan con servicio de Internet y computadoras con acceso a este servicio, según Departamento, 2017 | F38: 1478 | G38: 1492 | H38: 1530 | I38: 1530 | J38: 0 | L38: 1721 | M38: 1766
A39: EJE 2: INFRAESTRUCTURA LOGÍSTICA, DE TRANSPORTE Y DE COMUNICACIONES | B39: Km de vía nacional pavimientada respecto del total de Km de vías Nacionales | C39: Nacional | D39: Kilómetros | E39: Ministerio de Transportes y Comuniciaciones: Red Vial del Sistema Nacional de Carreteras (31/07/2018) | F39: 17411.5 | G39: 18420.1 | H39: 19682.4 | I39: 20367.5 | J39: 21007.1 | K39: 22535.1 | L39: 22172.5 | M39: 22384.5
A40: EJE 2: INFRAESTRUCTURA LOGÍSTICA, DE TRANSPORTE Y DE COMUNICACIONES | B40: Km de vía departamental pavimientada respecto del total de Km de vías departamentales | C40: Departamental | D40: Kilómetros | E40: Ministerio de Transportes y Comuniciaciones: Red Vial del Sistema Nacional de Carreteras (31/07/2018) | F40: 2429.8 | G40: 3459 | H40: 3672.9 | I40: 3672.9 | J40: 21007.1 | K40: 4262.4 | L40: 4261.3 | M40: 4261.7
A41: EJE 2: INFRAESTRUCTURA LOGÍSTICA, DE TRANSPORTE Y DE COMUNICACIONES | B41: Km de vía vecinal pavimientada respecto del total de Km de vías vecinales | C41: Vecinal | D41: Kilómetros | E41: Ministerio de Transportes y Comuniciaciones: Red Vial del Sistema Nacional de Carreteras (31/07/2018) | F41: 1924.6 | G41: 1890.1 | H41: 1898.3 | I41: 1898.3 | J41: 3707.5 | K41: 2781.6 | L41: 2335.8 | M41: 0
A42: EJE 3: POLÍTICA FISCAL | B42: Se cuenta con un sistema de medición de la brecha de oferta de servicios públicos en salud,nutrición,agua y saneamiento,electrificación,transportes y comunicaciones,seguridad ciudadana,acceso a la justicia | C42: Portal web | D42: Sistema | E42: Portal del Sistema de medición | F42: 0 | G42: 0 | H42: 0 | I42: 0 | J42: 0
A43: EJE 3: POLÍTICA FISCAL | B43: Se cuenta con plan de corto, mediano y largo plazo para el cierre de brechas de oferta por servicio, con metas fisicas y metas financieras (en gasto corriente e inversión) para el cierre de las mismas. | C43: Plan | D43: Planes | E43: Exposición de motivos del Proyecto de Ley del Presupuesto 2021 | F43: 0 | G43: 0 | H43: 0 | I43: 0 | J43: 0
A44: EJE 3: POLÍTICA FISCAL | B44: Gasto Social referido a las funciones de Trabajo, Saneamiento, Vivienda y Desarrollo urbano, Salud, Cultura y deporte, Educación, Protección social y Pensiones (Millones de soles) Devengado SIAF | C44: Presupuesto | D44: Millones de soles | E44: Ministerio de Economía y Finanzas - MEF / SIAF Consulta Amigable Enero 2019 | F44: 50131.7 | G44: 53982.5 | H44: 55816.7 | I44: 55816.7 | J44: 79002 | K44: 92115298546 | L44: 36455111.1 | M44: 90252642.6
A45: EJE 3: POLÍTICA FISCAL | B45: Gasto Social referido a las funciones de Trabajo, Saneamiento, Vivienda y Desarrollo urbano, Salud, Cultura y deporte, Educación, Protección social y Pensiones (Millones de soles) Devengado SIAF | C45: Cultura y Dep | D45: Millones de soles | E45: Ministerio de Economía y Finanzas - MEF / SIAF Consulta Amigable Enero 2019 | F45: 829.7 | G45: 792 | H45: 1392.2 | I45: 1392.2 | J45: 3956 | K45: 832513765 | L45: 1760885.3 | M45: 865971.4
A46: EJE 3: POLÍTICA FISCAL | B46: Gasto Social referido a las funciones de Trabajo, Saneamiento, Vivienda y Desarrollo urbano, Salud, Cultura y deporte, Educación, Protección social y Pensiones (Millones de soles) Devengado SIAF | C46: Educación | D46: Millones de soles | E46: Ministerio de Economía y Finanzas - MEF / SIAF Consulta Amigable Enero 2019 | F46: 16109.4 | G46: 18387.7 | H46: 19975.5 | I46: 19975.5 | J46: 27306 | K46: 27316183350 | L46: 24921386.8 | M46: 25331355.5
A47: EJE 3: POLÍTICA FISCAL | B47: Gasto Social referido a las funciones de Trabajo, Saneamiento, Vivienda y Desarrollo urbano, Salud, Cultura y deporte, Educación, Protección social y Pensiones (Millones de soles) Devengado SIAF | C47: Pensiones | D47: Millones de soles | E47: Ministerio de Economía y Finanzas - MEF / SIAF Consulta Amigable Enero 2019 | F47: 13269 | G47: 13227.3 | H47: 13413.5 | I47: 13413.5 | J47: 14469 | K47: 17415542397 | L47: 16309.8 | M47: 15874243.8
A48: EJE 3: POLÍTICA FISCAL | B48: Gasto Social referido a las funciones de Trabajo, Saneamiento, Vivienda y Desarrollo urbano, Salud, Cultura y deporte, Educación, Protección social y Pensiones (Millones de soles) Devengado SIAF | C48: Prot. Social | D48: Millones de soles | E48: Ministerio de Economía y Finanzas - MEF / SIAF Consulta Amigable Enero 2019 | F48: 5563.8 | G48: 5119.6 | H48: 5121.2 | I48: 5121.2 | J48: 6041 | K48: 14780619019 | L48: 6480141.9 | M48: 13937503.2
A49: EJE 3: POLÍTICA FISCAL | B49: Gasto Social referido a las funciones de Trabajo, Saneamiento, Vivienda y Desarrollo urbano, Salud, Cultura y deporte, Educación, Protección social y Pensiones (Millones de soles) Devengado SIAF | C49: Salud | D49: Millones de soles | E49: Ministerio de Economía y Finanzas - MEF / SIAF Consulta Amigable Enero 2019 | F49: 11624.5 | G49: 12711.3 | H49: 13419 | I49: 13419 | J49: 18067 | K49: 24458953645 | L49: 16614.2 | M49: 22087231.3
A50: EJE 3: POLÍTICA FISCAL | B50: Gasto Social referido a las funciones de Trabajo, Saneamiento, Vivienda y Desarrollo urbano, Salud, Cultura y deporte, Educación, Protección social y Pensiones (Millones de soles) Devengado SIAF | C50: Saneamiento | D50: Millones de soles | E50: Ministerio de Economía y Finanzas - MEF / SIAF Consulta Amigable Enero 2019 | F50: 964.3 | G50: 782.5 | H50: 538.5 | I50: 538.5 | J50: 5386 | K50: 1137078975 | L50: 871217.3 | M50: 794197.9
A51: EJE 3: POLÍTICA FISCAL | B51: Gasto Social referido a las funciones de Trabajo, Saneamiento, Vivienda y Desarrollo urbano, Salud, Cultura y deporte, Educación, Protección social y Pensiones (Millones de soles) Devengado SIAF | C51: Trabajo | D51: Millones de soles | E51: Ministerio de Economía y Finanzas - MEF / SIAF Consulta Amigable Enero 2019 | F51: 373.2 | G51: 538.6 | H51: 356.2 | I51: 356.2 | J51: 499 | K51: 3529277221 | L51: 515.2 | M51: 8989152.1
A52: EJE 3: POLÍTICA FISCAL | B52: Gasto Social referido a las funciones de Trabajo, Saneamiento, Vivienda y Desarrollo urbano, Salud, Cultura y deporte, Educación, Protección social y Pensiones (Millones de soles) Devengado SIAF | C52: Vivienda y DU | D52: Millones de soles | E52: Ministerio de Economía y Finanzas - MEF / SIAF Consulta Amigable Enero 2019 | F52: 1397.8 | G52: 2423.5 | H52: 1600.6 | I52: 1600.6 | J52: 3278 | K52: 2645130174 | L52: 2388040.6 | M52: 2372987.4
A53: EJE 3: POLÍTICA FISCAL | B53: Monto ejecutado en programas presupuestales vinculados a servicios universales en salud y educación. PPE: PAN, SMN, Prevención y Control de Cáncer TBC -VIH SIDA, PELA Básica Regular(soles, Devengado Anual) | C53: Cáncer | D53: Millones de soles | E53: Ministerio de Economía y Finanzas - MEF / SIAF Consulta Amigable Enero 2019 | F53: 407 | G53: 577 | H53: 568 | I53: 568 | J53: 833.2 | K53: 724435581 | L53: 613.3 | M53: 595818
A54: EJE 3: POLÍTICA FISCAL | B54: Monto ejecutado en programas presupuestales vinculados a servicios universales en salud y educación. PPE: PAN, SMN, Prevención y Control de Cáncer TBC -VIH SIDA, PELA Básica Regular(soles, Devengado Anual) | C54: Inclusión | D54: Millones de soles | E54: Ministerio de Economía y Finanzas - MEF / SIAF Consulta Amigable Enero 2019 | F54: 124 | G54: 123 | H54: 146 | I54: 146 | J54: 172.7 | K54: 211529590 | L54: 183.5 | M54: 198594.9
A55: EJE 3: POLÍTICA FISCAL | B55: Monto ejecutado en programas presupuestales vinculados a servicios universales en salud y educación. PPE: PAN, SMN, Prevención y Control de Cáncer TBC -VIH SIDA, PELA Básica Regular(soles, Devengado Anual) | C55: PAN | D55: Millones de soles | E55: Ministerio de Economía y Finanzas - MEF / SIAF Consulta Amigable Enero 2019 | F55: 1693 | G55: 1949 | H55: 1929 | I55: 1929 | J55: 2496.7 | K55: 2466832343 | L55: 2514 | M55: 2310134.9
A56: EJE 3: POLÍTICA FISCAL | B56: Monto ejecutado en programas presupuestales vinculados a servicios universales en salud y educación. PPE: PAN, SMN, Prevención y Control de Cáncer TBC -VIH SIDA, PELA Básica Regular(soles, Devengado Anual) | C56: PELA B.Regular | D56: Millones de soles | E56: Ministerio de Economía y Finanzas - MEF / SIAF Consulta Amigable Enero 2019 | F56: 9643 | G56: 11585 | H56: 12902 | I56: 12902 | J56: 17478.1 | K56: 17804175755 | L56: 16421.3 | M56: 17084698.9
A57: EJE 3: POLÍTICA FISCAL | B57: Monto ejecutado en programas presupuestales vinculados a servicios universales en salud y educación. PPE: PAN, SMN, Prevención y Control de Cáncer TBC -VIH SIDA, PELA Básica Regular(soles, Devengado Anual) | C57: SMN | D57: Millones de soles | E57: Ministerio de Economía y Finanzas - MEF / SIAF Consulta Amigable Enero 2019 | F57: 1365 | G57: 1749 | H57: 1886 | I57: 1886 | J57: 2152.2 | K57: 1898071277 | L57: 1896.3 | M57: 1773788.7
A58: EJE 3: POLÍTICA FISCAL | B58: Monto ejecutado en programas presupuestales vinculados a servicios universales en salud y educación. PPE: PAN, SMN, Prevención y Control de Cáncer TBC -VIH SIDA, PELA Básica Regular(soles, Devengado Anual) | C58: TBC-VIH Sida | D58: Millones de soles | E58: Ministerio de Economía y Finanzas - MEF / SIAF Consulta Amigable Enero 2019 | F58: 522 | G58: 590 | H58: 595 | I58: 595 | J58: 742.7 | K58: 651447680 | L58: 675.9 | M58: 630420
A59: EJE 3: POLÍTICA FISCAL | B59: Monto ejecutado en programas presupuestales vinculados a servicios universales en salud y educación. PPE: PAN, SMN, Prevención y Control de Cáncer TBC -VIH SIDA, PELA Básica Regular(soles, Devengado Anual) | C59: Electrificación Rural (046) | D59: Millones de soles | E59: Ministerio de Economía y Finanzas - MEF / SIAF Consulta Amigable Enero 2019 | F59: 85 | G59: 147 | H59: 15 | I59: 15 | J59: 509.6
A60: EJE 3: POLÍTICA FISCAL | B60: Monto ejecutado en programas presupuestales vinculados a servicios universales en salud y educación. PPE: PAN, SMN, Prevención y Control de Cáncer TBC -VIH SIDA, PELA Básica Regular(soles, Devengado Anual) | C60: Saneamiento Rural (083) | D60: Millones de soles | E60: Ministerio de Economía y Finanzas - MEF / SIAF Consulta Amigable Enero 2019 | F60: 113 | G60: 361 | H60: 247 | I60: 247 | J60: 2894.7
A61: EJE 3: POLÍTICA FISCAL | B61: Monto ejecutado en programas presupuestales vinculados a servicios universales en salud y educación. PPE: PAN, SMN, Prevención y Control de Cáncer TBC -VIH SIDA, PELA Básica Regular(soles, Devengado Anual) | C61: Saneamiento Urbano (082) | D61: Millones de soles | E61: Ministerio de Economía y Finanzas - MEF / SIAF Consulta Amigable Enero 2019 | F61: 750 | G61: 343 | H61: 194 | I61: 194 | J61: 2072.2
A62: EJE 3: POLÍTICA FISCAL | B62: Monto ejecutado en programas presupuestales vinculados a servicios universales en salud y educación. PPE: PAN, SMN, Prevención y Control de Cáncer TBC -VIH SIDA, PELA Básica Regular(soles, Devengado Anual) | C62: Telecomunic. (124) | D62: Millones de soles | E62: Ministerio de Economía y Finanzas - MEF / SIAF Consulta Amigable Enero 2019 | F62: 78 | G62: 66 | H62: 78 | I62: 78 | J62: 53.5
A63: EJE 3: POLÍTICA FISCAL | B63: Gasto Público Corriente no financiero ni previsional Total y Per capita | C63: G. Corriente sin Prev. ni Deuda | D63: Millones de soles | E63: Ministerio de Economía y Finanzas (MEF)- Seguimiento de la Ejecución Presupuestal (Consulta amigable) | F63: 74620.3 | G63: 81377 | H63: 85467.7 | I63: 96280.4 | J63: 100362 | K63: 127873458083 | L63: 100408 | M63: 125644404.9
A64: EJE 3: POLÍTICA FISCAL | B64: Gasto Público Corriente no financiero ni previsional Total y Per capita | C64: G.Proy. per Cápita | D64: Soles por persona | E64: Ministerio de Economía y Finanzas (MEF)- Seguimiento de la Ejecución Presupuestal (Consulta amigable) | F64: 989.5 | G64: 940.4 | H64: 819.1 | I64: 848 | J64: 965.5 | K64: 1174323095 | L64: 997.4 | M64: 863181.8
A65: EJE 3: POLÍTICA FISCAL | B65: Gasto Público Corriente no financiero ni previsional Total y Per capita | C65: GCsPD per Cápita | D65: Soles por persona | E65: Ministerio de Economía y Finanzas (MEF)- Seguimiento de la Ejecución Presupuestal (Consulta amigable) | F65: 2343.7 | G65: 2509.8 | H65: 2590.5 | I65: 2875.9 | J65: 2997.8 | K65: 3870847831 | L65: 3.1 | M65: 3827.8
A66: EJE 3: POLÍTICA FISCAL | B66: Gasto Público Corriente no financiero ni previsional Total y Per capita | C66: Pago de Deuda | D66: Millones de soles | E66: Ministerio de Economía y Finanzas (MEF)- Seguimiento de la Ejecución Presupuestal (Consulta amigable) | F66: 9365.5 | G66: 10109.4 | H66: 10841.3 | I66: 10841.3 | J66: 12404.9 | K66: 14837369998 | L66: 13251 | M66: 12755390
A67: EJE 3: POLÍTICA FISCAL | B67: Gasto Público Corriente no financiero ni previsional Total y Per capita | C67: Total Gasto Actividades | D67: Millones de soles | E67: Ministerio de Economía y Finanzas (MEF)- Seguimiento de la Ejecución Presupuestal (Consulta amigable) | F67: 97254.7 | G67: 104713.7 | H67: 109722.5 | I67: 109722.5 | J67: 127814 | K67: 160126370478 | L67: 129968 | M67: 154274038.7
A68: EJE 3: POLÍTICA FISCAL | B68: Gasto Público Corriente no financiero ni previsional Total y Per capita | C68: Total Previsional | D68: Millones de soles | E68: Ministerio de Economía y Finanzas (MEF)- Seguimiento de la Ejecución Presupuestal (Consulta amigable) | F68: 13268.9 | G68: 13227.3 | H68: 13413.5 | I68: 13413.5 | J68: 14468.4 | K68: 17415542397 | L68: 16309 | M68: 15874243.8
A69: EJE 3: POLÍTICA FISCAL | B69: Relación entre inversión pública (Millones de Soles) y población rural. | C69: Población Rural | D69: Soles | E69: Ministerio de Economía y Finanzas (MEF)- Seguimiento de la Ejecución Presupuestal (Consulta amigable) | F69: 0 | G69: 7257989 | H69: 7174763 | I69: 7174763 | J69: 0 | L69: 8600 | M69: 8656
A70: EJE 3: POLÍTICA FISCAL | B70: Relación entre inversión pública (Millones de Soles) y población rural. | C70: Población Total | D70: Soles | E70: Ministerio de Economía y Finanzas (MEF)- Seguimiento de la Ejecución Presupuestal (Consulta amigable) | F70: 30814175 | G70: 31151643 | H70: 31488625 | I70: 31488625 | J70: 0 | L70: 32495 | M70: 32824
A71: EJE 3: POLÍTICA FISCAL | B71: Relación entre inversión pública (Millones de Soles) y población rural. | C71: Proyectos de Inversión | D71: Soles | E71: Ministerio de Economía y Finanzas (MEF)- Seguimiento de la Ejecución Presupuestal (Consulta amigable) | F71: 31840 | G71: 30628 | H71: 27128 | I71: 27128 | J71: 0
A72: EJE 3: POLÍTICA FISCAL | B72: Elevar la presión tributaria como % del PIB | C72: Nacional | D72: Porcentaje | E72: INEI: Compendio Estadístico Perú | F72: 16.7 | G72: 15 | H72: 13.8 | I72: 13.3 | J72: 14.3 | K72: 16 | L72: 14.4 | M72: 13
A73: EJE 3: POLÍTICA FISCAL | B73: Elevar la recaudación tributaria en materia de IGV. (%PBI) | C73: Impuesto a la Renta Nacional | D73: Porcentaje | E73: INEI: Compendio Estadístico Perú | F73: 8.8 | G73: 8.6 | H73: 8.1 | I73: 7.9 | J73: 0 | K73: 9 | L73: 8.2 | M73: 7.7
A74: EJE 3: POLÍTICA FISCAL | B74: Elevar la recaudación del impuesto a la renta en empresas y personas naturales y selectivo al consumo (%PBI) | C74: Total | D74: Porcentaje | E74: INEI: Compendio Estadístico Perú | F74: 7 | G74: 5.8 | H74: 5.7 | I74: 5.7 | J74: 0 | K74: 6.3 | L74: 5.7 | M74: 5.3
A75: EJE 3: POLÍTICA FISCAL | B75: Elevar la recaudación del impuesto a la renta en empresas y personas naturales y selectivo al consumo (%PBI) | C75: ISC | D75: Porcentaje | E75: INEI: Compendio Estadístico Perú | F75: 0.9 | G75: 0.9 | H75: 0.9 | I75: 0.9 | J75: 1.3 | K75: 10 | L75: 1.1 | M75: 10
A76: EJE 3: POLÍTICA FISCAL | B76: Elevar la recaudación del impuesto a la renta en empresas y personas naturales y selectivo al consumo (%PBI) | C76: Persona jurídica | D76: Porcentaje | E76: INEI: Compendio Estadístico Perú | F76: 4.4 | G76: 3.4 | H76: 3.4 | I76: 3 | J76: 0 | K76: 3.4 | L76: 3.1 | M76: 2.9
A77: EJE 3: POLÍTICA FISCAL | B77: Elevar la recaudación del impuesto a la renta en empresas y personas naturales y selectivo al consumo (%PBI) | C77: Persona Natural | D77: Porcentaje | E77: INEI: Compendio Estadístico Perú | F77: 1.9 | G77: 1.8 | H77: 1.8 | I77: 1.7 | J77: 0 | K77: 1.8 | L77: 1.8 | M77: 1.8
A78: EJE 3: POLÍTICA FISCAL | B78: Elevar la recaudación del impuesto a la renta en empresas y personas naturales y selectivo al consumo (%PBI) | C78: Regularización | D78: Porcentaje | E78: INEI: Compendio Estadístico Perú | F78: 0.7 | G78: 0.6 | H78: 0.6 | I78: 0.7 | J78: 0 | K78: 1 | L78: 0.8 | M78: 0.6
A79: EJE 3: POLÍTICA FISCAL | B79: Elevar las contribuciones sociales (%PBI) | C79: Essalud | D79: Porcentaje | E79: INEI: Compendio Estadístico Perú | F79: 3 | G79: 3 | H79: 2.4 | I79: 2.3 | J79: 0
A80: EJE 3: POLÍTICA FISCAL | B80: Elevar las contribuciones sociales (%PBI) | C80: ONP | D80: Porcentaje | E80: INEI: Compendio Estadístico Perú | F80: 2.1 | G80: 1.2 | H80: 2.1 | I80: 2 | J80: 0
A81: EJE 3: POLÍTICA FISCAL | B81: Elevar los ingresos no tributarios (%PBI) | C81: Total | D81: Porcentaje | E81: INEI: Compendio Estadístico Perú | F81: 0.44 | G81: 0.3 | H81: 0.26 | I81: 0.3 | J81: 0
A82: EJE 4: EMPLEO E INGRESOS | B82: Ingreso promedio mensual por trabajo de mujeres y hombres (Soles) | C82: Hombres | D82: Soles | E82: INEI PERÚ Brechas de Género | F82: 1399.3 | G82: 1475.3 | H82: 1555.6 | I82: 1555.6 | J82: 0 | L82: 1616.1 | M82: 1373.2
A83: EJE 4: EMPLEO E INGRESOS | B83: Ingreso promedio mensual por trabajo de mujeres y hombres (Soles) | C83: Mujeres | D83: Soles | E83: INEI PERÚ Brechas de Género | F83: 984.2 | G83: 1052.7 | H83: 1100.6 | I83: 1100.6 | J83: 0 | L83: 1199.4 | M83: 1103.4
A84: EJE 4: EMPLEO E INGRESOS | B84: Tasa de crecimiento media anual de la PEA Ocupada | C84: Total | D84: Porcentaje | E84: INEI: Indicadores de Mercado Laboral a nivel Nacional | F84: 1.9 | G84: 1.8 | H84: 1.8 | I84: 1.8 | J84: 1.6 | K84: 14.9 | L84: 2.1 | M84: -13
A85: EJE 4: EMPLEO E INGRESOS | B85: Tasa de crecimiento media anual del empleo por tamaño de empresas. | C85: Total | D85: Porcentaje | E85: INEI: Indicadores de Mercado Laboral a nivel Nacional | F85: 1.9 | G85: 1.8 | H85: 1.8 | I85: 1.8 | J85: 1.6 | K85: 7.1 | L85: 2.1 | M85: -5.5
A86: EJE 4: EMPLEO E INGRESOS | B86: Tasa de crecimiento media anual del empleo por tamaño de empresas. | C86: De 1 a 10 | D86: Porcentaje | E86: INEI: Indicadores de Mercado Laboral a nivel Nacional | F86: 0.9 | G86: 1 | H86: 2.2 | I86: 3 | J86: 2 | K86: 5.5 | L86: 2.1 | M86: -2
A87: EJE 4: EMPLEO E INGRESOS | B87: Tasa de crecimiento media anual del empleo por tamaño de empresas. | C87: de 11 a 50 | D87: Porcentaje | E87: INEI: Indicadores de Mercado Laboral a nivel Nacional | F87: 3.3 | G87: 3.2 | H87: 0.5 | I87: 0.5 | J87: 3.1 | K87: 37.8 | L87: -1.4 | M87: -27.3
A88: EJE 4: EMPLEO E INGRESOS | B88: Tasa de crecimiento media anual del empleo por tamaño de empresas. | C88: De 51 y más | D88: Porcentaje | E88: INEI: Indicadores de Mercado Laboral a nivel Nacional | F88: 5.6 | G88: 4.9 | H88: 2 | I88: 2 | J88: 0 | K88: 4.2 | L88: 3.2 | M88: -9.7
A89: EJE 4: EMPLEO E INGRESOS | B89: % Var. Anual del ingreso prom. mensual | C89: Variación porcentual | D89: Porcentaje | E89: INEI Evolución de los Indicadores de empleo e ingresos por departamento 2007-2017 (Cuadro No. 10.1) | F89: 4.6 | G89: 5.2 | H89: 5 | I89: 0.4 | J89: 0
A90: EJE 4: EMPLEO E INGRESOS | B90: Pob. Ocupada afiliada a Sist. Pensiones | C90: Total | D90: Porcentaje | E90: INEI Evolución de los Indicadores de empleo e ingresos por departamento 2007-2017 (Cuadro No. 10.1) | F90: 5512.9 | G90: 0.358 | H90: 5584.2 | I90: 5584.2 | J90: 0 | L90: 6119 | M90: 5402.1
A91: EJE 4: EMPLEO E INGRESOS | B91: % Pob. Adulta mayor que cuenta con pensión | C91: Nacional | D91: Porcentaje | E91: Perú: Situación de la Población Adulta Mayor - Instituto Nacional de Estadística e Informática (INEI) | F91: 36.7 | G91: 35.8 | H91: 35.3 | I91: 36.7 | J91: 38.7 | K91: 35.3 | L91: 0 | M91: 34.6
A92: EJE 4: EMPLEO E INGRESOS | B92: Cobertura de población asegurada por EsSalud por tipo de asegurado. | C92: Total | D92: Poblacion | E92: Estadística Institucional Essalud Diciembre 2017 | F92: 10644593 | G92: 10754665 | H92: 10937079 | I92: 10937079 | J92: 0 | L92: 11811 | M92: 11971163
A93: EJE 4: EMPLEO E INGRESOS | B93: Cobertura de población asegurada por EsSalud por tipo de asegurado. | C93: Derecho habiente | D93: Poblacion | E93: Estadística Institucional Essalud Diciembre 2017 | F93: 4854575 | G93: 4934892 | H93: 4735706 | I93: 4735706 | J93: 0 | L93: 4994.4 | M93: 4880
A94: EJE 4: EMPLEO E INGRESOS | B94: Cobertura de población asegurada por EsSalud por tipo de asegurado. | C94: Titulares | D94: Poblacion | E94: Estadística Institucional Essalud Diciembre 2017 | F94: 5790018 | G94: 5819773 | H94: 6201373 | I94: 6201373 | J94: 0 | L94: 6816.6 | M94: 7091.1
A95: EJE 4: EMPLEO E INGRESOS | B95: Asegurados titulares de EsSalud según tipo de seguro del titular | C95: Contrato de Administración de Servicios (CAS) | D95: Asegurados | E95: Estadística Institucional Essalud Diciembre 2017 | F95: 292443 | G95: 0 | H95: 0 | I95: 0 | J95: 0 | L95: 265
A96: EJE 4: EMPLEO E INGRESOS | B96: Asegurados titulares de EsSalud según tipo de seguro del titular | C96: Otros (Pescadores) | D96: Asegurados | E96: Estadística Institucional Essalud Diciembre 2017 | F96: 12673 | G96: 0 | H96: 0 | I96: 0 | J96: 0 | L96: 2.8
A97: EJE 4: EMPLEO E INGRESOS | B97: Asegurados titulares de EsSalud según tipo de seguro del titular | C97: Pensionista | D97: Asegurados | E97: Estadística Institucional Essalud Diciembre 2017 | F97: 888063 | G97: 0 | H97: 0 | I97: 0 | J97: 0 | L97: 958.2
A98: EJE 4: EMPLEO E INGRESOS | B98: Asegurados titulares de EsSalud según tipo de seguro del titular | C98: Trabajador activo | D98: Asegurados | E98: Estadística Institucional Essalud Diciembre 2017 | F98: 4233052 | G98: 0 | H98: 0 | I98: 0 | J98: 0 | L98: 4643.4
A99: EJE 4: EMPLEO E INGRESOS | B99: Asegurados titulares de EsSalud según tipo de seguro del titular | C99: Trabajadora del Hogar | D99: Asegurados | E99: Estadística Institucional Essalud Diciembre 2017 | F99: 59360 | G99: 0 | H99: 0 | I99: 0 | J99: 0 | L99: 71.4
A100: EJE 4: EMPLEO E INGRESOS | B100: Cobertura de población titular con seguro agrario en EsSalud | C100: Trabajadores Asegurados Agrarios | D100: Poblacion | E100: Estadística Institucional Essalud Diciembre 2017 | F100: 306373 | G100: 0 | H100: 0 | I100: 0 | J100: 0 | L100: 406.8
A101: EJE 4: EMPLEO E INGRESOS | B101: Ajuste anual de la remuneracion minima según fórmula de cálculo aprobada por el Consejo Nacional de Trabajo. | C101: RMV | D101: Soles | E101: Ministerio del Trabajo y Promoción del Empleo - MINTRA | F101: 750 | G101: 750 | H101: 850 | I101: 850 | J101: 930
A102: EJE 4: EMPLEO E INGRESOS | B102: Tasa de Actividad de hombres y mujeres.En América Latina y El Caribe la tasa de actividad total es 61.7%; mujeres 49.1% y hombres 75.2% (Panorama Laboral 2015 OIT) | C102: Hombres | D102: Porcentaje | E102: INEI PERÚ Brechas de Género | F102: 81.4 | G102: 81 | H102: 81.2 | I102: 81.2 | J102: 0 | K102: 80.4 | L102: 81.1 | M102: 75
A103: EJE 4: EMPLEO E INGRESOS | B103: Tasa de Actividad de hombres y mujeres.En América Latina y El Caribe la tasa de actividad total es 61.7%; mujeres 49.1% y hombres 75.2% (Panorama Laboral 2015 OIT) | C103: Mujeres | D103: Porcentaje | E103: INEI PERÚ Brechas de Género | F103: 63.3 | G103: 62.3 | H103: 63.3 | I103: 63.3 | J103: 0 | K103: 64.4 | L103: 64.5 | M103: 54.5
A104: EJE 4: EMPLEO E INGRESOS | B104: Tasa de Actividad de hombres y mujeres.En América Latina y El Caribe la tasa de actividad total es 61.7%; mujeres 49.1% y hombres 75.2% (Panorama Laboral 2015 OIT) | C104: % Total | D104: Porcentaje | E104: INEI PERÚ Brechas de Género | F104: 72.3 | G104: 71.6 | H104: 72.2 | I104: 72.2 | J104: 0 | L104: 72.7 | M104: 64.7
A105: EJE 4: EMPLEO E INGRESOS | B105: Tasa de actividad de hombres y mujeres, por grandes grupos de edad | C105: % H (14-24) | D105: Porcentaje | E105: INEI PERÚ Brechas de Género | F105: 60.1 | G105: 56.7 | H105: 56 | I105: 56 | J105: 0 | L105: 56.1 | M105: 53.5
A106: EJE 4: EMPLEO E INGRESOS | B106: Tasa de actividad de hombres y mujeres, por grandes grupos de edad | C106: % H (25-34) | D106: Porcentaje | E106: INEI PERÚ Brechas de Género | F106: 92 | G106: 92.9 | H106: 93.6 | I106: 93.6 | J106: 0 | L106: 92.2 | M106: 86.1
A107: EJE 4: EMPLEO E INGRESOS | B107: Tasa de actividad de hombres y mujeres, por grandes grupos de edad | C107: % H (35-44) | D107: Porcentaje | E107: INEI PERÚ Brechas de Género | F107: 97.3 | G107: 96.8 | H107: 97.5 | I107: 97.5 | J107: 0 | L107: 96 | M107: 89.4
A108: EJE 4: EMPLEO E INGRESOS | B108: Tasa de actividad de hombres y mujeres, por grandes grupos de edad | C108: % H (45-54) | D108: Porcentaje | E108: INEI PERÚ Brechas de Género | F108: 95.8 | G108: 95.6 | H108: 96.1 | I108: 96.1 | J108: 0 | L108: 96.1 | M108: 88.8
A109: EJE 4: EMPLEO E INGRESOS | B109: Tasa de actividad de hombres y mujeres, por grandes grupos de edad | C109: % H (55-64) | D109: Porcentaje | E109: INEI PERÚ Brechas de Género | F109: 90.3 | G109: 91.8 | H109: 92 | I109: 92 | J109: 0 | L109: 92.9 | M109: 81.7
A110: EJE 4: EMPLEO E INGRESOS | B110: Tasa de actividad de hombres y mujeres, por grandes grupos de edad | C110: % M (14-24) | D110: Porcentaje | E110: INEI PERÚ Brechas de Género | F110: 47.2 | G110: 45 | H110: 45.8 | I110: 45.8 | J110: 0 | L110: 45.3 | M110: 39.8
A111: EJE 4: EMPLEO E INGRESOS | B111: Tasa de actividad de hombres y mujeres, por grandes grupos de edad | C111: % M (25-34) | D111: Porcentaje | E111: INEI PERÚ Brechas de Género | F111: 73.3 | G111: 73.2 | H111: 73.1 | I111: 73.1 | J111: 0 | L111: 73.1 | M111: 63
A112: EJE 4: EMPLEO E INGRESOS | B112: Tasa de actividad de hombres y mujeres, por grandes grupos de edad | C112: % M (35-44) | D112: Porcentaje | E112: INEI PERÚ Brechas de Género | F112: 77.9 | G112: 76.5 | H112: 78.6 | I112: 78.6 | J112: 0 | L112: 79.1 | M112: 66.3
A113: EJE 4: EMPLEO E INGRESOS | B113: Tasa de actividad de hombres y mujeres, por grandes grupos de edad | C113: % M (45-54) | D113: Porcentaje | E113: INEI PERÚ Brechas de Género | F113: 76.7 | G113: 75.8 | H113: 79.5 | I113: 79.5 | J113: 0 | L113: 80.8 | M113: 67
A114: EJE 4: EMPLEO E INGRESOS | B114: Tasa de actividad de hombres y mujeres, por grandes grupos de edad | C114: % M (55-64) | D114: Porcentaje | E114: INEI PERÚ Brechas de Género | F114: 66.4 | G114: 66 | H114: 66 | I114: 66 | J114: 0 | L114: 71.4 | M114: 58.1
A115: EJE 4: EMPLEO E INGRESOS | B115: Tasa de informalidad laboral para los casos de mujeres y hombres | C115: Hombres | D115: Porcentaje | E115: INEI PERÚ Brechas de Género | F115: 70.3 | G115: 71 | H115: 69.5 | I115: 69.5 | J115: 0 | L115: 70.3 | M115: 73.9
A116: EJE 4: EMPLEO E INGRESOS | B116: Tasa de informalidad laboral para los casos de mujeres y hombres | C116: Mujeres | D116: Porcentaje | E116: INEI PERÚ Brechas de Género | F116: 76.1 | G116: 75.9 | H116: 75.1 | I116: 75.1 | J116: 0 | L116: 75.8 | M116: 77.3
A117: EJE 4: EMPLEO E INGRESOS | B117: Tasa de informalidad laboral para los casos de mujeres y hombres | C117: % Total | D117: Porcentaje | E117: INEI PERÚ Brechas de Género | F117: 72.8 | G117: 73.2 | H117: 72 | I117: 72 | J117: 0 | L117: 72.7 | M117: 75.3
A118: EJE 4: EMPLEO E INGRESOS | B118: % de PEA-O con seguro de salud | C118: Porcentaje | D118: Porcentaje | E118: INEI Evolución de los Indicadores de empleo e ingresos por departamento 2007-2017 (Cuadro No. 10.1) | F118: 65.8 | G118: 69.7 | H118: 72.2 | I118: 72.6 | J118: 0 | L118: 77.5 | M118: 78.2
A119: EJE 4: EMPLEO E INGRESOS | B119: PEA O. por empleo formal e informal (Miles de personas) | C119: Empleo Formal | D119: Miles de personas | E119: INEI Evolución de los Indicadores de empleo e ingresos por departamento 2007-2017 (Cuadro No. 10.1) | F119: 4290.9 | G119: 4274.2 | H119: 4539.8 | I119: 4539.8 | J119: 0 | L119: 4670.3 | M119: 3673.5
A120: EJE 4: EMPLEO E INGRESOS | B120: PEA O. por empleo formal e informal (Miles de personas) | C120: Empleo Informal | D120: Miles de personas | E120: INEI Evolución de los Indicadores de empleo e ingresos por departamento 2007-2017 (Cuadro No. 10.1) | F120: 11505.9 | G120: 11645 | H120: 11657.3 | I120: 11657.3 | J120: 0 | L120: 12462.8 | M120: 11228.3
A121: EJE 4: EMPLEO E INGRESOS | B121: Miles de personas en Unid. Productivas por sector formal e informal | C121: Formal | D121: Número de personas | E121: INEI: Producción y Empleo Informal en el Perú 2016 (Cuadro 4.1a) | F121: 937 | G121: 903 | H121: 1139 | I121: 1139 | J121: 0 | L121: 1004 | M121: 697
A122: EJE 4: EMPLEO E INGRESOS | B122: Miles de personas en Unid. Productivas por sector formal e informal | C122: Informal | D122: Número de personas | E122: INEI: Producción y Empleo Informal en el Perú 2016 (Cuadro 4.1a) | F122: 6763 | G122: 6666 | H122: 6878 | I122: 6878 | J122: 0 | L122: 7626 | M122: 6439
A123: EJE 4: EMPLEO E INGRESOS | B123: % de Trab. Fam no remunerados que cuentan con Seguro Social | C123: Trabajador familiar | D123: Porcentaje | E123: Estadística Institucional Essalud, Instituto Nacional de Estadística e Informática INEI | F123: 0 | G123: 0 | H123: 0 | I123: 0 | J123: 0
A124: EJE 5: REDUCCIÓN DE LA POBREZA | B124: Proporción de población en hogares con gasto total menor a la linea de pobreza extrema | C124: Total | D124: Porcentaje | E124: INEI. Evolución de la Pobreza Monetaria 2007 - 2018 (Cuadro No. 3.3) | F124: 4.3 | G124: 4.1 | H124: 3.8 | I124: 3.8 | J124: 2.8 | K124: 4.1 | L124: 2.9 | M124: 5.1
A125: EJE 5: REDUCCIÓN DE LA POBREZA | B125: Proporción de población en hogares rurales con gasto total menor a la linea de pobreza extrema. | C125: Costa Rural | D125: Porcentaje | E125: INEI. Evolución de la Pobreza Monetaria 2007 - 2018 (Cuadro No. 3.3) | F125: 9 | G125: 4.8 | H125: 6 | I125: 6 | J125: 2.6 | L125: 2.1 | M125: 4.5
A126: EJE 5: REDUCCIÓN DE LA POBREZA | B126: Proporción de población en hogares rurales con gasto total menor a la linea de pobreza extrema. | C126: Selva Rural | D126: Porcentaje | E126: INEI. Evolución de la Pobreza Monetaria 2007 - 2018 (Cuadro No. 3.3) | F126: 10.5 | G126: 10.9 | H126: 12 | I126: 12 | J126: 7.6 | L126: 7.1 | M126: 10.1
A127: EJE 5: REDUCCIÓN DE LA POBREZA | B127: Proporción de población en hogares rurales con gasto total menor a la linea de pobreza extrema. | C127: Sierra Rural | D127: Porcentaje | E127: INEI. Evolución de la Pobreza Monetaria 2007 - 2018 (Cuadro No. 3.3) | F127: 17 | G127: 16.5 | H127: 14.9 | I127: 14.9 | J127: 11.9 | L127: 12 | M127: 16.4
A128: EJE 5: REDUCCIÓN DE LA POBREZA | B128: Proporción de población en hogares con gasto total menor a la línea de pobreza (total, urbana y rural) | C128: Total | D128: Porcentaje | E128: INEI. Evolución de la Pobreza Monetaria 2007 - 2018 (Cuadro No. 3.1) | F128: 22.7 | G128: 21.8 | H128: 20.7 | I128: 20.7 | J128: 20.5 | K128: 25.9 | L128: 20.2 | M128: 30.1
A129: EJE 5: REDUCCIÓN DE LA POBREZA | B129: Proporción de población en hogares con gasto total menor a la línea de pobreza (total, urbana y rural) | C129: Rural | D129: Porcentaje | E129: INEI. Evolución de la Pobreza Monetaria 2007 - 2018 (Cuadro No. 3.1) | F129: 46 | G129: 45.2 | H129: 43.8 | I129: 43.8 | J129: 42.1 | K129: 39.7 | L129: 40.8 | M129: 45.7
A130: EJE 5: REDUCCIÓN DE LA POBREZA | B130: Proporción de población en hogares con gasto total menor a la línea de pobreza (total, urbana y rural) | C130: Urbana | D130: Porcentaje | E130: INEI. Evolución de la Pobreza Monetaria 2007 - 2018 (Cuadro No. 3.1) | F130: 15.3 | G130: 14.5 | H130: 13.9 | I130: 13.9 | J130: 14.4 | K130: 22.3 | L130: 14.6 | M130: 26
A131: EJE 5: REDUCCIÓN DE LA POBREZA | B131: Población menor de 20 años en situación de pobreza monetaria | C131: De 0 a 14 años | D131: Porcentaje | E131: INEI. Evolución de la Pobreza Monetaria 2007 - 2018 (Cuadro No. 4.1) | F131: 32.8 | G131: 30.6 | H131: 29.6 | I131: 29.6 | J131: 29.3 | K131: 35.1 | L131: 28 | M131: 40
A132: EJE 5: REDUCCIÓN DE LA POBREZA | B132: Población menor de 20 años en situación de pobreza monetaria | C132: De 0 A 4 Años | D132: Porcentaje | E132: INEI. Evolución de la Pobreza Monetaria 2007 - 2018 (Cuadro No. 4.1) | F132: 33.6 | G132: 32.3 | H132: 29.2 | I132: 29.2 | J132: 30.6 | K132: 37.2 | L132: 31 | M132: 43.2
A133: EJE 5: REDUCCIÓN DE LA POBREZA | B133: Población menor de 20 años en situación de pobreza monetaria | C133: De 15 A 19 Años | D133: Porcentaje | E133: INEI. Evolución de la Pobreza Monetaria 2007 - 2018 (Cuadro No. 4.1) | F133: 23.4 | G133: 23.5 | H133: 22.4 | I133: 22.4 | J133: 22 | K133: 28.6 | L133: 22.3 | M133: 34.7
A134: EJE 5: REDUCCIÓN DE LA POBREZA | B134: Población menor de 20 años en situación de pobreza monetaria | C134: De 5 a 9 años | D134: Porcentaje | E134: INEI. Evolución de la Pobreza Monetaria 2007 - 2018 (Cuadro No. 4.1) | F134: 34.2 | G134: 32 | H134: 30.8 | I134: 30.8 | J134: 29.2 | K134: 37.8 | L134: 28.5 | M134: 41.9
A135: EJE 5: REDUCCIÓN DE LA POBREZA | B135: Población de 65 y más en situación de pobreza monetaria | C135: De 65 a 69 años | D135: Porcentaje | E135: INEI. Evolución de la Pobreza Monetaria 2007 - 2018 (Cuadro No. 4.1) | F135: 18.8 | G135: 16.5 | H135: 17 | I135: 17 | J135: 15.5 | K135: 17.8 | L135: 14.3 | M135: 18.9
A136: EJE 5: REDUCCIÓN DE LA POBREZA | B136: Población de 65 y más en situación de pobreza monetaria | C136: De 70 a más | D136: Porcentaje | E136: INEI. Evolución de la Pobreza Monetaria 2007 - 2018 (Cuadro No. 4.1) | F136: 20.4 | G136: 18.6 | H136: 18.2 | I136: 18.2 | J136: 16.9 | K136: 19 | L136: 16.2 | M136: 17.4
A137: EJE 5: REDUCCIÓN DE LA POBREZA | B137: Brecha de pobreza Total | C137: Total | D137: Porcentaje | E137: INEI. Evolución de la Pobreza Monetaria 2007 - 2018 (Cuadro No. 3.5) | F137: 5.8 | G137: 5.4 | H137: 5 | I137: 5 | J137: 4.6 | K137: 6.4 | L137: 4.5 | M137: 7.8
A138: EJE 5: REDUCCIÓN DE LA POBREZA | B138: Brecha de pobreza Urbana | C138: Urbana | D138: Porcentaje | E138: INEI. Evolución de la Pobreza Monetaria 2007 - 2018 (Cuadro No. 3.5) | F138: 3.3 | G138: 3.1 | H138: 2.8 | I138: 2.8 | J138: 2.8 | K138: 5.2 | L138: 2.9 | M138: 6.4
A139: EJE 5: REDUCCIÓN DE LA POBREZA | B139: Brecha de pobreza Rural | C139: Rural | D139: Porcentaje | E139: INEI. Evolución de la Pobreza Monetaria 2007 - 2018 (Cuadro No. 3.5) | F139: 13.7 | G139: 13.1 | H139: 12.3 | I139: 12.3 | J139: 10.8 | K139: 11.4 | L139: 10.4 | M139: 13.3
A140: EJE 5: REDUCCIÓN DE LA POBREZA | B140: Proporción de población viviendo en hogares con al menos una NBI | C140: Total | D140: Porcentaje | E140: INEI. Perfil de la Pobreza por dominios geográficos 2007-2017 (Cuadro No. 4.1) | F140: 19.7 | G140: 19.4 | H140: 18.7 | I140: 18.7 | J140: 17.5 | L140: 16 | M140: 16.6
A141: EJE 5: REDUCCIÓN DE LA POBREZA | B141: Proporción de población viviendo en hogares con al menos una NBI | C141: Rural | D141: Porcentaje | E141: INEI. Perfil de la Pobreza por dominios geográficos 2007-2017 (Cuadro No. 4.1) | F141: 37.9 | G141: 37.7 | H141: 37 | I141: 37 | J141: 0 | L141: 31.1 | M141: 30.1
A142: EJE 5: REDUCCIÓN DE LA POBREZA | B142: Proporción de población viviendo en hogares con al menos una NBI | C142: Urbana | D142: Porcentaje | E142: INEI. Perfil de la Pobreza por dominios geográficos 2007-2017 (Cuadro No. 4.1) | F142: 13.9 | G142: 13.7 | H142: 13.2 | I142: 13.2 | J142: 0 | L142: 11.9 | M142: 13
A143: EJE 6: CRECIMIENTO ECONÓMICO | B143: Tasa de crecimiento media anual del PIB | C143: Nacional | D143: Porcentaje | E143: Banco Central de Reserva del Perú (BCRP) - PBI 2018 (Variaciones porcentuales reales) | F143: 2.4 | G143: 3.3 | H143: 4 | I143: 2.5 | J143: 4 | K143: 13.3 | L143: 2.2 | M143: -11
A144: EJE 6: CRECIMIENTO ECONÓMICO | B144: Tasa de inversión respecto al PIB | C144: Nacional | D144: Porcentaje | E144: Banco Central de Reserva del Perú (BCRP) - PBI 2018 (Valores constantes a 2007) | F144: 27.2 | G144: 25.7 | H144: 24.5 | I144: 24.5 | J144: 21.8 | L144: 22.9 | M144: 21.6
A145: EJE 6: CRECIMIENTO ECONÓMICO | B145: Tasa de inversión privada respecto al PIB | C145: Nacional | D145: Porcentaje | E145: Banco Central de Reserva del Perú (BCRP) - PBI 2018 (Valores constantes a 2007) | F145: 21.7 | G145: 20.8 | H145: 19.5 | I145: 19.6 | J145: 17 | L145: 18.5 | M145: 17.4
A146: EJE 6: CRECIMIENTO ECONÓMICO | B146: Tasa de inversión pública respecto al PIB | C146: Nacional | D146: Porcentaje | E146: Banco Central de Reserva del Perú (BCRP) - PBI 2018 (Valores constantes a 2007) | F146: 5.5 | G146: 5 | H146: 5 | I146: 5 | J146: 4.8 | L146: 4.4 | M146: 4.2
A147: EJE 7: DESARROLLO ECONÓMICO DE LAS AREAS RURALES DEL PAIS | B147: Porcentaje de Agricultores Familiares que acceden crédito agrario para sus actividades. | C147: Agricultores familiares | D147: Porcentaje | E147: INEI -IV CENAGRO, CENSOS AGRARIOS CONTINUOS | F147: 9 | G147: 11.1 | H147: 0 | I147: 0 | J147: 0
A148: EJE 7: DESARROLLO ECONÓMICO DE LAS AREAS RURALES DEL PAIS | B148: Número de plantaciones forestales (hectáreas) | C148: Hectáreas | D148: Número | E148: INEI Perú Anuario de Estadísticas Ambientales 2017 | F148: 7587 | G148: 6095 | H148: 5298 | I148: 5298 | J148: 0 | L148: 2904 | M148: 2853
A149: EJE 7: DESARROLLO ECONÓMICO DE LAS AREAS RURALES DEL PAIS | B149: Superficie reforestada anualmente (hectáreas) | C149: Hectáreas | D149: Número | E149: INEI Perú Anuario de Estadísticas Ambientales 2017 | F149: 8990 | G149: 6095 | H149: 7221 | I149: 7221 | J149: 0 | L149: 16335 | M149: 9806
A150: EJE 7: DESARROLLO ECONÓMICO DE LAS AREAS RURALES DEL PAIS | B150: Superficie reforestada acumulada desde el 2001 (hectáreas) | C150: Hectáreas | D150: Número | E150: INEI Perú Anuario de Estadísticas Ambientales 2017 | F150: 1051069 | G150: 1057164 | H150: 1064386 | I150: 1064386 | J150: 0 | L150: 1090.45 | M150: 1100.25
A151: EJE 7: DESARROLLO ECONÓMICO DE LAS AREAS RURALES DEL PAIS | B151: Superficie deforestada (hectáreas) | C151: Hectáreas | D151: Número | E151: INEI Perú Anuario de Estadísticas Ambientales 2017 | F151: 177566 | G151: 156462 | H151: 164662 | I151: 164662 | J151: 0 | L151: 148.4 | M151: 203.3
A152: EJE 7: DESARROLLO ECONÓMICO DE LAS AREAS RURALES DEL PAIS | B152: Incremento de fondos del Agrobanco para apoyar Agricultores familiares. | C152: Capital social | D152: Millones de soles | E152: Memorias Anuales de AGROBANCO - SUPERINTENDENCIA DE BANCA Y SEGUROS | F152: 420.8 | G152: 429.9 | H152: 445.5 | I152: 745.5 | J152: 0
A153: EJE 7: DESARROLLO ECONÓMICO DE LAS AREAS RURALES DEL PAIS | B153: Incremento del capital del sistema financiero para apoyar actividades agropecuarias. (Millones de soles) | C153: Nacional | D153: Millones de soles | E153: Superintendencia de Banca y Seguros | F153: 7762.6 | G153: 9187.7 | H153: 9471.1 | I153: 9851 | J153: 0 | L153: 11327
A154: EJE 7: DESARROLLO ECONÓMICO DE LAS AREAS RURALES DEL PAIS | B154: Número de Proyectos de Inversión pública (PIPs) para apoyar Agricultura Familiar concluidos satisfactoriamente cada año por Gobierno Nacional | C154: Número Proyectos, beneficiarios y Monto Invertido | D154: Número | E154: Ministerio de Economía y Finanzas, Ministerio de Agricultura y Riego, Ministerio de Desarrollo e Inclusión Social , Minsiterio de la Producción. | F154: 0 | G154: 0 | H154: 0 | I154: 0 | J154: 0
A155: EJE 7: DESARROLLO ECONÓMICO DE LAS AREAS RURALES DEL PAIS | B155: Número de PIPs para apoyar AF concluidos satisfactoriamente cada año por Gobiernos Regionales | C155: Número Proyectos, beneficiarios y Monto Invertido | D155: Número | E155: Ministerio de Economía y Finanzas, Gobiernos Regionales. | F155: 0 | G155: 0 | H155: 0 | I155: 0 | J155: 0
A156: EJE 7: DESARROLLO ECONÓMICO DE LAS AREAS RURALES DEL PAIS | B156: Número de PIPs para apoyar AF concluidos satisfactoriamente cada año por Gobiernos Locales | C156: Número Proyectos, beneficiarios y Monto Invertido | D156: Número | E156: Ministerio de Economía y Finanzas, Gobiernos Locales, INEI Registro Nacional de Municipalidades RENAMU | F156: 0 | G156: 0 | H156: 0 | I156: 0 | J156: 0
A157: EJE 7: DESARROLLO ECONÓMICO DE LAS AREAS RURALES DEL PAIS | B157: Número de Agricultores protegidos y atendidos por seguros contra riesgos impulsados por el estado. | C157: Ha. (Miles) | D157: Ha. (Miles) | E157: Ministerio de Agricultura y Riego, INEI IV CENAGRO y Censos continuos | G157: 330
A158: EJE 7: DESARROLLO ECONÓMICO DE LAS AREAS RURALES DEL PAIS | B158: Número de Agricultores protegidos y atendidos por seguros contra riesgos impulsados por el estado. | C158: Agricultores (Miles) | D158: Agricultores (Miles) | E158: Ministerio de Agricultura y Riego, INEI IV CENAGRO y Censos continuos | G158: 137
A159: EJE 7: DESARROLLO ECONÓMICO DE LAS AREAS RURALES DEL PAIS | B159: Número de agricultores familiares que desarrollan actividades forestales y forestería | C159: Agricultores familiares | D159: Número | E159: INEI Perú Anuario de Estadísticas Ambientales 2017 | F159: 0 | G159: 0 | H159: 0 | I159: 0 | J159: 0
A160: EJE 7: DESARROLLO ECONÓMICO DE LAS AREAS RURALES DEL PAIS | B160: Producción comunal de plantación forestal (plantones) | C160: Plantones | D160: Número | E160: INEI Perú Anuario de Estadísticas Ambientales 2017 | F160: 14695020 | G160: 10821454 | H160: 9482722 | I160: 9482722 | J160: 0 | L160: 5255.54 | M160: 4140.62
A161: EJE 7: DESARROLLO ECONÓMICO DE LAS AREAS RURALES DEL PAIS | B161: Número de Agricultores Familiares que reciben asistencia técnica | C161: Agricultores familiares | D161: Número | E161: INEI Censos Continuos, Ministerio de Agricultura y Riego, Gobiernos Regionales | F161: 0 | G161: 0 | H161: 0 | I161: 0 | J161: 0
A162: EJE 7: DESARROLLO ECONÓMICO DE LAS AREAS RURALES DEL PAIS | B162: Número de municipios implementando “Saberes productivos” incorporando a PAM | C162: Municipios rurales | D162: Número | E162: Ministerio de Desarrollo e Inclusión Social MIDIS: Informe 2015 Pensión 65 | F162: 274 | G162: 0 | H162: 0 | I162: 0 | J162: 0 | K162: 460 | L162: 666 | M162: 678
A163: EJE 7: DESARROLLO ECONÓMICO DE LAS AREAS RURALES DEL PAIS | B163: Porcentaje de productores agropecuarios que siembran tomando en cuenta la vocación agrícola de sus tierras | C163: Productores agropecuarios | D163: Porcentaje | E163: INEI Indicadores de los Programas Presupuestales Estratégicos | F163: 8.1 | G163: 7.93 | H163: 9.6 | I163: 9.6 | J163: 9.8 | L163: 9.9
A164: EJE 7: DESARROLLO ECONÓMICO DE LAS AREAS RURALES DEL PAIS | B164: Porcentaje de productores agropecuarios que han realizado análisis de suelo y recibieron asistencia técnica para implementar actividades en función al resultado obtenido en lo últimos tres años. | C164: Productores agropecuarios | D164: Porcentaje | E164: INEI Indicadores de los Programas Presupuestales Estratégicos | F164: 5.34 | G164: 6.05 | H164: 4.6 | I164: 4.6 | J164: 2 | L164: 0.9
A165: EJE 7: DESARROLLO ECONÓMICO DE LAS AREAS RURALES DEL PAIS | B165: Porcentaje de productores agropecuarios que han recibido aistencia técnica sobre la instalación y manejo de pastos en los últimos tres años y la aplican. | C165: Productores agropecuarios | D165: Porcentaje | E165: INEI Indicadores de los Programas Presupuestales Estratégicos | F165: 0.79 | G165: 0.16 | H165: 0.1 | I165: 0.1 | J165: 0.2
A166: EJE 7: DESARROLLO ECONÓMICO DE LAS AREAS RURALES DEL PAIS | B166: Porcentaje de productores agropecuarios que han sido capacitados sobre instalación y manejo de pastos en los últimos tres años. | C166: Productores agropecuarios | D166: Porcentaje | E166: INEI Indicadores de los Programas Presupuestales Estratégicos | F166: 9.37 | G166: 6.64 | H166: 6 | I166: 6 | J166: 5.3 | L166: 8.3
A167: EJE 7: DESARROLLO ECONÓMICO DE LAS AREAS RURALES DEL PAIS | B167: Porcentaje de productores agropecuarios que usan fertilizantes y/o abonos y realizan prácticas adecuadas en el uso de estos insumos agrícolas. | C167: Productores agropecuarios | D167: Porcentaje | E167: INEI Indicadores de los Programas Presupuestales Estratégicos | F167: 8.26 | G167: 6.12 | H167: 6.4 | I167: 6.4 | J167: 6 | L167: 4.4
A168: EJE 7: DESARROLLO ECONÓMICO DE LAS AREAS RURALES DEL PAIS | B168: Porcentaje de productores agropecuarios que usan plaguicidas y realizan prácticas adecuadas en el uso de este insumo agrícola. | C168: Productores agropecuarios | D168: Porcentaje | E168: INEI Indicadores de los Programas Presupuestales Estratégicos | F168: 11.21 | G168: 10.93 | H168: 9.7 | I168: 9.7 | J168: 8.4 | L168: 6.8
A169: EJE 7: DESARROLLO ECONÓMICO DE LAS AREAS RURALES DEL PAIS | B169: Porcentaje de productores/as agropecuarios/as que cuentan con sistema de riego tecnificado. | C169: Productores agropecuarios | D169: Porcentaje | E169: INEI Indicadores de los Programas Presupuestales Estratégicos | F169: 13.85 | G169: 14.76 | H169: 17 | I169: 17 | J169: 21.5 | L169: 22.7
A170: EJE 7: DESARROLLO ECONÓMICO DE LAS AREAS RURALES DEL PAIS | B170: Superficie agrícola bajo riego tecnificado | C170: Hectáreas | D170: Hectárea | E170: INEI Indicadores de los Programas Presupuestales Estratégicos | F170: 9226400 | G170: 11228800 | H170: 12956800 | I170: 12956800 | J170: 14931000 | L170: 172320
A171: EJE 7: DESARROLLO ECONÓMICO DE LAS AREAS RURALES DEL PAIS | B171: Porcentaje de productores/as agropecuarios/as que cuentan con sistema de riego y realizan prácticas adecuadas de riego según sus cultivos y tierras | C171: Productores agropecuarios | D171: Porcentaje | E171: INEI Indicadores de los Programas Presupuestales Estratégicos | F171: 0 | G171: 5.5 | H171: 9.6 | I171: 9.6 | J171: 5.7 | L171: 3.7
A172: EJE 7: DESARROLLO ECONÓMICO DE LAS AREAS RURALES DEL PAIS | B172: Número de agricultores que participa en sistemas de extensión de agricultor a agricultor (yachachiqs, camayoq, entre otros) | C172: Agricultores | D172: Número | E172: Ministerio de Agricultura y Riego - AGRORURAL, Gobiernos Regionales | F172: 0 | G172: 3000 | H172: 0 | I172: 0 | J172: 0
A173: EJE 7: DESARROLLO ECONÓMICO DE LAS AREAS RURALES DEL PAIS | B173: Número de agricultores beneficiarios del Programa Sierra Exportadora - MINAGRI | C173: Agricultores | D173: Número | E173: Informe de Gestión Anual de Sierra Exportadora 2017 | F173: 76955 | G173: 194054 | H173: 217469 | I173: 217469 | J173: 0
A174: EJE 7: DESARROLLO ECONÓMICO DE LAS AREAS RURALES DEL PAIS | B174: Número de provincias que cuentan con agencias agrarias funcionando y prestando asistencia tecnica a agricultores | C174: Agencias Agrarias | D174: Número | E174: Portales web de los Gobiernos Regionales | F174: 182 | G174: 0 | H174: 0 | I174: 0 | J174: 0
A175: EJE 7: DESARROLLO ECONÓMICO DE LAS AREAS RURALES DEL PAIS | B175: Número de hogares/usuarios en sierra y selva participando del programa Haku Wiñay/ Noa Jayatai | C175: Hogares Rurales | D175: Número | E175: Ministerio de Desarrollo e Inclusión Social INFO MIDIS | F175: 54144 | G175: 83107 | H175: 94354 | I175: 94354 | J175: 132994 | K175: 175081 | L175: 133718 | M175: 140132
A176: EJE 7: DESARROLLO ECONÓMICO DE LAS AREAS RURALES DEL PAIS | B176: Número de Programas y proyectos de investigación implementados en apoyo de la AF por INIA, GOREs, Universidades e Institutos tecnológicos) | C176: Proyectos | D176: Número | E176: INIA, CONCYTEC, Gobiernos Regionales. | F176: 0 | G176: 0 | H176: 0 | I176: 0 | J176: 0
A177: EJE 7: DESARROLLO ECONÓMICO DE LAS AREAS RURALES DEL PAIS | B177: Agricultores familiares que usan semillas y ganado mejorado | C177: Agricultores familiares | D177: Número | E177: INEI CENAGRO, Ministerio de Agricultura y Riego | F177: 0 | G177: 0 | H177: 0 | I177: 0 | J177: 0
A178: EJE 7: DESARROLLO ECONÓMICO DE LAS AREAS RURALES DEL PAIS | B178: Número de AF que participan de agricultura orgánica y ecológica. | C178: Agricultores familiares | D178: Número | E178: INEI CENAGRO, Asociación Nacional de Productores Ecológicos ANPE | F178: 0 | G178: 0 | H178: 0 | I178: 0 | J178: 0
A179: EJE 7: DESARROLLO ECONÓMICO DE LAS AREAS RURALES DEL PAIS | B179: Area agrícola que usa riego tecnificado (has) | C179: Costa | D179: HAS | E179: INEI CENAGRO, Ministerio de Agricultura y Riego | F179: 141629 | G179: 0 | H179: 0 | I179: 0 | J179: 0
A180: EJE 7: DESARROLLO ECONÓMICO DE LAS AREAS RURALES DEL PAIS | B180: Area agrícola que usa riego tecnificado (has) | C180: Selva | D180: HAS | E180: INEI CENAGRO, Ministerio de Agricultura y Riego | F180: 10476 | G180: 0 | H180: 0 | I180: 0 | J180: 0
A181: EJE 7: DESARROLLO ECONÓMICO DE LAS AREAS RURALES DEL PAIS | B181: Area agrícola que usa riego tecnificado (has) | C181: Sierra | D181: HAS | E181: INEI CENAGRO, Ministerio de Agricultura y Riego | F181: 65652 | G181: 0 | H181: 0 | I181: 0 | J181: 0
A182: EJE 7: DESARROLLO ECONÓMICO DE LAS AREAS RURALES DEL PAIS | B182: Area agrícola que usa riego tecnificado (has) | C182: Superficie agrícola bajo riego tecnificado | D182: HAS | E182: INEI CENAGRO, Ministerio de Agricultura y Riego | F182: 217700 | G182: 0 | H182: 0 | I182: 0 | J182: 0
A183: EJE 7: DESARROLLO ECONÓMICO DE LAS AREAS RURALES DEL PAIS | B183: Area agrícola que usa riego tecnificado (has) | C183: Superficie con cultivo bajo riego | D183: HAS | E183: INEI CENAGRO, Ministerio de Agricultura y Riego | F183: 1808302 | G183: 0 | H183: 0 | I183: 0 | J183: 0
A184: EJE 7: DESARROLLO ECONÓMICO DE LAS AREAS RURALES DEL PAIS | B184: Número de agricultores familiares organizados en gremios y asociaciones | C184: Agricultores familiares | D184: Agricultores | E184: INEI CENAGRO, Ministerio de Agricultura y Riego, Gobiernos Regionales. | F184: 517667 | G184: 0 | H184: 0 | I184: 0 | J184: 0
A185: EJE 7: DESARROLLO ECONÓMICO DE LAS AREAS RURALES DEL PAIS | B185: Número de organizaciones gremiales y asociativas reconocidas públicamente | C185: Organzaciones gremiales | D185: Organizaciones | E185: Ministerio de Agricultura y Riego ( MINAGRI) | F185: 0 | G185: 0 | H185: 0 | I185: 0 | J185: 0
A186: EJE 7: DESARROLLO ECONÓMICO DE LAS AREAS RURALES DEL PAIS | B186: Número de programas y proyectos públicos implementados y con recursos para apoyar a las organizaciones de AF | C186: Programas y proyectos | D186: Programas | E186: Ministerio de Economía y Finanzas, Ministerio de Agricultura y Riego | F186: 0 | G186: 0 | H186: 0 | I186: 0 | J186: 0
A187: EJE 7: DESARROLLO ECONÓMICO DE LAS AREAS RURALES DEL PAIS | B187: Número de proyectos y actividades implementados con el apoyo del Estado para apoyar la mejora de las capacidades de agricultores familiares | C187: Programas y proyectos | D187: Programas | E187: Ministerio de Economía y Finanzas, Ministerio de Agricultura y Riego | F187: 0 | G187: 0 | H187: 0 | I187: 0 | J187: 0
A188: EJE 7: DESARROLLO ECONÓMICO DE LAS AREAS RURALES DEL PAIS | B188: Balanza comercial agropecuaria (Millones US$) | C188: Balance | D188: Dolares | E188: Agrodata Perú 2020 | F188: 883 | G188: 1625.6 | H188: 2383.3 | I188: 2383.3 | J188: 2521.6 | K188: 4558 | L188: 3578 | M188: 3911
A189: EJE 7: DESARROLLO ECONÓMICO DE LAS AREAS RURALES DEL PAIS | B189: Balanza comercial agropecuaria (Millones US$) | C189: Exportaciones | D189: Dolares | E189: Agrodata Perú 2018 | F189: 4623 | G189: 5007.4 | H189: 5548 | I189: 5548 | J189: 6461.5 | K189: 7032 | L189: 5521 | M189: 5988
A190: EJE 7: DESARROLLO ECONÓMICO DE LAS AREAS RURALES DEL PAIS | B190: Balanza comercial agropecuaria (Millones US$) | C190: Importaciones | D190: Dolares | E190: Agrodata Perú 2019 | F190: 3740 | G190: 3381.8 | H190: 3164.7 | I190: 3164.7 | J190: 3939.9 | K190: 2474 | L190: 1942 | M190: 2077
A191: EJE 7: DESARROLLO ECONÓMICO DE LAS AREAS RURALES DEL PAIS | B191: TM de compras de productos de Agricultores Familiares en programas alimentarios públicos (Año: 2015) | C191: TM | D191: Compras | E191: FAO-Analisis de compra publica de alimentos en Peru , MIDIS, MINAGRI, MINDEF, MINSA, Municipalidades, Universidades. | F191: 0 | G191: 0 | H191: 0 | I191: 0 | J191: 0
A192: EJE 7: DESARROLLO ECONÓMICO DE LAS AREAS RURALES DEL PAIS | B192: Número de municipalidades que realizan acciones de fomento a la artesanía | C192: Nacional | D192: Municipalidades | E192: Instituto Nacional de Estadística e Informática (INEI) - Registro Nacional de Municipalidades (RENAMU) | F192: 927 | G192: 1164 | H192: 1148 | I192: 1148 | J192: 0 | L192: 925 | M192: 1159
A193: EJE 7: DESARROLLO ECONÓMICO DE LAS AREAS RURALES DEL PAIS | B193: Volúmenes de compra de insumos nacionales producidos por la agricultura familiar. | C193: Volumen de producción | D193: Volúmenes | E193: MINAGRI, PRODUCE, MINCETUR, MINDEF, MINSA, MIDIS, Gobiernos Regionales, Municipalidades. | F193: 0 | G193: 0 | H193: 0 | I193: 0 | J193: 0
A194: EJE 7: DESARROLLO ECONÓMICO DE LAS AREAS RURALES DEL PAIS | B194: Volúmenes y valor de productos de la agricultura familiar exportados. | C194: Volumen de producción | D194: Volúmenes | E194: MINAGRI, MINCETUR, MEF | F194: 0 | G194: 0 | H194: 0 | I194: 0 | J194: 0
A195: EJE 7: DESARROLLO ECONÓMICO DE LAS AREAS RURALES DEL PAIS | B195: Inversión pública para promover la diversificación productiva en el ámbito rural | C195: Ministerio de Economía y Finanzas, Ministerio de la Producción | D195: Soles | E195: Ministerio de Economía y Finanzas, Ministerio de la Producción | F195: 0 | G195: 0 | H195: 0 | I195: 0 | J195: 0
A196: EJE 7: DESARROLLO ECONÓMICO DE LAS AREAS RURALES DEL PAIS | B196: Número de proyectos y actividades implementados para promover la comercialización de productos de la AF. | C196: Proyectos | D196: Proyectos | E196: MINAGRI, MEF, Gobiernos Regionales, Municipalidades. | F196: 0 | G196: 0 | H196: 0 | I196: 0 | J196: 0
A197: EJE 7: DESARROLLO ECONÓMICO DE LAS AREAS RURALES DEL PAIS | B197: Número de planes de negocios para agricultores familiares implementados. | C197: Planes de Negocios | D197: Planes | E197: MINAGRI Sierra Exportadora, Ministerio de Economía y Finanzas. | F197: 0 | G197: 283 | H197: 0 | I197: 0 | J197: 0
A198: EJE 7: DESARROLLO ECONÓMICO DE LAS AREAS RURALES DEL PAIS | B198: Número de planes de negocios para agricultores familiares implementados. | C198: Procompite 2015 | D198: Planes | E198: MINAGRI Sierra Exportadora, Ministerio de Economía y Finanzas. | F198: 0 | G198: 40 | H198: 0 | I198: 0 | J198: 0
A199: EJE 7: DESARROLLO ECONÓMICO DE LAS AREAS RURALES DEL PAIS | B199: Número de proyectos financiados con recursos públicos para apoyar la asociatividad empresarial, estudios de producción de cultivos nativos y naturales de AF | C199: Ministerio de Economía y Finanzas, Ministerio de Agricultura y Riego | D199: Proyectos | E199: Ministerio de Economía y Finanzas, Ministerio de Agricultura y Riego | F199: 0 | G199: 0 | H199: 32215.1 | I199: 32215.1 | J199: 0
A200: EJE 7: DESARROLLO ECONÓMICO DE LAS AREAS RURALES DEL PAIS | B200: Producción agropecuaria nacional (Millones de soles) | C200: Total | D200: Soles | E200: Boletín Estadístico de Producción 2017 - MINAGRI / DGESEP | F200: 30655.6 | G200: 31645.6 | H200: 19264.7 | I200: 19264.7 | J200: 0 | K200: 14682.1 | L200: 14669.7 | M200: 14431.3
A201: EJE 7: DESARROLLO ECONÓMICO DE LAS AREAS RURALES DEL PAIS | B201: Producción agropecuaria nacional (Millones de soles) | C201: Agrícola | D201: Soles | E201: Boletín Estadístico de Producción 2017 - MINAGRI / DGESEP | F201: 18779.9 | G201: 19149.6 | H201: 12939.8 | I201: 12939.8 | J201: 0 | K201: 24557.7 | L201: 22592.8 | M201: 23463.8
A202: EJE 7: DESARROLLO ECONÓMICO DE LAS AREAS RURALES DEL PAIS | B202: Producción agropecuaria nacional (Millones de soles) | C202: Pecuaria | D202: Soles | E202: Boletín Estadístico de Producción 2017 - MINAGRI / DGESEP | F202: 11864.7 | G202: 12486.1 | H202: 0 | I202: 0 | J202: 0 | K202: 14682.1 | L202: 14669.7 | M202: 14431.3
A203: EJE 7: DESARROLLO ECONÓMICO DE LAS AREAS RURALES DEL PAIS | B203: Fondos públicos destinados a la SAN (Millones de soles corrientes) | C203: Gobierno Nacional | D203: Soles | E203: Ministerio de Agricultura y Riego MINAGRI (Mapeo de programas, proyectos y actividades que tienen impacto en la implementación del PNSAN 2015 | F203: 673027 | G203: 0 | H203: 0 | I203: 0 | J203: 0
A204: EJE 7: DESARROLLO ECONÓMICO DE LAS AREAS RURALES DEL PAIS | B204: PPR implementado para canalizar fondos públicos en SAN | C204: PPRs | D204: PPRs | E204: MEF, MINAGRI, Comisión Multisectorial SAN | F204: 0 | G204: 0 | H204: 0 | I204: 0 | J204: 0
... 99 more rows

Sheet Menu

Sheet Rep_Balance
D4: PRIMER DERECHO: AL NOMBRE Y A LA IDENTIDAD
D6: =CONCATENATE("N° de compromisos: ",SUM(ListaIndicadores!H400:H402)) -> N° de compromisos: 16 | F6: =CONCATENATE("N° ListaIndicadores!de compromisos: ",SUM(ListaIndicadores!H405:H407)) -> N° ListaIndicadores!de compromisos: 5
B10: =CONCATENATE("N° de compromisos: ",SUM(ListaIndicadores!H432:H434)) -> N° de compromisos: 47 | D10: =CONCATENATE("N° de compromisos: ",SUM(ListaIndicadores!H410:H413)) -> N° de compromisos: 20 | F10: =CONCATENATE("N° de compromisos: ",SUM(ListaIndicadores!H415:H417)) -> N° de compromisos: 6 | H10: =CONCATENATE("N° de compromisos: ",SUM(ListaIndicadores!H420:H422)) -> N° de compromisos: 3
B14: =CONCATENATE("N° de compromisos: ",SUM(ListaIndicadores!H436:H439)) -> N° de compromisos: 0 | D14: =CONCATENATE("N° de compromisos: ",SUM(ListaIndicadores!J436:J439)) -> N° de compromisos: 0
B16: Nota técnica
B18: Color del semaforo :
B19: Caso 1, con indicadores positivos (ejemplo cobertura de seguro de salud):
B20: Color verde: Cuando la meta proyectada al 2021/ valor de la meta al 2021 >=85%;
B21: Color ambar: Cuando la meta proyectada al 2021/ valor de la meta al 2021 se ecuentra entre >=50 y <85%;
B22: Color rojo: Cuando la meta proyectada al 2021/ valor de la meta al 2021 se ecuentra <50%
B23: Caso 2, con indicadores negativos (ejemplo: tasa de desnutrición crónica):
B24: Color verde: Cuando la meta proyectada al 2021/ valor de la meta al 2021 <=115%;
B25: Color ambar: Cuando la meta proyectada al 2021/ valor de la meta al 2021 se ecuentra entre <115% y =< 150%;
B26: Color rojo: Cuando la meta proyectada al 2021/ valor de la meta al 2021 >150%

Sheet ReporteIndicador
B4: Gráfico | T4: Comando
T6: Primer paso: Seleccionar el Eje
T7: Lineamiento
T8: EJE 1: ACTIVIDADES ECONÓMICAS PRODUCTIVAS
T9: Segundo paso: Seleccionar el indicador
T10: Indicador:
T11: Exportaciones FOB No tradicionales (Millones de dólares)
T12: Tercer paso: Seleccionar el Sub Indicador
T13: Sub indicador:
T14: Maderas y Papeles y sus Manufacturas
B15: Información Histórica
B16: 2010 | C16: 2011 | D16: 2012 | E16: 2013 | F16: 2014 | G16: 2015 | H16: 2016 | I16: 2017 | J16: 2018 | K16: 2019 | L16: 2020 | M16: 2021 | N16: 2022 | O16: 2023 | P16: 2024 | Q16: 2025 | R16: 2026
B17: =IFERROR(HLOOKUP(ReporteIndicador!B$16,TDValor!$C$5:$M$6,2,FALSE),"") ->  | C17: =IFERROR(HLOOKUP(ReporteIndicador!C$16,TDValor!$C$5:$M$6,2,FALSE),"") ->  | D17: =IFERROR(HLOOKUP(ReporteIndicador!D$16,TDValor!$C$5:$M$6,2,FALSE),"") ->  | E17: =IFERROR(HLOOKUP(ReporteIndicador!E$16,TDValor!$C$5:$M$6,2,FALSE),"") ->  | F17: =IFERROR(HLOOKUP(ReporteIndicador!F$16,TDValor!$C$5:$M$6,2,FALSE),"") -> 416.3 | G17: =IFERROR(HLOOKUP(ReporteIndicador!G$16,TDValor!$C$5:$M$6,2,FALSE),"") -> 353 | H17: =IFERROR(HLOOKUP(ReporteIndicador!H$16,TDValor!$C$5:$M$6,2,FALSE),"") -> 322.1 | I17: =IFERROR(HLOOKUP(ReporteIndicador!I$16,TDValor!$C$5:$M$6,2,FALSE),"") -> 322.1 | J17: =IFERROR(HLOOKUP(ReporteIndicador!J$16,TDValor!$C$5:$M$6,2,FALSE),"") -> 339 | K17: =IFERROR(HLOOKUP(ReporteIndicador!K$16,TDValor!$C$5:$M$6,2,FALSE),"") -> 482.6 | L17: =IFERROR(HLOOKUP(ReporteIndicador!L$16,TDValor!$C$5:$M$6,2,FALSE),"") -> 329 | M17: =IFERROR(HLOOKUP(ReporteIndicador!M$16,TDValor!$C$5:$M$6,2,FALSE),"") -> 328.7 | N17: =IFERROR(HLOOKUP(ReporteIndicador!N$16,TDValor!$C$5:$M$6,2,FALSE),"") ->  | O17: =IFERROR(HLOOKUP(ReporteIndicador!O$16,TDValor!$C$5:$M$6,2,FALSE),"") ->  | P17: =IFERROR(HLOOKUP(ReporteIndicador!P$16,TDValor!$C$5:$M$6,2,FALSE),"") ->  | Q17: =IFERROR(HLOOKUP(ReporteIndicador!Q$16,TDValor!$C$5:$M$6,2,FALSE),"") ->  | R17: =IFERROR(HLOOKUP(ReporteIndicador!R$16,TDValor!$C$5:$M$6,2,FALSE),"") -> 
B19: Fuente | D19: =+TDValor!B6 -> INEI: Compendio Estadístico Perú
B20: Unidad de medida | D20: =+TDValor!A6 -> Dolares
B22: Desempeño
B24: Proyección 2021 | F24: Meta 2021 | I24: Semaforo 2021
B25: =IFERROR(IF(VLOOKUP($T$11&$T$14,ListaIndicadores!$Z$7:$AE$396,4,FALSE)="","",VLOOKUP($T$11&$T$14,ListaIndicadores!$Z$7:$AE$396,4,FALSE)),"") -> 338 | F25: =IFERROR(IF(VLOOKUP($T$11&$T$14,ListaIndicadores!$Z$7:$AE$396,2,FALSE)="","",VLOOKUP($T$11&$T$14,ListaIndicadores!$Z$7:$AE$396,2,FALSE)),"") -> 600 | I25: =IFERROR(IF(VLOOKUP($T$11&$T$14,ListaIndicadores!$Z$7:$AF$396,6,FALSE)="","",VLOOKUP($T$11&$T$14,ListaIndicadores!$Z$7:$AF$396,6,FALSE)),"") -> Ambar
B27: Proyección 2026 | F27: Meta 2026 | I27: Semaforo 2026
B28: =IFERROR(IF(VLOOKUP($T$11&$T$14,ListaIndicadores!$Z$7:$AE$396,5,FALSE)="","",VLOOKUP($T$11&$T$14,ListaIndicadores!$Z$7:$AE$396,5,FALSE)),"") ->  | F28: =IFERROR(IF(VLOOKUP($T$11&$T$14,ListaIndicadores!$Z$7:$AE$396,3,FALSE)="","",VLOOKUP($T$11&$T$14,ListaIndicadores!$Z$7:$AE$396,3,FALSE)),"") -> 900 | I28: =IFERROR(IF(VLOOKUP($T$11&$T$14,ListaIndicadores!$Z$7:$AF$396,7,FALSE)="","",VLOOKUP($T$11&$T$14,ListaIndicadores!$Z$7:$AF$396,7,FALSE)),"") -> ¡Faltan datos!

Sheet BD_Economica
A1: Num. | B1: Dimensión | C1: Segundo Nivel | D1: Indicador | E1: Matriz de Resultado | F1: Subindicador | G1: Nombre de la región/Nacional | H1: Año | I1: Valor | J1: Unidad | K1: Fuente web | L1: Fuente ficha tecnica | M1: Link | N1: Descripción del indicador | O1: Observaciones internas
A2: 7851 | B2: Economica | C2: EJE 1: ACTIVIDADES ECONÓMICAS PRODUCTIVAS | D2: Índice del sector manufactura | E2: AGE.1.1 | F2: Índice de Volumen Físico Sector Fabril (Año base 2012=100) | G2: Nacional | H2: 2014 | I2: 101.1 | J2: Porcentaje | K2: INEI: Compendio Estadístico Perú | L2: Instituto Nacional de Estadística e Informática (INEI) | M2: https://www.inei.gob.pe/media/MenuRecursivo/publicaciones_digitales/Est/Lib1483/index.html
A3: 7852 | B3: Economica | C3: EJE 1: ACTIVIDADES ECONÓMICAS PRODUCTIVAS | D3: Índice del sector manufactura | E3: AGE.1.1 | F3: Índice de Volumen Físico Sector Fabril (Año base 2012=100) | G3: Nacional | H3: 2015 | I3: 99.6 | J3: Porcentaje | K3: INEI: Compendio Estadístico Perú | L3: Instituto Nacional de Estadística e Informática (INEI) | M3: https://www.inei.gob.pe/media/MenuRecursivo/publicaciones_digitales/Est/Lib1483/index.html
A4: 7853 | B4: Economica | C4: EJE 1: ACTIVIDADES ECONÓMICAS PRODUCTIVAS | D4: Índice del sector manufactura | E4: AGE.1.1 | F4: Índice de Volumen Físico Sector Fabril (Año base 2012=100) | G4: Nacional | H4: 2016 | I4: 98.2 | J4: Porcentaje | K4: INEI: Compendio Estadístico Perú | L4: Instituto Nacional de Estadística e Informática (INEI) | M4: https://www.inei.gob.pe/media/MenuRecursivo/publicaciones_digitales/Est/Lib1483/index.html
A5: 7854 | B5: Economica | C5: EJE 1: ACTIVIDADES ECONÓMICAS PRODUCTIVAS | D5: Índice del sector manufactura | E5: AGE.1.1 | F5: Índice de Volumen Físico Sector Fabril (Año base 2012=100) | G5: Nacional | H5: 2017 | I5: 98.2 | J5: Porcentaje | K5: INEI: Compendio Estadístico Perú | L5: Instituto Nacional de Estadística e Informática (INEI) | M5: https://www.inei.gob.pe/media/MenuRecursivo/publicaciones_digitales/Est/Lib1483/index.html
A6: 7855 | B6: Economica | C6: EJE 1: ACTIVIDADES ECONÓMICAS PRODUCTIVAS | D6: Índice del sector manufactura | E6: AGE.1.1 | F6: Índice de Volumen Físico Sector Fabril (Año base 2012=100) | G6: Nacional | H6: 2018 | I6: 104.1 | J6: Porcentaje | K6: INEI: Compendio Estadístico Perú | L6: Instituto Nacional de Estadística e Informática (INEI) | M6: https://www.inei.gob.pe/media/MenuRecursivo/publicaciones_digitales/Est/Lib1483/index.html
A7: 7855 | B7: Economica | C7: EJE 1: ACTIVIDADES ECONÓMICAS PRODUCTIVAS | D7: Índice del sector manufactura | E7: AGE.1.1 | F7: Índice de Volumen Físico Sector Fabril (Año base 2012=100) | G7: Nacional | H7: 2019 | I7: 104.8 | J7: Porcentaje | K7: INEI: Compendio Estadístico Perú | L7: Instituto Nacional de Estadística e Informática (INEI) | M7: https://www.inei.gob.pe/media/MenuRecursivo/publicaciones_digitales/Est/Lib1483/index.html
A8: 7855 | B8: Economica | C8: EJE 1: ACTIVIDADES ECONÓMICAS PRODUCTIVAS | D8: Índice del sector manufactura | E8: AGE.1.1 | F8: Índice de Volumen Físico Sector Fabril (Año base 2012=100) | G8: Nacional | H8: 2020 | I8: 114.7 | J8: Porcentaje | K8: INEI: Compendio Estadístico Perú | L8: Instituto Nacional de Estadística e Informática (INEI) | M8: https://www.inei.gob.pe/media/MenuRecursivo/publicaciones_digitales/Est/Lib1483/index.html
A9: 7855 | B9: Economica | C9: EJE 1: ACTIVIDADES ECONÓMICAS PRODUCTIVAS | D9: Índice del sector manufactura | E9: AGE.1.1 | F9: Índice de Volumen Físico Sector Fabril (Año base 2012=100) | G9: Nacional | H9: 2021 | I9: 116.9 | J9: Porcentaje | K9: INEI: Compendio Estadístico Perú | L9: Instituto Nacional de Estadística e Informática (INEI) | M9: https://www.inei.gob.pe/media/MenuRecursivo/publicaciones_digitales/Est/Lib1483/index.html
A10: 7857 | B10: Economica | C10: EJE 1: ACTIVIDADES ECONÓMICAS PRODUCTIVAS | D10: Ingreso de visitantes extranjeros | E10: AGE.2.1 | F10: Resto de mundo | G10: Nacional | H10: 2014 | I10: 1435785 | J10: Extranjeros | K10: INEI: Compendio Estadístico Perú | L10: Instituto Nacional de Estadística e Informática | M10: https://www.inei.gob.pe/media/MenuRecursivo/publicaciones_digitales/Est/Lib1097/libro.pdf
A11: 7858 | B11: Economica | C11: EJE 1: ACTIVIDADES ECONÓMICAS PRODUCTIVAS | D11: Ingreso de visitantes extranjeros | E11: AGE.2.1 | F11: Resto de mundo | G11: Nacional | H11: 2015 | I11: 1536470 | J11: Extranjeros | K11: INEI: Compendio Estadístico Perú | L11: Instituto Nacional de Estadística e Informática | M11: https://www.inei.gob.pe/media/MenuRecursivo/publicaciones_digitales/Est/Lib1097/libro.pdf
A12: 7859 | B12: Economica | C12: EJE 1: ACTIVIDADES ECONÓMICAS PRODUCTIVAS | D12: Ingreso de visitantes extranjeros | E12: AGE.2.1 | F12: Resto de mundo | G12: Nacional | H12: 2016 | I12: 1634009 | J12: Extranjeros | K12: INEI: Compendio Estadístico Perú | L12: Instituto Nacional de Estadística e Informática | M12: https://www.inei.gob.pe/media/MenuRecursivo/publicaciones_digitales/Est/Lib1097/libro.pdf
A13: 7860 | B13: Economica | C13: EJE 1: ACTIVIDADES ECONÓMICAS PRODUCTIVAS | D13: Ingreso de visitantes extranjeros | E13: AGE.2.1 | F13: Resto de mundo | G13: Nacional | H13: 2017 | I13: 1634009 | J13: Extranjeros | K13: INEI: Compendio Estadístico Perú | L13: Instituto Nacional de Estadística e Informática | M13: https://www.inei.gob.pe/media/MenuRecursivo/publicaciones_digitales/Est/Lib1097/libro.pdf
A14: 7861 | B14: Economica | C14: EJE 1: ACTIVIDADES ECONÓMICAS PRODUCTIVAS | D14: Ingreso de visitantes extranjeros | E14: AGE.2.1 | F14: Resto de mundo | G14: Nacional | H14: 2018 | I14: Sin datos | J14: Extranjeros | K14: INEI: Compendio Estadístico Perú | L14: Instituto Nacional de Estadística e Informática | M14: https://www.inei.gob.pe/media/MenuRecursivo/publicaciones_digitales/Est/Lib1097/libro.pdf
A15: 7863 | B15: Economica | C15: EJE 1: ACTIVIDADES ECONÓMICAS PRODUCTIVAS | D15: Ingreso de visitantes extranjeros | E15: AGE.2.1 | F15: Sud americanos | G15: Nacional | H15: 2014 | I15: 1779149 | J15: Extranjeros | K15: INEI: Compendio Estadístico Perú | L15: Instituto Nacional de Estadística e Informática | M15: https://www.inei.gob.pe/media/MenuRecursivo/publicaciones_digitales/Est/Lib1097/libro.pdf
A16: 7864 | B16: Economica | C16: EJE 1: ACTIVIDADES ECONÓMICAS PRODUCTIVAS | D16: Ingreso de visitantes extranjeros | E16: AGE.2.1 | F16: Sud americanos | G16: Nacional | H16: 2015 | I16: 1919232 | J16: Extranjeros | K16: INEI: Compendio Estadístico Perú | L16: Instituto Nacional de Estadística e Informática | M16: https://www.inei.gob.pe/media/MenuRecursivo/publicaciones_digitales/Est/Lib1097/libro.pdf
A17: 7865 | B17: Economica | C17: EJE 1: ACTIVIDADES ECONÓMICAS PRODUCTIVAS | D17: Ingreso de visitantes extranjeros | E17: AGE.2.1 | F17: Sud americanos | G17: Nacional | H17: 2016 | I17: 2110452 | J17: Extranjeros | K17: INEI: Compendio Estadístico Perú | L17: Instituto Nacional de Estadística e Informática | M17: https://www.inei.gob.pe/media/MenuRecursivo/publicaciones_digitales/Est/Lib1097/libro.pdf
A18: 7866 | B18: Economica | C18: EJE 1: ACTIVIDADES ECONÓMICAS PRODUCTIVAS | D18: Ingreso de visitantes extranjeros | E18: AGE.2.1 | F18: Sud americanos | G18: Nacional | H18: 2017 | I18: 2110452 | J18: Extranjeros | K18: INEI: Compendio Estadístico Perú | L18: Instituto Nacional de Estadística e Informática | M18: https://www.inei.gob.pe/media/MenuRecursivo/publicaciones_digitales/Est/Lib1097/libro.pdf
A19: 7867 | B19: Economica | C19: EJE 1: ACTIVIDADES ECONÓMICAS PRODUCTIVAS | D19: Ingreso de visitantes extranjeros | E19: AGE.2.1 | F19: Sud americanos | G19: Nacional | H19: 2018 | I19: Sin datos | J19: Extranjeros | K19: INEI: Compendio Estadístico Perú | L19: Instituto Nacional de Estadística e Informática | M19: https://www.inei.gob.pe/media/MenuRecursivo/publicaciones_digitales/Est/Lib1097/libro.pdf
A20: 7869 | B20: Economica | C20: EJE 1: ACTIVIDADES ECONÓMICAS PRODUCTIVAS | D20: Ingreso de visitantes extranjeros | E20: AGE.2.1 | F20: Total | G20: Nacional | H20: 2014 | I20: 3214934 | J20: Extranjeros | K20: INEI: Compendio Estadístico Perú | L20: Instituto Nacional de Estadística e Informática | M20: https://www.inei.gob.pe/media/MenuRecursivo/publicaciones_digitales/Est/Lib1097/libro.pdf
A21: 7870 | B21: Economica | C21: EJE 1: ACTIVIDADES ECONÓMICAS PRODUCTIVAS | D21: Ingreso de visitantes extranjeros | E21: AGE.2.1 | F21: Total | G21: Nacional | H21: 2015 | I21: 3455709 | J21: Extranjeros | K21: INEI: Compendio Estadístico Perú | L21: Instituto Nacional de Estadística e Informática | M21: https://www.inei.gob.pe/media/MenuRecursivo/publicaciones_digitales/Est/Lib1097/libro.pdf
A22: 7871 | B22: Economica | C22: EJE 1: ACTIVIDADES ECONÓMICAS PRODUCTIVAS | D22: Ingreso de visitantes extranjeros | E22: AGE.2.1 | F22: Total | G22: Nacional | H22: 2016 | I22: 3744461 | J22: Extranjeros | K22: INEI: Compendio Estadístico Perú | L22: Instituto Nacional de Estadística e Informática | M22: https://www.inei.gob.pe/media/MenuRecursivo/publicaciones_digitales/Est/Lib1097/libro.pdf
A23: 7872 | B23: Economica | C23: EJE 1: ACTIVIDADES ECONÓMICAS PRODUCTIVAS | D23: Ingreso de visitantes extranjeros | E23: AGE.2.1 | F23: Total | G23: Nacional | H23: 2017 | I23: 3744461 | J23: Extranjeros | K23: INEI: Compendio Estadístico Perú | L23: Instituto Nacional de Estadística e Informática | M23: https://www.inei.gob.pe/media/MenuRecursivo/publicaciones_digitales/Est/Lib1097/libro.pdf
A24: 7873 | B24: Economica | C24: EJE 1: ACTIVIDADES ECONÓMICAS PRODUCTIVAS | D24: Ingreso de visitantes extranjeros | E24: AGE.2.1 | F24: Total | G24: Nacional | H24: 2018 | I24: Sin datos | J24: Extranjeros | K24: INEI: Compendio Estadístico Perú | L24: Instituto Nacional de Estadística e Informática | M24: https://www.inei.gob.pe/media/MenuRecursivo/publicaciones_digitales/Est/Lib1097/libro.pdf
A25: 7875 | B25: Economica | C25: EJE 1: ACTIVIDADES ECONÓMICAS PRODUCTIVAS | D25: Gasto promedio por turista (US Dólar) | E25: AGE.2.2 | F25: Diario | G25: Nacional | H25: 2014 | I25: 114 | J25: US Dólar | K25: INEI: Compendio Estadístico Perú | L25: Instituto Nacional de Estadística e Informática | M25: https://www.inei.gob.pe/media/MenuRecursivo/publicaciones_digitales/Est/Lib1097/libro.pdf
A26: 7876 | B26: Economica | C26: EJE 1: ACTIVIDADES ECONÓMICAS PRODUCTIVAS | D26: Gasto promedio por turista (US Dólar) | E26: AGE.2.2 | F26: Diario | G26: Nacional | H26: 2015 | I26: 115 | J26: US Dólar | K26: INEI: Compendio Estadístico Perú | L26: Instituto Nacional de Estadística e Informática | M26: https://www.inei.gob.pe/media/MenuRecursivo/publicaciones_digitales/Est/Lib1097/libro.pdf
A27: 7877 | B27: Economica | C27: EJE 1: ACTIVIDADES ECONÓMICAS PRODUCTIVAS | D27: Gasto promedio por turista (US Dólar) | E27: AGE.2.2 | F27: Diario | G27: Nacional | H27: 2016 | I27: 110 | J27: US Dólar | K27: INEI: Compendio Estadístico Perú | L27: Instituto Nacional de Estadística e Informática | M27: https://www.inei.gob.pe/media/MenuRecursivo/publicaciones_digitales/Est/Lib1097/libro.pdf
A28: 7878 | B28: Economica | C28: EJE 1: ACTIVIDADES ECONÓMICAS PRODUCTIVAS | D28: Gasto promedio por turista (US Dólar) | E28: AGE.2.2 | F28: Diario | G28: Nacional | H28: 2017 | I28: 110 | J28: US Dólar | K28: INEI: Compendio Estadístico Perú | L28: Instituto Nacional de Estadística e Informática | M28: https://www.inei.gob.pe/media/MenuRecursivo/publicaciones_digitales/Est/Lib1097/libro.pdf
A29: 7879 | B29: Economica | C29: EJE 1: ACTIVIDADES ECONÓMICAS PRODUCTIVAS | D29: Gasto promedio por turista (US Dólar) | E29: AGE.2.2 | F29: Diario | G29: Nacional | H29: 2018 | I29: Sin datos | J29: US Dólar | K29: INEI: Compendio Estadístico Perú | L29: Instituto Nacional de Estadística e Informática | M29: https://www.inei.gob.pe/media/MenuRecursivo/publicaciones_digitales/Est/Lib1097/libro.pdf
A30: 7881 | B30: Economica | C30: EJE 1: ACTIVIDADES ECONÓMICAS PRODUCTIVAS | D30: Gasto promedio por turista (US Dólar) | E30: AGE.2.2 | F30: Total | G30: Nacional | H30: 2014 | I30: 1362 | J30: US Dólar | K30: INEI: Compendio Estadístico Perú | L30: Instituto Nacional de Estadística e Informática | M30: https://www.inei.gob.pe/media/MenuRecursivo/publicaciones_digitales/Est/Lib1097/libro.pdf
A31: 7882 | B31: Economica | C31: EJE 1: ACTIVIDADES ECONÓMICAS PRODUCTIVAS | D31: Gasto promedio por turista (US Dólar) | E31: AGE.2.2 | F31: Total | G31: Nacional | H31: 2015 | I31: 1444 | J31: US Dólar | K31: INEI: Compendio Estadístico Perú | L31: Instituto Nacional de Estadística e Informática | M31: https://www.inei.gob.pe/media/MenuRecursivo/publicaciones_digitales/Est/Lib1097/libro.pdf
A32: 7883 | B32: Economica | C32: EJE 1: ACTIVIDADES ECONÓMICAS PRODUCTIVAS | D32: Gasto promedio por turista (US Dólar) | E32: AGE.2.2 | F32: Total | G32: Nacional | H32: 2016 | I32: 1330 | J32: US Dólar | K32: INEI: Compendio Estadístico Perú | L32: Instituto Nacional de Estadística e Informática | M32: https://www.inei.gob.pe/media/MenuRecursivo/publicaciones_digitales/Est/Lib1097/libro.pdf
A33: 7884 | B33: Economica | C33: EJE 1: ACTIVIDADES ECONÓMICAS PRODUCTIVAS | D33: Gasto promedio por turista (US Dólar) | E33: AGE.2.2 | F33: Total | G33: Nacional | H33: 2017 | I33: 1330 | J33: US Dólar | K33: INEI: Compendio Estadístico Perú | L33: Instituto Nacional de Estadística e Informática | M33: https://www.inei.gob.pe/media/MenuRecursivo/publicaciones_digitales/Est/Lib1097/libro.pdf
A34: 7885 | B34: Economica | C34: EJE 1: ACTIVIDADES ECONÓMICAS PRODUCTIVAS | D34: Gasto promedio por turista (US Dólar) | E34: AGE.2.2 | F34: Total | G34: Nacional | H34: 2018 | I34: Sin datos | J34: US Dólar | K34: INEI: Compendio Estadístico Perú | L34: Instituto Nacional de Estadística e Informática | M34: https://www.inei.gob.pe/media/MenuRecursivo/publicaciones_digitales/Est/Lib1097/libro.pdf
A35: 7887 | B35: Economica | C35: EJE 1: ACTIVIDADES ECONÓMICAS PRODUCTIVAS | D35: Definir nuevos circuitos turísticos complementarios. | E35: AGE.2.3 | F35: Circuitos turísticos | G35: Nacional | H35: 2014 | I35: 2 | J35: Circuitos | K35: Ministerio de Comercio Exterior y Turismo - MINCETUR | L35: Ley General de Turismo. | M35: https://www.mincetur.gob.pe/wp-content/uploads/documentos/turismo/consultorias/directoriosManuales/GUIA_PERTUR.PDF
A36: 7888 | B36: Economica | C36: EJE 1: ACTIVIDADES ECONÓMICAS PRODUCTIVAS | D36: Definir nuevos circuitos turísticos complementarios. | E36: AGE.2.3 | F36: Circuitos turísticos | G36: Nacional | H36: 2015 | I36: Sin datos | J36: Circuitos | K36: Ministerio de Comercio Exterior y Turismo - MINCETUR | L36: Ley General de Turismo. | M36: https://www.mincetur.gob.pe/wp-content/uploads/documentos/turismo/consultorias/directoriosManuales/GUIA_PERTUR.PDF
A37: 7889 | B37: Economica | C37: EJE 1: ACTIVIDADES ECONÓMICAS PRODUCTIVAS | D37: Definir nuevos circuitos turísticos complementarios. | E37: AGE.2.3 | F37: Circuitos turísticos | G37: Nacional | H37: 2016 | I37: Sin datos | J37: Circuitos | K37: Ministerio de Comercio Exterior y Turismo - MINCETUR | L37: Ley General de Turismo. | M37: https://www.mincetur.gob.pe/wp-content/uploads/documentos/turismo/consultorias/directoriosManuales/GUIA_PERTUR.PDF
A38: 7890 | B38: Economica | C38: EJE 1: ACTIVIDADES ECONÓMICAS PRODUCTIVAS | D38: Definir nuevos circuitos turísticos complementarios. | E38: AGE.2.3 | F38: Circuitos turísticos | G38: Nacional | H38: 2017 | I38: Sin datos | J38: Circuitos | K38: Ministerio de Comercio Exterior y Turismo - MINCETUR | L38: Ley General de Turismo. | M38: https://www.mincetur.gob.pe/wp-content/uploads/documentos/turismo/consultorias/directoriosManuales/GUIA_PERTUR.PDF
A39: 7891 | B39: Economica | C39: EJE 1: ACTIVIDADES ECONÓMICAS PRODUCTIVAS | D39: Definir nuevos circuitos turísticos complementarios. | E39: AGE.2.3 | F39: Circuitos turísticos | G39: Nacional | H39: 2018 | I39: Sin datos | J39: Circuitos | K39: Ministerio de Comercio Exterior y Turismo - MINCETUR | L39: Ley General de Turismo. | M39: https://www.mincetur.gob.pe/wp-content/uploads/documentos/turismo/consultorias/directoriosManuales/GUIA_PERTUR.PDF
A40: 7893 | B40: Economica | C40: EJE 1: ACTIVIDADES ECONÓMICAS PRODUCTIVAS | D40: Incremento del número de aeropuertos que reciban vuelos internacionales. | E40: AGE.2.4 | F40: Aeropuertos | G40: Nacional | H40: 2014 | I40: 3 | J40: Aeropuertos | K40: Ministerio de Transportes y Comunicaciones - MTC | L40: Ministerio de Transportes y Comuniciaciones - MTC | M40: https://portal.mtc.gob.pe/logros_aeropuerto.html
A41: 7894 | B41: Economica | C41: EJE 1: ACTIVIDADES ECONÓMICAS PRODUCTIVAS | D41: Incremento del número de aeropuertos que reciban vuelos internacionales. | E41: AGE.2.4 | F41: Aeropuertos | G41: Nacional | H41: 2015 | I41: Sin datos | J41: Aeropuertos | K41: Ministerio de Transportes y Comunicaciones - MTC | L41: Ministerio de Transportes y Comuniciaciones - MTC | M41: https://portal.mtc.gob.pe/logros_aeropuerto.html
A42: 7895 | B42: Economica | C42: EJE 1: ACTIVIDADES ECONÓMICAS PRODUCTIVAS | D42: Incremento del número de aeropuertos que reciban vuelos internacionales. | E42: AGE.2.4 | F42: Aeropuertos | G42: Nacional | H42: 2016 | I42: Sin datos | J42: Aeropuertos | K42: Ministerio de Transportes y Comunicaciones - MTC | L42: Ministerio de Transportes y Comuniciaciones - MTC | M42: https://portal.mtc.gob.pe/logros_aeropuerto.html
A43: 7896 | B43: Economica | C43: EJE 1: ACTIVIDADES ECONÓMICAS PRODUCTIVAS | D43: Incremento del número de aeropuertos que reciban vuelos internacionales. | E43: AGE.2.4 | F43: Aeropuertos | G43: Nacional | H43: 2017 | I43: Sin datos | J43: Aeropuertos | K43: Ministerio de Transportes y Comunicaciones - MTC | L43: Ministerio de Transportes y Comuniciaciones - MTC | M43: https://portal.mtc.gob.pe/logros_aeropuerto.html
A44: 7897 | B44: Economica | C44: EJE 1: ACTIVIDADES ECONÓMICAS PRODUCTIVAS | D44: Incremento del número de aeropuertos que reciban vuelos internacionales. | E44: AGE.2.4 | F44: Aeropuertos | G44: Nacional | H44: 2018 | I44: Sin datos | J44: Aeropuertos | K44: Ministerio de Transportes y Comunicaciones - MTC | L44: Ministerio de Transportes y Comuniciaciones - MTC | M44: https://portal.mtc.gob.pe/logros_aeropuerto.html
A45: 7899 | B45: Economica | C45: EJE 1: ACTIVIDADES ECONÓMICAS PRODUCTIVAS | D45: Exportaciones FOB No tradicionales (Millones de dólares) | E45: AGE.3.1 | F45: Agropecuarios | G45: Nacional | H45: 2014 | I45: 4231.3 | J45: Dolares | K45: INEI: Compendio Estadístico Perú | L45: Instituto Nacional de Estadística e Informatica (INEI) | M45: https://www.inei.gob.pe/biblioteca-virtual/boletines/exportaciones-e-importaciones/1/
A46: 7900 | B46: Economica | C46: EJE 1: ACTIVIDADES ECONÓMICAS PRODUCTIVAS | D46: Exportaciones FOB No tradicionales (Millones de dólares) | E46: AGE.3.1 | F46: Agropecuarios | G46: Nacional | H46: 2015 | I46: 4408.6 | J46: Dolares | K46: INEI: Compendio Estadístico Perú | L46: Instituto Nacional de Estadística e Informatica (INEI) | M46: https://www.inei.gob.pe/biblioteca-virtual/boletines/exportaciones-e-importaciones/1/
A47: 7901 | B47: Economica | C47: EJE 1: ACTIVIDADES ECONÓMICAS PRODUCTIVAS | D47: Exportaciones FOB No tradicionales (Millones de dólares) | E47: AGE.3.1 | F47: Agropecuarios | G47: Nacional | H47: 2016 | I47: 4701.8 | J47: Dolares | K47: INEI: Compendio Estadístico Perú | L47: Instituto Nacional de Estadística e Informatica (INEI) | M47: https://www.inei.gob.pe/biblioteca-virtual/boletines/exportaciones-e-importaciones/1/
A48: 7902 | B48: Economica | C48: EJE 1: ACTIVIDADES ECONÓMICAS PRODUCTIVAS | D48: Exportaciones FOB No tradicionales (Millones de dólares) | E48: AGE.3.1 | F48: Agropecuarios | G48: Nacional | H48: 2017 | I48: 4701.8 | J48: Dolares | K48: INEI: Compendio Estadístico Perú | L48: Instituto Nacional de Estadística e Informatica (INEI) | M48: https://www.inei.gob.pe/biblioteca-virtual/boletines/exportaciones-e-importaciones/1/
A49: 7903 | B49: Economica | C49: EJE 1: ACTIVIDADES ECONÓMICAS PRODUCTIVAS | D49: Exportaciones FOB No tradicionales (Millones de dólares) | E49: AGE.3.1 | F49: Agropecuarios | G49: Nacional | H49: 2018 | I49: 4910.1 | J49: Dolares | K49: INEI: Compendio Estadístico Perú | L49: Instituto Nacional de Estadística e Informatica (INEI) | M49: https://www.inei.gob.pe/biblioteca-virtual/boletines/exportaciones-e-importaciones/1/
A50: 7905 | B50: Economica | C50: EJE 1: ACTIVIDADES ECONÓMICAS PRODUCTIVAS | D50: Exportaciones FOB No tradicionales (Millones de dólares) | E50: AGE.3.1 | F50: Maderas y Papeles y sus Manufacturas | G50: Nacional | H50: 2014 | I50: 416.3 | J50: Dolares | K50: INEI: Compendio Estadístico Perú | L50: Instituto Nacional de Estadística e Informatica (INEI) | M50: https://www.inei.gob.pe/biblioteca-virtual/boletines/exportaciones-e-importaciones/1/
A51: 7906 | B51: Economica | C51: EJE 1: ACTIVIDADES ECONÓMICAS PRODUCTIVAS | D51: Exportaciones FOB No tradicionales (Millones de dólares) | E51: AGE.3.1 | F51: Maderas y Papeles y sus Manufacturas | G51: Nacional | H51: 2015 | I51: 353 | J51: Dolares | K51: INEI: Compendio Estadístico Perú | L51: Instituto Nacional de Estadística e Informatica (INEI) | M51: https://www.inei.gob.pe/biblioteca-virtual/boletines/exportaciones-e-importaciones/1/
A52: 7907 | B52: Economica | C52: EJE 1: ACTIVIDADES ECONÓMICAS PRODUCTIVAS | D52: Exportaciones FOB No tradicionales (Millones de dólares) | E52: AGE.3.1 | F52: Maderas y Papeles y sus Manufacturas | G52: Nacional | H52: 2016 | I52: 322.1 | J52: Dolares | K52: INEI: Compendio Estadístico Perú | L52: Instituto Nacional de Estadística e Informatica (INEI) | M52: https://www.inei.gob.pe/biblioteca-virtual/boletines/exportaciones-e-importaciones/1/
A53: 7908 | B53: Economica | C53: EJE 1: ACTIVIDADES ECONÓMICAS PRODUCTIVAS | D53: Exportaciones FOB No tradicionales (Millones de dólares) | E53: AGE.3.1 | F53: Maderas y Papeles y sus Manufacturas | G53: Nacional | H53: 2017 | I53: 322.1 | J53: Dolares | K53: INEI: Compendio Estadístico Perú | L53: Instituto Nacional de Estadística e Informatica (INEI) | M53: https://www.inei.gob.pe/biblioteca-virtual/boletines/exportaciones-e-importaciones/1/
A54: 7909 | B54: Economica | C54: EJE 1: ACTIVIDADES ECONÓMICAS PRODUCTIVAS | D54: Exportaciones FOB No tradicionales (Millones de dólares) | E54: AGE.3.1 | F54: Maderas y Papeles y sus Manufacturas | G54: Nacional | H54: 2018 | I54: 339 | J54: Dolares | K54: INEI: Compendio Estadístico Perú | L54: Instituto Nacional de Estadística e Informatica (INEI) | M54: https://www.inei.gob.pe/biblioteca-virtual/boletines/exportaciones-e-importaciones/1/
A55: 7911 | B55: Economica | C55: EJE 1: ACTIVIDADES ECONÓMICAS PRODUCTIVAS | D55: Exportaciones FOB No tradicionales (Millones de dólares) | E55: AGE.3.1 | F55: Metal-Mecánicos | G55: Nacional | H55: 2014 | I55: 581.3 | J55: Dolares | K55: INEI: Compendio Estadístico Perú | L55: Instituto Nacional de Estadística e Informatica (INEI) | M55: https://www.inei.gob.pe/biblioteca-virtual/boletines/exportaciones-e-importaciones/1/
A56: 7912 | B56: Economica | C56: EJE 1: ACTIVIDADES ECONÓMICAS PRODUCTIVAS | D56: Exportaciones FOB No tradicionales (Millones de dólares) | E56: AGE.3.1 | F56: Metal-Mecánicos | G56: Nacional | H56: 2015 | I56: 533.2 | J56: Dolares | K56: INEI: Compendio Estadístico Perú | L56: Instituto Nacional de Estadística e Informatica (INEI) | M56: https://www.inei.gob.pe/biblioteca-virtual/boletines/exportaciones-e-importaciones/1/
A57: 7913 | B57: Economica | C57: EJE 1: ACTIVIDADES ECONÓMICAS PRODUCTIVAS | D57: Exportaciones FOB No tradicionales (Millones de dólares) | E57: AGE.3.1 | F57: Metal-Mecánicos | G57: Nacional | H57: 2016 | I57: 445 | J57: Dolares | K57: INEI: Compendio Estadístico Perú | L57: Instituto Nacional de Estadística e Informatica (INEI) | M57: https://www.inei.gob.pe/biblioteca-virtual/boletines/exportaciones-e-importaciones/1/
A58: 7914 | B58: Economica | C58: EJE 1: ACTIVIDADES ECONÓMICAS PRODUCTIVAS | D58: Exportaciones FOB No tradicionales (Millones de dólares) | E58: AGE.3.1 | F58: Metal-Mecánicos | G58: Nacional | H58: 2017 | I58: 445 | J58: Dolares | K58: INEI: Compendio Estadístico Perú | L58: Instituto Nacional de Estadística e Informatica (INEI) | M58: https://www.inei.gob.pe/biblioteca-virtual/boletines/exportaciones-e-importaciones/1/
A59: 7915 | B59: Economica | C59: EJE 1: ACTIVIDADES ECONÓMICAS PRODUCTIVAS | D59: Exportaciones FOB No tradicionales (Millones de dólares) | E59: AGE.3.1 | F59: Metal-Mecánicos | G59: Nacional | H59: 2018 | I59: 615.8 | J59: Dolares | K59: INEI: Compendio Estadístico Perú | L59: Instituto Nacional de Estadística e Informatica (INEI) | M59: https://www.inei.gob.pe/biblioteca-virtual/boletines/exportaciones-e-importaciones/1/
A60: 7917 | B60: Economica | C60: EJE 1: ACTIVIDADES ECONÓMICAS PRODUCTIVAS | D60: Exportaciones FOB No tradicionales (Millones de dólares) | E60: AGE.3.1 | F60: Minerales No Metálicos | G60: Nacional | H60: 2014 | I60: 663.6 | J60: Dolares | K60: INEI: Compendio Estadístico Perú | L60: Instituto Nacional de Estadística e Informatica (INEI) | M60: https://www.inei.gob.pe/biblioteca-virtual/boletines/exportaciones-e-importaciones/1/
A61: 7918 | B61: Economica | C61: EJE 1: ACTIVIDADES ECONÓMICAS PRODUCTIVAS | D61: Exportaciones FOB No tradicionales (Millones de dólares) | E61: AGE.3.1 | F61: Minerales No Metálicos | G61: Nacional | H61: 2015 | I61: 698.5 | J61: Dolares | K61: INEI: Compendio Estadístico Perú | L61: Instituto Nacional de Estadística e Informatica (INEI) | M61: https://www.inei.gob.pe/biblioteca-virtual/boletines/exportaciones-e-importaciones/1/
A62: 7919 | B62: Economica | C62: EJE 1: ACTIVIDADES ECONÓMICAS PRODUCTIVAS | D62: Exportaciones FOB No tradicionales (Millones de dólares) | E62: AGE.3.1 | F62: Minerales No Metálicos | G62: Nacional | H62: 2016 | I62: 640.3 | J62: Dolares | K62: INEI: Compendio Estadístico Perú | L62: Instituto Nacional de Estadística e Informatica (INEI) | M62: https://www.inei.gob.pe/biblioteca-virtual/boletines/exportaciones-e-importaciones/1/
A63: 7920 | B63: Economica | C63: EJE 1: ACTIVIDADES ECONÓMICAS PRODUCTIVAS | D63: Exportaciones FOB No tradicionales (Millones de dólares) | E63: AGE.3.1 | F63: Minerales No Metálicos | G63: Nacional | H63: 2017 | I63: 640.3 | J63: Dolares | K63: INEI: Compendio Estadístico Perú | L63: Instituto Nacional de Estadística e Informatica (INEI) | M63: https://www.inei.gob.pe/biblioteca-virtual/boletines/exportaciones-e-importaciones/1/
A64: 7921 | B64: Economica | C64: EJE 1: ACTIVIDADES ECONÓMICAS PRODUCTIVAS | D64: Exportaciones FOB No tradicionales (Millones de dólares) | E64: AGE.3.1 | F64: Minerales No Metálicos | G64: Nacional | H64: 2018 | I64: 571.8 | J64: Dolares | K64: INEI: Compendio Estadístico Perú | L64: Instituto Nacional de Estadística e Informatica (INEI) | M64: https://www.inei.gob.pe/biblioteca-virtual/boletines/exportaciones-e-importaciones/1/
A65: 7923 | B65: Economica | C65: EJE 1: ACTIVIDADES ECONÓMICAS PRODUCTIVAS | D65: Exportaciones FOB No tradicionales (Millones de dólares) | E65: AGE.3.1 | F65: Pesqueros | G65: Nacional | H65: 2014 | I65: 1155.3 | J65: Dolares | K65: INEI: Compendio Estadístico Perú | L65: Instituto Nacional de Estadística e Informatica (INEI) | M65: https://www.inei.gob.pe/biblioteca-virtual/boletines/exportaciones-e-importaciones/1/
A66: 7924 | B66: Economica | C66: EJE 1: ACTIVIDADES ECONÓMICAS PRODUCTIVAS | D66: Exportaciones FOB No tradicionales (Millones de dólares) | E66: AGE.3.1 | F66: Pesqueros | G66: Nacional | H66: 2015 | I66: 932.6 | J66: Dolares | K66: INEI: Compendio Estadístico Perú | L66: Instituto Nacional de Estadística e Informatica (INEI) | M66: https://www.inei.gob.pe/biblioteca-virtual/boletines/exportaciones-e-importaciones/1/
A67: 7925 | B67: Economica | C67: EJE 1: ACTIVIDADES ECONÓMICAS PRODUCTIVAS | D67: Exportaciones FOB No tradicionales (Millones de dólares) | E67: AGE.3.1 | F67: Pesqueros | G67: Nacional | H67: 2016 | I67: 908.7 | J67: Dolares | K67: INEI: Compendio Estadístico Perú | L67: Instituto Nacional de Estadística e Informatica (INEI) | M67: https://www.inei.gob.pe/biblioteca-virtual/boletines/exportaciones-e-importaciones/1/
A68: 7926 | B68: Economica | C68: EJE 1: ACTIVIDADES ECONÓMICAS PRODUCTIVAS | D68: Exportaciones FOB No tradicionales (Millones de dólares) | E68: AGE.3.1 | F68: Pesqueros | G68: Nacional | H68: 2017 | I68: 908.7 | J68: Dolares | K68: INEI: Compendio Estadístico Perú | L68: Instituto Nacional de Estadística e Informatica (INEI) | M68: https://www.inei.gob.pe/biblioteca-virtual/boletines/exportaciones-e-importaciones/1/
A69: 7927 | B69: Economica | C69: EJE 1: ACTIVIDADES ECONÓMICAS PRODUCTIVAS | D69: Exportaciones FOB No tradicionales (Millones de dólares) | E69: AGE.3.1 | F69: Pesqueros | G69: Nacional | H69: 2018 | I69: 2994.9 | J69: Dolares | K69: INEI: Compendio Estadístico Perú | L69: Instituto Nacional de Estadística e Informatica (INEI) | M69: https://www.inei.gob.pe/biblioteca-virtual/boletines/exportaciones-e-importaciones/1/
A70: 7929 | B70: Economica | C70: EJE 1: ACTIVIDADES ECONÓMICAS PRODUCTIVAS | D70: Exportaciones FOB No tradicionales (Millones de dólares) | E70: AGE.3.1 | F70: Químicos | G70: Nacional | H70: 2014 | I70: 1515 | J70: Dolares | K70: INEI: Compendio Estadístico Perú | L70: Instituto Nacional de Estadística e Informatica (INEI) | M70: https://www.inei.gob.pe/biblioteca-virtual/boletines/exportaciones-e-importaciones/1/
A71: 7930 | B71: Economica | C71: EJE 1: ACTIVIDADES ECONÓMICAS PRODUCTIVAS | D71: Exportaciones FOB No tradicionales (Millones de dólares) | E71: AGE.3.1 | F71: Químicos | G71: Nacional | H71: 2015 | I71: 1405.9 | J71: Dolares | K71: INEI: Compendio Estadístico Perú | L71: Instituto Nacional de Estadística e Informatica (INEI) | M71: https://www.inei.gob.pe/biblioteca-virtual/boletines/exportaciones-e-importaciones/1/
A72: 7931 | B72: Economica | C72: EJE 1: ACTIVIDADES ECONÓMICAS PRODUCTIVAS | D72: Exportaciones FOB No tradicionales (Millones de dólares) | E72: AGE.3.1 | F72: Químicos | G72: Nacional | H72: 2016 | I72: 1341.5 | J72: Dolares | K72: INEI: Compendio Estadístico Perú | L72: Instituto Nacional de Estadística e Informatica (INEI) | M72: https://www.inei.gob.pe/biblioteca-virtual/boletines/exportaciones-e-importaciones/1/
A73: 7932 | B73: Economica | C73: EJE 1: ACTIVIDADES ECONÓMICAS PRODUCTIVAS | D73: Exportaciones FOB No tradicionales (Millones de dólares) | E73: AGE.3.1 | F73: Químicos | G73: Nacional | H73: 2017 | I73: 1341.5 | J73: Dolares | K73: INEI: Compendio Estadístico Perú | L73: Instituto Nacional de Estadística e Informatica (INEI) | M73: https://www.inei.gob.pe/biblioteca-virtual/boletines/exportaciones-e-importaciones/1/
A74: 7933 | B74: Economica | C74: EJE 1: ACTIVIDADES ECONÓMICAS PRODUCTIVAS | D74: Exportaciones FOB No tradicionales (Millones de dólares) | E74: AGE.3.1 | F74: Químicos | G74: Nacional | H74: 2018 | I74: 1333.2 | J74: Dolares | K74: INEI: Compendio Estadístico Perú | L74: Instituto Nacional de Estadística e Informatica (INEI) | M74: https://www.inei.gob.pe/biblioteca-virtual/boletines/exportaciones-e-importaciones/1/
A75: 7935 | B75: Economica | C75: EJE 1: ACTIVIDADES ECONÓMICAS PRODUCTIVAS | D75: Exportaciones FOB No tradicionales (Millones de dólares) | E75: AGE.3.1 | F75: Sidero-Metalúrgicos y Joyería | G75: Nacional | H75: 2014 | I75: 1148.5 | J75: Dolares | K75: INEI: Compendio Estadístico Perú | L75: Instituto Nacional de Estadística e Informatica (INEI) | M75: https://www.inei.gob.pe/biblioteca-virtual/boletines/exportaciones-e-importaciones/1/
A76: 7936 | B76: Economica | C76: EJE 1: ACTIVIDADES ECONÓMICAS PRODUCTIVAS | D76: Exportaciones FOB No tradicionales (Millones de dólares) | E76: AGE.3.1 | F76: Sidero-Metalúrgicos y Joyería | G76: Nacional | H76: 2015 | I76: 1080.6 | J76: Dolares | K76: INEI: Compendio Estadístico Perú | L76: Instituto Nacional de Estadística e Informatica (INEI) | M76: https://www.inei.gob.pe/biblioteca-virtual/boletines/exportaciones-e-importaciones/1/
A77: 7937 | B77: Economica | C77: EJE 1: ACTIVIDADES ECONÓMICAS PRODUCTIVAS | D77: Exportaciones FOB No tradicionales (Millones de dólares) | E77: AGE.3.1 | F77: Sidero-Metalúrgicos y Joyería | G77: Nacional | H77: 2016 | I77: 1084.1 | J77: Dolares | K77: INEI: Compendio Estadístico Perú | L77: Instituto Nacional de Estadística e Informatica (INEI) | M77: https://www.inei.gob.pe/biblioteca-virtual/boletines/exportaciones-e-importaciones/1/
A78: 7938 | B78: Economica | C78: EJE 1: ACTIVIDADES ECONÓMICAS PRODUCTIVAS | D78: Exportaciones FOB No tradicionales (Millones de dólares) | E78: AGE.3.1 | F78: Sidero-Metalúrgicos y Joyería | G78: Nacional | H78: 2017 | I78: 1084.1 | J78: Dolares | K78: INEI: Compendio Estadístico Perú | L78: Instituto Nacional de Estadística e Informatica (INEI) | M78: https://www.inei.gob.pe/biblioteca-virtual/boletines/exportaciones-e-importaciones/1/
A79: 7939 | B79: Economica | C79: EJE 1: ACTIVIDADES ECONÓMICAS PRODUCTIVAS | D79: Exportaciones FOB No tradicionales (Millones de dólares) | E79: AGE.3.1 | F79: Sidero-Metalúrgicos y Joyería | G79: Nacional | H79: 2018 | I79: 1294.2 | J79: Dolares | K79: INEI: Compendio Estadístico Perú | L79: Instituto Nacional de Estadística e Informatica (INEI) | M79: https://www.inei.gob.pe/biblioteca-virtual/boletines/exportaciones-e-importaciones/1/
A80: 7941 | B80: Economica | C80: EJE 1: ACTIVIDADES ECONÓMICAS PRODUCTIVAS | D80: Exportaciones FOB No tradicionales (Millones de dólares) | E80: AGE.3.1 | F80: Textiles | G80: Nacional | H80: 2014 | I80: 1800.2 | J80: Dolares | K80: INEI: Compendio Estadístico Perú | L80: Instituto Nacional de Estadística e Informatica (INEI) | M80: https://www.inei.gob.pe/biblioteca-virtual/boletines/exportaciones-e-importaciones/1/
A81: 7942 | B81: Economica | C81: EJE 1: ACTIVIDADES ECONÓMICAS PRODUCTIVAS | D81: Exportaciones FOB No tradicionales (Millones de dólares) | E81: AGE.3.1 | F81: Textiles | G81: Nacional | H81: 2015 | I81: 1331.2 | J81: Dolares | K81: INEI: Compendio Estadístico Perú | L81: Instituto Nacional de Estadística e Informatica (INEI) | M81: https://www.inei.gob.pe/biblioteca-virtual/boletines/exportaciones-e-importaciones/1/
A82: 7943 | B82: Economica | C82: EJE 1: ACTIVIDADES ECONÓMICAS PRODUCTIVAS | D82: Exportaciones FOB No tradicionales (Millones de dólares) | E82: AGE.3.1 | F82: Textiles | G82: Nacional | H82: 2016 | I82: 1196.1 | J82: Dolares | K82: INEI: Compendio Estadístico Perú | L82: Instituto Nacional de Estadística e Informatica (INEI) | M82: https://www.inei.gob.pe/biblioteca-virtual/boletines/exportaciones-e-importaciones/1/
A83: 7944 | B83: Economica | C83: EJE 1: ACTIVIDADES ECONÓMICAS PRODUCTIVAS | D83: Exportaciones FOB No tradicionales (Millones de dólares) | E83: AGE.3.1 | F83: Textiles | G83: Nacional | H83: 2017 | I83: 1196.1 | J83: Dolares | K83: INEI: Compendio Estadístico Perú | L83: Instituto Nacional de Estadística e Informatica (INEI) | M83: https://www.inei.gob.pe/biblioteca-virtual/boletines/exportaciones-e-importaciones/1/
A84: 7945 | B84: Economica | C84: EJE 1: ACTIVIDADES ECONÓMICAS PRODUCTIVAS | D84: Exportaciones FOB No tradicionales (Millones de dólares) | E84: AGE.3.1 | F84: Textiles | G84: Nacional | H84: 2018 | I84: 1058.2 | J84: Dolares | K84: INEI: Compendio Estadístico Perú | L84: Instituto Nacional de Estadística e Informatica (INEI) | M84: https://www.inei.gob.pe/biblioteca-virtual/boletines/exportaciones-e-importaciones/1/
A85: 7947 | B85: Economica | C85: EJE 1: ACTIVIDADES ECONÓMICAS PRODUCTIVAS | D85: Exportaciones FOB No tradicionales (Millones de dólares) | E85: AGE.3.1 | F85: Valor Total | G85: Nacional | H85: 2014 | I85: 11676.5 | J85: Dolares | K85: INEI: Compendio Estadístico Perú | L85: Instituto Nacional de Estadística e Informatica (INEI) | M85: https://www.inei.gob.pe/biblioteca-virtual/boletines/exportaciones-e-importaciones/1/
A86: 7948 | B86: Economica | C86: EJE 1: ACTIVIDADES ECONÓMICAS PRODUCTIVAS | D86: Exportaciones FOB No tradicionales (Millones de dólares) | E86: AGE.3.1 | F86: Valor Total | G86: Nacional | H86: 2015 | I86: 10894.6 | J86: Dolares | K86: INEI: Compendio Estadístico Perú | L86: Instituto Nacional de Estadística e Informatica (INEI) | M86: https://www.inei.gob.pe/biblioteca-virtual/boletines/exportaciones-e-importaciones/1/
A87: 7949 | B87: Economica | C87: EJE 1: ACTIVIDADES ECONÓMICAS PRODUCTIVAS | D87: Exportaciones FOB No tradicionales (Millones de dólares) | E87: AGE.3.1 | F87: Valor Total | G87: Nacional | H87: 2016 | I87: 10782.5 | J87: Dolares | K87: INEI: Compendio Estadístico Perú | L87: Instituto Nacional de Estadística e Informatica (INEI) | M87: https://www.inei.gob.pe/biblioteca-virtual/boletines/exportaciones-e-importaciones/1/
A88: 7950 | B88: Economica | C88: EJE 1: ACTIVIDADES ECONÓMICAS PRODUCTIVAS | D88: Exportaciones FOB No tradicionales (Millones de dólares) | E88: AGE.3.1 | F88: Valor Total | G88: Nacional | H88: 2017 | I88: 10782.5 | J88: Dolares | K88: INEI: Compendio Estadístico Perú | L88: Instituto Nacional de Estadística e Informatica (INEI) | M88: https://www.inei.gob.pe/biblioteca-virtual/boletines/exportaciones-e-importaciones/1/
A89: 7951 | B89: Economica | C89: EJE 1: ACTIVIDADES ECONÓMICAS PRODUCTIVAS | D89: Exportaciones FOB No tradicionales (Millones de dólares) | E89: AGE.3.1 | F89: Valor Total | G89: Nacional | H89: 2018 | I89: 13297.2 | J89: Dolares | K89: INEI: Compendio Estadístico Perú | L89: Instituto Nacional de Estadística e Informatica (INEI) | M89: https://www.inei.gob.pe/biblioteca-virtual/boletines/exportaciones-e-importaciones/1/
A90: 7899 | B90: Economica | C90: EJE 1: ACTIVIDADES ECONÓMICAS PRODUCTIVAS | D90: Exportaciones FOB No tradicionales (Millones de dólares) | E90: AGE.3.1 | F90: Agropecuarios | G90: Nacional | H90: 2019 | I90: 5379.3 | J90: Dolares | K90: INEI: Compendio Estadístico Perú | L90: Instituto Nacional de Estadística e Informatica (INEI) | M90: https://www.inei.gob.pe/biblioteca-virtual/boletines/exportaciones-e-importaciones/1/
A91: 7900 | B91: Economica | C91: EJE 1: ACTIVIDADES ECONÓMICAS PRODUCTIVAS | D91: Exportaciones FOB No tradicionales (Millones de dólares) | E91: AGE.3.1 | F91: Agropecuarios | G91: Nacional | H91: 2020 | I91: 5440 | J91: Dolares | K91: INEI: Compendio Estadístico Perú | L91: Instituto Nacional de Estadística e Informatica (INEI) | M91: https://www.inei.gob.pe/biblioteca-virtual/boletines/exportaciones-e-importaciones/1/
A92: 7901 | B92: Economica | C92: EJE 1: ACTIVIDADES ECONÓMICAS PRODUCTIVAS | D92: Exportaciones FOB No tradicionales (Millones de dólares) | E92: AGE.3.1 | F92: Agropecuarios | G92: Nacional | H92: 2021 | I92: 5412.2 | J92: Dolares | K92: INEI: Compendio Estadístico Perú | L92: Instituto Nacional de Estadística e Informatica (INEI) | M92: https://www.inei.gob.pe/biblioteca-virtual/boletines/exportaciones-e-importaciones/1/
A93: 7905 | B93: Economica | C93: EJE 1: ACTIVIDADES ECONÓMICAS PRODUCTIVAS | D93: Exportaciones FOB No tradicionales (Millones de dólares) | E93: AGE.3.1 | F93: Maderas y Papeles y sus Manufacturas | G93: Nacional | H93: 2019 | I93: 482.6 | J93: Dolares | K93: INEI: Compendio Estadístico Perú | L93: Instituto Nacional de Estadística e Informatica (INEI) | M93: https://www.inei.gob.pe/biblioteca-virtual/boletines/exportaciones-e-importaciones/1/
A94: 7906 | B94: Economica | C94: EJE 1: ACTIVIDADES ECONÓMICAS PRODUCTIVAS | D94: Exportaciones FOB No tradicionales (Millones de dólares) | E94: AGE.3.1 | F94: Maderas y Papeles y sus Manufacturas | G94: Nacional | H94: 2020 | I94: 329 | J94: Dolares | K94: INEI: Compendio Estadístico Perú | L94: Instituto Nacional de Estadística e Informatica (INEI) | M94: https://www.inei.gob.pe/biblioteca-virtual/boletines/exportaciones-e-importaciones/1/
A95: 7907 | B95: Economica | C95: EJE 1: ACTIVIDADES ECONÓMICAS PRODUCTIVAS | D95: Exportaciones FOB No tradicionales (Millones de dólares) | E95: AGE.3.1 | F95: Maderas y Papeles y sus Manufacturas | G95: Nacional | H95: 2021 | I95: 328.7 | J95: Dolares | K95: INEI: Compendio Estadístico Perú | L95: Instituto Nacional de Estadística e Informatica (INEI) | M95: https://www.inei.gob.pe/biblioteca-virtual/boletines/exportaciones-e-importaciones/1/
A96: 7911 | B96: Economica | C96: EJE 1: ACTIVIDADES ECONÓMICAS PRODUCTIVAS | D96: Exportaciones FOB No tradicionales (Millones de dólares) | E96: AGE.3.1 | F96: Metal-Mecánicos | G96: Nacional | H96: 2019 | I96: 572 | J96: Dolares | K96: INEI: Compendio Estadístico Perú | L96: Instituto Nacional de Estadística e Informatica (INEI) | M96: https://www.inei.gob.pe/biblioteca-virtual/boletines/exportaciones-e-importaciones/1/
A97: 7912 | B97: Economica | C97: EJE 1: ACTIVIDADES ECONÓMICAS PRODUCTIVAS | D97: Exportaciones FOB No tradicionales (Millones de dólares) | E97: AGE.3.1 | F97: Metal-Mecánicos | G97: Nacional | H97: 2020 | I97: 471 | J97: Dolares | K97: INEI: Compendio Estadístico Perú | L97: Instituto Nacional de Estadística e Informatica (INEI) | M97: https://www.inei.gob.pe/biblioteca-virtual/boletines/exportaciones-e-importaciones/1/
A98: 7913 | B98: Economica | C98: EJE 1: ACTIVIDADES ECONÓMICAS PRODUCTIVAS | D98: Exportaciones FOB No tradicionales (Millones de dólares) | E98: AGE.3.1 | F98: Metal-Mecánicos | G98: Nacional | H98: 2021 | I98: 475.9 | J98: Dolares | K98: INEI: Compendio Estadístico Perú | L98: Instituto Nacional de Estadística e Informatica (INEI) | M98: https://www.inei.gob.pe/biblioteca-virtual/boletines/exportaciones-e-importaciones/1/
A99: 7917 | B99: Economica | C99: EJE 1: ACTIVIDADES ECONÓMICAS PRODUCTIVAS | D99: Exportaciones FOB No tradicionales (Millones de dólares) | E99: AGE.3.1 | F99: Minerales No Metálicos | G99: Nacional | H99: 2019 | I99: 583.7 | J99: Dolares | K99: INEI: Compendio Estadístico Perú | L99: Instituto Nacional de Estadística e Informatica (INEI) | M99: https://www.inei.gob.pe/biblioteca-virtual/boletines/exportaciones-e-importaciones/1/
A100: 7918 | B100: Economica | C100: EJE 1: ACTIVIDADES ECONÓMICAS PRODUCTIVAS | D100: Exportaciones FOB No tradicionales (Millones de dólares) | E100: AGE.3.1 | F100: Minerales No Metálicos | G100: Nacional | H100: 2020 | I100: 413 | J100: Dolares | K100: INEI: Compendio Estadístico Perú | L100: Instituto Nacional de Estadística e Informatica (INEI) | M100: https://www.inei.gob.pe/biblioteca-virtual/boletines/exportaciones-e-importaciones/1/
A101: 7919 | B101: Economica | C101: EJE 1: ACTIVIDADES ECONÓMICAS PRODUCTIVAS | D101: Exportaciones FOB No tradicionales (Millones de dólares) | E101: AGE.3.1 | F101: Minerales No Metálicos | G101: Nacional | H101: 2021 | I101: 412.9 | J101: Dolares | K101: INEI: Compendio Estadístico Perú | L101: Instituto Nacional de Estadística e Informatica (INEI) | M101: https://www.inei.gob.pe/biblioteca-virtual/boletines/exportaciones-e-importaciones/1/
A102: 7923 | B102: Economica | C102: EJE 1: ACTIVIDADES ECONÓMICAS PRODUCTIVAS | D102: Exportaciones FOB No tradicionales (Millones de dólares) | E102: AGE.3.1 | F102: Pesqueros | G102: Nacional | H102: 2019 | I102: 3854.6 | J102: Dolares | K102: INEI: Compendio Estadístico Perú | L102: Instituto Nacional de Estadística e Informatica (INEI) | M102: https://www.inei.gob.pe/biblioteca-virtual/boletines/exportaciones-e-importaciones/1/
A103: 7924 | B103: Economica | C103: EJE 1: ACTIVIDADES ECONÓMICAS PRODUCTIVAS | D103: Exportaciones FOB No tradicionales (Millones de dólares) | E103: AGE.3.1 | F103: Pesqueros | G103: Nacional | H103: 2020 | I103: 949 | J103: Dolares | K103: INEI: Compendio Estadístico Perú | L103: Instituto Nacional de Estadística e Informatica (INEI) | M103: https://www.inei.gob.pe/biblioteca-virtual/boletines/exportaciones-e-importaciones/1/
A104: 7925 | B104: Economica | C104: EJE 1: ACTIVIDADES ECONÓMICAS PRODUCTIVAS | D104: Exportaciones FOB No tradicionales (Millones de dólares) | E104: AGE.3.1 | F104: Pesqueros | G104: Nacional | H104: 2021 | I104: 947.2 | J104: Dolares | K104: INEI: Compendio Estadístico Perú | L104: Instituto Nacional de Estadística e Informatica (INEI) | M104: https://www.inei.gob.pe/biblioteca-virtual/boletines/exportaciones-e-importaciones/1/
A105: 7929 | B105: Economica | C105: EJE 1: ACTIVIDADES ECONÓMICAS PRODUCTIVAS | D105: Exportaciones FOB No tradicionales (Millones de dólares) | E105: AGE.3.1 | F105: Químicos | G105: Nacional | H105: 2019 | I105: 1441.3 | J105: Dolares | K105: INEI: Compendio Estadístico Perú | L105: Instituto Nacional de Estadística e Informatica (INEI) | M105: https://www.inei.gob.pe/biblioteca-virtual/boletines/exportaciones-e-importaciones/1/
A106: 7930 | B106: Economica | C106: EJE 1: ACTIVIDADES ECONÓMICAS PRODUCTIVAS | D106: Exportaciones FOB No tradicionales (Millones de dólares) | E106: AGE.3.1 | F106: Químicos | G106: Nacional | H106: 2020 | I106: 1455 | J106: Dolares | K106: INEI: Compendio Estadístico Perú | L106: Instituto Nacional de Estadística e Informatica (INEI) | M106: https://www.inei.gob.pe/biblioteca-virtual/boletines/exportaciones-e-importaciones/1/
A107: 7931 | B107: Economica | C107: EJE 1: ACTIVIDADES ECONÓMICAS PRODUCTIVAS | D107: Exportaciones FOB No tradicionales (Millones de dólares) | E107: AGE.3.1 | F107: Químicos | G107: Nacional | H107: 2021 | I107: 1462.6 | J107: Dolares | K107: INEI: Compendio Estadístico Perú | L107: Instituto Nacional de Estadística e Informatica (INEI) | M107: https://www.inei.gob.pe/biblioteca-virtual/boletines/exportaciones-e-importaciones/1/
A108: 7935 | B108: Economica | C108: EJE 1: ACTIVIDADES ECONÓMICAS PRODUCTIVAS | D108: Exportaciones FOB No tradicionales (Millones de dólares) | E108: AGE.3.1 | F108: Sidero-Metalúrgicos y Joyería | G108: Nacional | H108: 2019 | I108: 1252.3 | J108: Dolares | K108: INEI: Compendio Estadístico Perú | L108: Instituto Nacional de Estadística e Informatica (INEI) | M108: https://www.inei.gob.pe/biblioteca-virtual/boletines/exportaciones-e-importaciones/1/
A109: 7936 | B109: Economica | C109: EJE 1: ACTIVIDADES ECONÓMICAS PRODUCTIVAS | D109: Exportaciones FOB No tradicionales (Millones de dólares) | E109: AGE.3.1 | F109: Sidero-Metalúrgicos y Joyería | G109: Nacional | H109: 2020 | I109: 949 | J109: Dolares | K109: INEI: Compendio Estadístico Perú | L109: Instituto Nacional de Estadística e Informatica (INEI) | M109: https://www.inei.gob.pe/biblioteca-virtual/boletines/exportaciones-e-importaciones/1/
A110: 7937 | B110: Economica | C110: EJE 1: ACTIVIDADES ECONÓMICAS PRODUCTIVAS | D110: Exportaciones FOB No tradicionales (Millones de dólares) | E110: AGE.3.1 | F110: Sidero-Metalúrgicos y Joyería | G110: Nacional | H110: 2021 | I110: 947.5 | J110: Dolares | K110: INEI: Compendio Estadístico Perú | L110: Instituto Nacional de Estadística e Informatica (INEI) | M110: https://www.inei.gob.pe/biblioteca-virtual/boletines/exportaciones-e-importaciones/1/
A111: 7941 | B111: Economica | C111: EJE 1: ACTIVIDADES ECONÓMICAS PRODUCTIVAS | D111: Exportaciones FOB No tradicionales (Millones de dólares) | E111: AGE.3.1 | F111: Textiles | G111: Nacional | H111: 2019 | I111: 1080 | J111: Dolares | K111: INEI: Compendio Estadístico Perú | L111: Instituto Nacional de Estadística e Informatica (INEI) | M111: https://www.inei.gob.pe/biblioteca-virtual/boletines/exportaciones-e-importaciones/1/
A112: 7942 | B112: Economica | C112: EJE 1: ACTIVIDADES ECONÓMICAS PRODUCTIVAS | D112: Exportaciones FOB No tradicionales (Millones de dólares) | E112: AGE.3.1 | F112: Textiles | G112: Nacional | H112: 2020 | I112: 833 | J112: Dolares | K112: INEI: Compendio Estadístico Perú | L112: Instituto Nacional de Estadística e Informatica (INEI) | M112: https://www.inei.gob.pe/biblioteca-virtual/boletines/exportaciones-e-importaciones/1/
A113: 7943 | B113: Economica | C113: EJE 1: ACTIVIDADES ECONÓMICAS PRODUCTIVAS | D113: Exportaciones FOB No tradicionales (Millones de dólares) | E113: AGE.3.1 | F113: Textiles | G113: Nacional | H113: 2021 | I113: 830.6 | J113: Dolares | K113: INEI: Compendio Estadístico Perú | L113: Instituto Nacional de Estadística e Informatica (INEI) | M113: https://www.inei.gob.pe/biblioteca-virtual/boletines/exportaciones-e-importaciones/1/
A114: 7947 | B114: Economica | C114: EJE 1: ACTIVIDADES ECONÓMICAS PRODUCTIVAS | D114: Exportaciones FOB No tradicionales (Millones de dólares) | E114: AGE.3.1 | F114: Valor Total | G114: Nacional | H114: 2019 | I114: 14645.8 | J114: Dolares | K114: INEI: Compendio Estadístico Perú | L114: Instituto Nacional de Estadística e Informatica (INEI) | M114: https://www.inei.gob.pe/biblioteca-virtual/boletines/exportaciones-e-importaciones/1/
A115: 7948 | B115: Economica | C115: EJE 1: ACTIVIDADES ECONÓMICAS PRODUCTIVAS | D115: Exportaciones FOB No tradicionales (Millones de dólares) | E115: AGE.3.1 | F115: Valor Total | G115: Nacional | H115: 2020 | I115: 10839 | J115: Dolares | K115: INEI: Compendio Estadístico Perú | L115: Instituto Nacional de Estadística e Informatica (INEI) | M115: https://www.inei.gob.pe/biblioteca-virtual/boletines/exportaciones-e-importaciones/1/
A116: 7949 | B116: Economica | C116: EJE 1: ACTIVIDADES ECONÓMICAS PRODUCTIVAS | D116: Exportaciones FOB No tradicionales (Millones de dólares) | E116: AGE.3.1 | F116: Valor Total | G116: Nacional | H116: 2021 | I116: 10817.6 | J116: Dolares | K116: INEI: Compendio Estadístico Perú | L116: Instituto Nacional de Estadística e Informatica (INEI) | M116: https://www.inei.gob.pe/biblioteca-virtual/boletines/exportaciones-e-importaciones/1/
A117: 7954 | B117: Economica | C117: EJE 1: ACTIVIDADES ECONÓMICAS PRODUCTIVAS | D117: Número de institiciones acreditadas para realizar la certificación de origen y calidad. | E117: AGE.4.1 | F117: Entidades | G117: Nacional | H117: 2014 | I117: 10 | J117: Instituciones | K117: Ministerio de Comercio Exterior y Turismo - MINCETUR | L117: Ministerio de Comercio Exterior y Turismo - MINCETUR | M117: https://www.gob.pe/mincetur
A118: 7955 | B118: Economica | C118: EJE 1: ACTIVIDADES ECONÓMICAS PRODUCTIVAS | D118: Número de institiciones acreditadas para realizar la certificación de origen y calidad. | E118: AGE.4.1 | F118: Entidades | G118: Nacional | H118: 2015 | I118: Sin datos | J118: Instituciones | K118: Ministerio de Comercio Exterior y Turismo - MINCETUR | L118: Ministerio de Comercio Exterior y Turismo - MINCETUR | M118: https://www.gob.pe/mincetur
A119: 7956 | B119: Economica | C119: EJE 1: ACTIVIDADES ECONÓMICAS PRODUCTIVAS | D119: Número de institiciones acreditadas para realizar la certificación de origen y calidad. | E119: AGE.4.1 | F119: Entidades | G119: Nacional | H119: 2016 | I119: Sin datos | J119: Instituciones | K119: Ministerio de Comercio Exterior y Turismo - MINCETUR | L119: Ministerio de Comercio Exterior y Turismo - MINCETUR | M119: https://www.gob.pe/mincetur
A120: 7957 | B120: Economica | C120: EJE 1: ACTIVIDADES ECONÓMICAS PRODUCTIVAS | D120: Número de institiciones acreditadas para realizar la certificación de origen y calidad. | E120: AGE.4.1 | F120: Entidades | G120: Nacional | H120: 2017 | I120: Sin datos | J120: Instituciones | K120: Ministerio de Comercio Exterior y Turismo - MINCETUR | L120: Ministerio de Comercio Exterior y Turismo - MINCETUR | M120: https://www.gob.pe/mincetur
A121: 7958 | B121: Economica | C121: EJE 1: ACTIVIDADES ECONÓMICAS PRODUCTIVAS | D121: Número de institiciones acreditadas para realizar la certificación de origen y calidad. | E121: AGE.4.1 | F121: Entidades | G121: Nacional | H121: 2018 | I121: 21 | J121: Instituciones | K121: Ministerio de Comercio Exterior y Turismo - MINCETUR | L121: Ministerio de Comercio Exterior y Turismo - MINCETUR | M121: https://www.gob.pe/mincetur
A122: 7958 | B122: Economica | C122: EJE 1: ACTIVIDADES ECONÓMICAS PRODUCTIVAS | D122: Número de institiciones acreditadas para realizar la certificación de origen y calidad. | E122: AGE.4.1 | F122: Entidades | G122: Nacional | H122: 2019 | I122: 21 | J122: Instituciones | K122: Ministerio de Comercio Exterior y Turismo - MINCETUR | L122: Ministerio de Comercio Exterior y Turismo - MINCETUR | M122: https://www.gob.pe/mincetur
A123: 7958 | B123: Economica | C123: EJE 1: ACTIVIDADES ECONÓMICAS PRODUCTIVAS | D123: Número de institiciones acreditadas para realizar la certificación de origen y calidad. | E123: AGE.4.1 | F123: Entidades | G123: Nacional | H123: 2020 | I123: 21 | J123: Instituciones | K123: Ministerio de Comercio Exterior y Turismo - MINCETUR | L123: Ministerio de Comercio Exterior y Turismo - MINCETUR | M123: https://www.gob.pe/mincetur
A124: 7958 | B124: Economica | C124: EJE 1: ACTIVIDADES ECONÓMICAS PRODUCTIVAS | D124: Número de institiciones acreditadas para realizar la certificación de origen y calidad. | E124: AGE.4.1 | F124: Entidades | G124: Nacional | H124: 2021 | I124: 22 | J124: Instituciones | K124: Ministerio de Comercio Exterior y Turismo - MINCETUR | L124: Ministerio de Comercio Exterior y Turismo - MINCETUR | M124: https://www.gob.pe/mincetur
A125: 7960 | B125: Economica | C125: EJE 1: ACTIVIDADES ECONÓMICAS PRODUCTIVAS | D125: Plan Nacional y planes regionales aprobados y con financiamiento. para la promoción y sostenimiento de las unidades económicas urbanas de pequeña escala. | E125: AGE.5.1 | F125: Plan Nacional | G125: Nacional | H125: 2014 | I125: Sin datos | J125: Planes | K125: No determinado | L125: No determinado | M125: No determinado
A126: 7961 | B126: Economica | C126: EJE 1: ACTIVIDADES ECONÓMICAS PRODUCTIVAS | D126: Plan Nacional y planes regionales aprobados y con financiamiento. para la promoción y sostenimiento de las unidades económicas urbanas de pequeña escala. | E126: AGE.5.1 | F126: Plan Nacional | G126: Nacional | H126: 2015 | I126: Sin datos | J126: Planes | K126: No determinado | L126: No determinado | M126: No determinado
A127: 7962 | B127: Economica | C127: EJE 1: ACTIVIDADES ECONÓMICAS PRODUCTIVAS | D127: Plan Nacional y planes regionales aprobados y con financiamiento. para la promoción y sostenimiento de las unidades económicas urbanas de pequeña escala. | E127: AGE.5.1 | F127: Plan Nacional | G127: Nacional | H127: 2016 | I127: Sin datos | J127: Planes | K127: No determinado | L127: No determinado | M127: No determinado
A128: 7963 | B128: Economica | C128: EJE 1: ACTIVIDADES ECONÓMICAS PRODUCTIVAS | D128: Plan Nacional y planes regionales aprobados y con financiamiento. para la promoción y sostenimiento de las unidades económicas urbanas de pequeña escala. | E128: AGE.5.1 | F128: Plan Nacional | G128: Nacional | H128: 2017 | I128: Sin datos | J128: Planes | K128: No determinado | L128: No determinado | M128: No determinado
A129: 7964 | B129: Economica | C129: EJE 1: ACTIVIDADES ECONÓMICAS PRODUCTIVAS | D129: Plan Nacional y planes regionales aprobados y con financiamiento. para la promoción y sostenimiento de las unidades económicas urbanas de pequeña escala. | E129: AGE.5.1 | F129: Plan Nacional | G129: Nacional | H129: 2018 | I129: Sin datos | J129: Planes | K129: No determinado | L129: No determinado | M129: No determinado
A130: 7966 | B130: Economica | C130: EJE 1: ACTIVIDADES ECONÓMICAS PRODUCTIVAS | D130: Plan Nacional y planes regionales aprobados y con financiamiento. para la promoción y sostenimiento de las unidades económicas urbanas de pequeña escala. | E130: AGE.5.1 | F130: Planes Regionales implementados y con financiamiento | G130: Nacional | H130: 2014 | I130: Sin datos | J130: Planes | K130: No determinado | L130: No determinado | M130: No determinado
A131: 7967 | B131: Economica | C131: EJE 1: ACTIVIDADES ECONÓMICAS PRODUCTIVAS | D131: Plan Nacional y planes regionales aprobados y con financiamiento. para la promoción y sostenimiento de las unidades económicas urbanas de pequeña escala. | E131: AGE.5.1 | F131: Planes Regionales implementados y con financiamiento | G131: Nacional | H131: 2015 | I131: Sin datos | J131: Planes | K131: No determinado | L131: No determinado | M131: No determinado
A132: 7968 | B132: Economica | C132: EJE 1: ACTIVIDADES ECONÓMICAS PRODUCTIVAS | D132: Plan Nacional y planes regionales aprobados y con financiamiento. para la promoción y sostenimiento de las unidades económicas urbanas de pequeña escala. | E132: AGE.5.1 | F132: Planes Regionales implementados y con financiamiento | G132: Nacional | H132: 2016 | I132: Sin datos | J132: Planes | K132: No determinado | L132: No determinado | M132: No determinado
A133: 7969 | B133: Economica | C133: EJE 1: ACTIVIDADES ECONÓMICAS PRODUCTIVAS | D133: Plan Nacional y planes regionales aprobados y con financiamiento. para la promoción y sostenimiento de las unidades económicas urbanas de pequeña escala. | E133: AGE.5.1 | F133: Planes Regionales implementados y con financiamiento | G133: Nacional | H133: 2017 | I133: Sin datos | J133: Planes | K133: No determinado | L133: No determinado | M133: No determinado
A134: 7970 | B134: Economica | C134: EJE 1: ACTIVIDADES ECONÓMICAS PRODUCTIVAS | D134: Plan Nacional y planes regionales aprobados y con financiamiento. para la promoción y sostenimiento de las unidades económicas urbanas de pequeña escala. | E134: AGE.5.1 | F134: Planes Regionales implementados y con financiamiento | G134: Nacional | H134: 2018 | I134: Sin datos | J134: Planes | K134: No determinado | L134: No determinado | M134: No determinado
A135: 7972 | B135: Economica | C135: EJE 1: ACTIVIDADES ECONÓMICAS PRODUCTIVAS | D135: Asistencia técnica permanente para su capitalización y diversificación productiva. | E135: AGE.6.1 | F135: Informes | G135: Nacional | H135: 2014 | I135: Sin datos | J135: Informes | K135: Ministerio de la Producción - PRODUCE / Ministerio de Comercio Exterior y Turismo - MINCETUR / Ministerio de Agricultura y Riego - MINAGRI | L135: Ministerio de la Producción - PRODUCE | M135: https://www.gob.pe/produce | O135: No se presentan datos
A136: 7973 | B136: Economica | C136: EJE 1: ACTIVIDADES ECONÓMICAS PRODUCTIVAS | D136: Asistencia técnica permanente para su capitalización y diversificación productiva. | E136: AGE.6.1 | F136: Informes | G136: Nacional | H136: 2015 | I136: Sin datos | J136: Informes | K136: Ministerio de la Producción - PRODUCE / Ministerio de Comercio Exterior y Turismo - MINCETUR / Ministerio de Agricultura y Riego - MINAGRI | L136: Ministerio de la Producción - PRODUCE | M136: https://www.gob.pe/produce
A137: 7974 | B137: Economica | C137: EJE 1: ACTIVIDADES ECONÓMICAS PRODUCTIVAS | D137: Asistencia técnica permanente para su capitalización y diversificación productiva. | E137: AGE.6.1 | F137: Informes | G137: Nacional | H137: 2016 | I137: Sin datos | J137: Informes | K137: Ministerio de la Producción - PRODUCE / Ministerio de Comercio Exterior y Turismo - MINCETUR / Ministerio de Agricultura y Riego - MINAGRI | L137: Ministerio de la Producción - PRODUCE | M137: https://www.gob.pe/produce
A138: 7975 | B138: Economica | C138: EJE 1: ACTIVIDADES ECONÓMICAS PRODUCTIVAS | D138: Asistencia técnica permanente para su capitalización y diversificación productiva. | E138: AGE.6.1 | F138: Informes | G138: Nacional | H138: 2017 | I138: Sin datos | J138: Informes | K138: Ministerio de la Producción - PRODUCE / Ministerio de Comercio Exterior y Turismo - MINCETUR / Ministerio de Agricultura y Riego - MINAGRI | L138: Ministerio de la Producción - PRODUCE | M138: https://www.gob.pe/produce
A139: 7976 | B139: Economica | C139: EJE 1: ACTIVIDADES ECONÓMICAS PRODUCTIVAS | D139: Asistencia técnica permanente para su capitalización y diversificación productiva. | E139: AGE.6.1 | F139: Informes | G139: Nacional | H139: 2018 | I139: Sin datos | J139: Informes | K139: Ministerio de la Producción - PRODUCE / Ministerio de Comercio Exterior y Turismo - MINCETUR / Ministerio de Agricultura y Riego - MINAGRI | L139: Ministerio de la Producción - PRODUCE | M139: https://www.gob.pe/produce
A140: 7978 | B140: Economica | C140: EJE 1: ACTIVIDADES ECONÓMICAS PRODUCTIVAS | D140: Acceso a financiamiento | E140: AGE.6.2 | F140: Reportes | G140: Nacional | H140: 2014 | I140: Sin datos | J140: Financiamiento | K140: Ministerio de la Producción - PRODUCE / Ministerio de Comercio Exterior y Turismo - MINCETUR / Ministerio de Agricultura y Riego - MINAGRI / COFIDE | L140: Ministerio de la Producción - PRODUCE | M140: https://www.gob.pe/produce | O140: No se presentan datos
A141: 7979 | B141: Economica | C141: EJE 1: ACTIVIDADES ECONÓMICAS PRODUCTIVAS | D141: Acceso a financiamiento | E141: AGE.6.2 | F141: Reportes | G141: Nacional | H141: 2015 | I141: Sin datos | J141: Financiamiento | K141: Ministerio de la Producción - PRODUCE / Ministerio de Comercio Exterior y Turismo - MINCETUR / Ministerio de Agricultura y Riego - MINAGRI / COFIDE | L141: Ministerio de la Producción - PRODUCE | M141: https://www.gob.pe/produce
A142: 7980 | B142: Economica | C142: EJE 1: ACTIVIDADES ECONÓMICAS PRODUCTIVAS | D142: Acceso a financiamiento | E142: AGE.6.2 | F142: Reportes | G142: Nacional | H142: 2016 | I142: Sin datos | J142: Financiamiento | K142: Ministerio de la Producción - PRODUCE / Ministerio de Comercio Exterior y Turismo - MINCETUR / Ministerio de Agricultura y Riego - MINAGRI / COFIDE | L142: Ministerio de la Producción - PRODUCE | M142: https://www.gob.pe/produce
A143: 7981 | B143: Economica | C143: EJE 1: ACTIVIDADES ECONÓMICAS PRODUCTIVAS | D143: Acceso a financiamiento | E143: AGE.6.2 | F143: Reportes | G143: Nacional | H143: 2017 | I143: Sin datos | J143: Financiamiento | K143: Ministerio de la Producción - PRODUCE / Ministerio de Comercio Exterior y Turismo - MINCETUR / Ministerio de Agricultura y Riego - MINAGRI / COFIDE | L143: Ministerio de la Producción - PRODUCE | M143: https://www.gob.pe/produce
A144: 7982 | B144: Economica | C144: EJE 1: ACTIVIDADES ECONÓMICAS PRODUCTIVAS | D144: Acceso a financiamiento | E144: AGE.6.2 | F144: Reportes | G144: Nacional | H144: 2018 | I144: Sin datos | J144: Financiamiento | K144: Ministerio de la Producción - PRODUCE / Ministerio de Comercio Exterior y Turismo - MINCETUR / Ministerio de Agricultura y Riego - MINAGRI / COFIDE | L144: Ministerio de la Producción - PRODUCE | M144: https://www.gob.pe/produce
A145: 7984 | B145: Economica | C145: EJE 1: ACTIVIDADES ECONÓMICAS PRODUCTIVAS | D145: Sistema Nacional de Parques Industriales implementado. (DL 199) | E145: AGE.7.1 | F145: Nacional | G145: Nacional | H145: 2014 | I145: Sin datos | J145: Parques | K145: Ministerio de la Producción - PRODUCE | L145: Ministerio de la Producción - PRODUCE | M145: https://www.gob.pe/produce | O145: Sin descripcion
A146: 7985 | B146: Economica | C146: EJE 1: ACTIVIDADES ECONÓMICAS PRODUCTIVAS | D146: Sistema Nacional de Parques Industriales implementado. (DL 199) | E146: AGE.7.1 | F146: Nacional | G146: Nacional | H146: 2015 | I146: Sin datos | J146: Parques | K146: Ministerio de la Producción - PRODUCE | L146: Ministerio de la Producción - PRODUCE | M146: https://www.gob.pe/produce
A147: 7986 | B147: Economica | C147: EJE 1: ACTIVIDADES ECONÓMICAS PRODUCTIVAS | D147: Sistema Nacional de Parques Industriales implementado. (DL 199) | E147: AGE.7.1 | F147: Nacional | G147: Nacional | H147: 2016 | I147: Sin datos | J147: Parques | K147: Ministerio de la Producción - PRODUCE | L147: Ministerio de la Producción - PRODUCE | M147: https://www.gob.pe/produce
A148: 7987 | B148: Economica | C148: EJE 1: ACTIVIDADES ECONÓMICAS PRODUCTIVAS | D148: Sistema Nacional de Parques Industriales implementado. (DL 199) | E148: AGE.7.1 | F148: Nacional | G148: Nacional | H148: 2017 | I148: Sin datos | J148: Parques | K148: Ministerio de la Producción - PRODUCE | L148: Ministerio de la Producción - PRODUCE | M148: https://www.gob.pe/produce
A149: 7988 | B149: Economica | C149: EJE 1: ACTIVIDADES ECONÓMICAS PRODUCTIVAS | D149: Sistema Nacional de Parques Industriales implementado. (DL 199) | E149: AGE.7.1 | F149: Nacional | G149: Nacional | H149: 2018 | I149: Sin datos | J149: Parques | K149: Ministerio de la Producción - PRODUCE | L149: Ministerio de la Producción - PRODUCE | M149: https://www.gob.pe/produce
A150: 7990 | B150: Economica | C150: EJE 1: ACTIVIDADES ECONÓMICAS PRODUCTIVAS | D150: Número de convenios suscritos con Gobiernos Regionales para la implementación de Parques Industritales. | E150: AGE.7.2 | F150: Convenios suscritos | G150: Nacional | H150: 2014 | I150: Sin datos | J150: Número | K150: Ministerio de la Producción - PRODUCE | L150: Ministerio de la Producción - PRODUCE | M150: https://www.gob.pe/produce
A151: 7991 | B151: Economica | C151: EJE 1: ACTIVIDADES ECONÓMICAS PRODUCTIVAS | D151: Número de convenios suscritos con Gobiernos Regionales para la implementación de Parques Industritales. | E151: AGE.7.2 | F151: Convenios suscritos | G151: Nacional | H151: 2015 | I151: Sin datos | J151: Número | K151: Ministerio de la Producción - PRODUCE | L151: Ministerio de la Producción - PRODUCE | M151: https://www.gob.pe/produce
A152: 7992 | B152: Economica | C152: EJE 1: ACTIVIDADES ECONÓMICAS PRODUCTIVAS | D152: Número de convenios suscritos con Gobiernos Regionales para la implementación de Parques Industritales. | E152: AGE.7.2 | F152: Convenios suscritos | G152: Nacional | H152: 2016 | I152: Sin datos | J152: Número | K152: Ministerio de la Producción - PRODUCE | L152: Ministerio de la Producción - PRODUCE | M152: https://www.gob.pe/produce
A153: 7993 | B153: Economica | C153: EJE 1: ACTIVIDADES ECONÓMICAS PRODUCTIVAS | D153: Número de convenios suscritos con Gobiernos Regionales para la implementación de Parques Industritales. | E153: AGE.7.2 | F153: Convenios suscritos | G153: Nacional | H153: 2017 | I153: Sin datos | J153: Número | K153: Ministerio de la Producción - PRODUCE | L153: Ministerio de la Producción - PRODUCE | M153: https://www.gob.pe/produce
A154: 7994 | B154: Economica | C154: EJE 1: ACTIVIDADES ECONÓMICAS PRODUCTIVAS | D154: Número de convenios suscritos con Gobiernos Regionales para la implementación de Parques Industritales. | E154: AGE.7.2 | F154: Convenios suscritos | G154: Nacional | H154: 2018 | I154: Sin datos | J154: Número | K154: Ministerio de la Producción - PRODUCE | L154: Ministerio de la Producción - PRODUCE | M154: https://www.gob.pe/produce
A155: 7996 | B155: Economica | C155: EJE 1: ACTIVIDADES ECONÓMICAS PRODUCTIVAS | D155: Número de Parques Industriales potenciados que promueven innovación tecnológica y el desarrollo productivo. | E155: AGE.7.3 | F155: 3 (Norte)/3 (Centro)/3 (Sur) | G155: Nacional | H155: 2014 | I155: Sin datos | J155: Número | K155: Ministerio de la Producción - PRODUCE | L155: Ministerio de la Producción - PRODUCE | M155: https://www.gob.pe/produce
A156: 7997 | B156: Economica | C156: EJE 1: ACTIVIDADES ECONÓMICAS PRODUCTIVAS | D156: Número de Parques Industriales potenciados que promueven innovación tecnológica y el desarrollo productivo. | E156: AGE.7.3 | F156: 3 (Norte)/3 (Centro)/3 (Sur) | G156: Nacional | H156: 2015 | I156: Sin datos | J156: Número | K156: Ministerio de la Producción - PRODUCE | L156: Ministerio de la Producción - PRODUCE | M156: https://www.gob.pe/produce
A157: 7998 | B157: Economica | C157: EJE 1: ACTIVIDADES ECONÓMICAS PRODUCTIVAS | D157: Número de Parques Industriales potenciados que promueven innovación tecnológica y el desarrollo productivo. | E157: AGE.7.3 | F157: 3 (Norte)/3 (Centro)/3 (Sur) | G157: Nacional | H157: 2016 | I157: Sin datos | J157: Número | K157: Ministerio de la Producción - PRODUCE | L157: Ministerio de la Producción - PRODUCE | M157: https://www.gob.pe/produce
A158: 7999 | B158: Economica | C158: EJE 1: ACTIVIDADES ECONÓMICAS PRODUCTIVAS | D158: Número de Parques Industriales potenciados que promueven innovación tecnológica y el desarrollo productivo. | E158: AGE.7.3 | F158: 3 (Norte)/3 (Centro)/3 (Sur) | G158: Nacional | H158: 2017 | I158: Sin datos | J158: Número | K158: Ministerio de la Producción - PRODUCE | L158: Ministerio de la Producción - PRODUCE | M158: https://www.gob.pe/produce
A159: 8000 | B159: Economica | C159: EJE 1: ACTIVIDADES ECONÓMICAS PRODUCTIVAS | D159: Número de Parques Industriales potenciados que promueven innovación tecnológica y el desarrollo productivo. | E159: AGE.7.3 | F159: 3 (Norte)/3 (Centro)/3 (Sur) | G159: Nacional | H159: 2018 | I159: Sin datos | J159: Número | K159: Ministerio de la Producción - PRODUCE | L159: Ministerio de la Producción - PRODUCE | M159: https://www.gob.pe/produce
A160: 8002 | B160: Economica | C160: EJE 2: INFRAESTRUCTURA LOGÍSTICA, DE TRANSPORTE Y DE COMUNICACIONES | D160: Miles de personas en vuelos nacionales | E160: AGE.10.1 | F160: Nacional | G160: Nacional | H160: 2014 | I160: 8950.2 | J160: Número de personas | K160: Ministerio de Transportes y Comuniciaciones - MTC: Transporte Aereo Pasajeros 2017 | L160: Ministerio de Transportes y Comuniciaciones - MTC | M160: http://portal.mtc.gob.pe/estadisticas/publicaciones/anuarios/ANUARIO_ESTADISTICO_2017.pdf
A161: 8003 | B161: Economica | C161: EJE 2: INFRAESTRUCTURA LOGÍSTICA, DE TRANSPORTE Y DE COMUNICACIONES | D161: Miles de personas en vuelos nacionales | E161: AGE.10.1 | F161: Nacional | G161: Nacional | H161: 2015 | I161: 10005.2 | J161: Número de personas | K161: Ministerio de Transportes y Comuniciaciones - MTC: Transporte Aereo Pasajeros 2017 | L161: Ministerio de Transportes y Comuniciaciones - MTC | M161: http://portal.mtc.gob.pe/estadisticas/publicaciones/anuarios/ANUARIO_ESTADISTICO_2017.pdf
A162: 8004 | B162: Economica | C162: EJE 2: INFRAESTRUCTURA LOGÍSTICA, DE TRANSPORTE Y DE COMUNICACIONES | D162: Miles de personas en vuelos nacionales | E162: AGE.10.1 | F162: Nacional | G162: Nacional | H162: 2016 | I162: 10794 | J162: Número de personas | K162: Ministerio de Transportes y Comuniciaciones - MTC: Transporte Aereo Pasajeros 2017 | L162: Ministerio de Transportes y Comuniciaciones - MTC | M162: http://portal.mtc.gob.pe/estadisticas/publicaciones/anuarios/ANUARIO_ESTADISTICO_2017.pdf
A163: 8005 | B163: Economica | C163: EJE 2: INFRAESTRUCTURA LOGÍSTICA, DE TRANSPORTE Y DE COMUNICACIONES | D163: Miles de personas en vuelos nacionales | E163: AGE.10.1 | F163: Nacional | G163: Nacional | H163: 2017 | I163: 11708.3 | J163: Número de personas | K163: Ministerio de Transportes y Comuniciaciones - MTC: Transporte Aereo Pasajeros 2017 | L163: Ministerio de Transportes y Comuniciaciones - MTC | M163: http://portal.mtc.gob.pe/estadisticas/publicaciones/anuarios/ANUARIO_ESTADISTICO_2017.pdf
A164: 8005 | B164: Economica | C164: EJE 2: INFRAESTRUCTURA LOGÍSTICA, DE TRANSPORTE Y DE COMUNICACIONES | D164: Miles de personas en vuelos nacionales | E164: AGE.10.1 | F164: Nacional | G164: Nacional | H164: 2018 | I164: 12.71 | J164: Número de personas | K164: Ministerio de Transportes y Comuniciaciones - MTC: Transporte Aereo Pasajeros 2017 | L164: Ministerio de Transportes y Comuniciaciones - MTC | M164: http://portal.mtc.gob.pe/estadisticas/publicaciones/anuarios/ANUARIO_ESTADISTICO_2017.pdf
A165: 8005 | B165: Economica | C165: EJE 2: INFRAESTRUCTURA LOGÍSTICA, DE TRANSPORTE Y DE COMUNICACIONES | D165: Miles de personas en vuelos nacionales | E165: AGE.10.1 | F165: Nacional | G165: Nacional | H165: 2019 | I165: 13.828 | J165: Número de personas | K165: Ministerio de Transportes y Comuniciaciones - MTC: Transporte Aereo Pasajeros 2017 | L165: Ministerio de Transportes y Comuniciaciones - MTC | M165: http://portal.mtc.gob.pe/estadisticas/publicaciones/anuarios/ANUARIO_ESTADISTICO_2017.pdf
A166: 8005 | B166: Economica | C166: EJE 2: INFRAESTRUCTURA LOGÍSTICA, DE TRANSPORTE Y DE COMUNICACIONES | D166: Miles de personas en vuelos nacionales | E166: AGE.10.1 | F166: Nacional | G166: Nacional | H166: 2020 | I166: 4.876 | J166: Número de personas | K166: Ministerio de Transportes y Comuniciaciones - MTC: Transporte Aereo Pasajeros 2017 | L166: Ministerio de Transportes y Comuniciaciones - MTC | M166: http://portal.mtc.gob.pe/estadisticas/publicaciones/anuarios/ANUARIO_ESTADISTICO_2017.pdf
A167: 8005 | B167: Economica | C167: EJE 2: INFRAESTRUCTURA LOGÍSTICA, DE TRANSPORTE Y DE COMUNICACIONES | D167: Miles de personas en vuelos nacionales | E167: AGE.10.1 | F167: Nacional | G167: Nacional | H167: 2021 | J167: Número de personas | K167: Ministerio de Transportes y Comuniciaciones - MTC: Transporte Aereo Pasajeros 2017 | L167: Ministerio de Transportes y Comuniciaciones - MTC | M167: http://portal.mtc.gob.pe/estadisticas/publicaciones/anuarios/ANUARIO_ESTADISTICO_2017.pdf
A168: 8007 | B168: Economica | C168: EJE 2: INFRAESTRUCTURA LOGÍSTICA, DE TRANSPORTE Y DE COMUNICACIONES | D168: Miles de personas en vuelos internacionales | E168: AGE.10.2 | F168: Internacional | G168: Nacional | H168: 2014 | I168: 8485.3 | J168: Número de personas | K168: Ministerio de Transportes y Comuniciaciones - MTC: Transporte Aereo Pasajeros 2017 | L168: Ministerio de Transportes y Comuniciaciones - MTC | M168: http://portal.mtc.gob.pe/estadisticas/publicaciones/anuarios/ANUARIO_ESTADISTICO_2017.pdf
A169: 8008 | B169: Economica | C169: EJE 2: INFRAESTRUCTURA LOGÍSTICA, DE TRANSPORTE Y DE COMUNICACIONES | D169: Miles de personas en vuelos internacionales | E169: AGE.10.2 | F169: Internacional | G169: Nacional | H169: 2015 | I169: 9026.1 | J169: Número de personas | K169: Ministerio de Transportes y Comuniciaciones - MTC: Transporte Aereo Pasajeros 2017 | L169: Ministerio de Transportes y Comuniciaciones - MTC | M169: http://portal.mtc.gob.pe/estadisticas/publicaciones/anuarios/ANUARIO_ESTADISTICO_2017.pdf
A170: 8009 | B170: Economica | C170: EJE 2: INFRAESTRUCTURA LOGÍSTICA, DE TRANSPORTE Y DE COMUNICACIONES | D170: Miles de personas en vuelos internacionales | E170: AGE.10.2 | F170: Internacional | G170: Nacional | H170: 2016 | I170: 9964.2 | J170: Número de personas | K170: Ministerio de Transportes y Comuniciaciones - MTC: Transporte Aereo Pasajeros 2017 | L170: Ministerio de Transportes y Comuniciaciones - MTC | M170: http://portal.mtc.gob.pe/estadisticas/publicaciones/anuarios/ANUARIO_ESTADISTICO_2017.pdf
A171: 8010 | B171: Economica | C171: EJE 2: INFRAESTRUCTURA LOGÍSTICA, DE TRANSPORTE Y DE COMUNICACIONES | D171: Miles de personas en vuelos internacionales | E171: AGE.10.2 | F171: Internacional | G171: Nacional | H171: 2017 | I171: 9964.2 | J171: Número de personas | K171: Ministerio de Transportes y Comuniciaciones - MTC: Transporte Aereo Pasajeros 2017 | L171: Ministerio de Transportes y Comuniciaciones - MTC | M171: http://portal.mtc.gob.pe/estadisticas/publicaciones/anuarios/ANUARIO_ESTADISTICO_2017.pdf
A172: 8011 | B172: Economica | C172: EJE 2: INFRAESTRUCTURA LOGÍSTICA, DE TRANSPORTE Y DE COMUNICACIONES | D172: Miles de personas en vuelos internacionales | E172: AGE.10.2 | F172: Internacional | G172: Nacional | H172: 2018 | I172: 1880.7 | J172: Número de personas | K172: Ministerio de Transportes y Comuniciaciones - MTC: Transporte Aereo Pasajeros 2017 | L172: Ministerio de Transportes y Comuniciaciones - MTC | M172: http://portal.mtc.gob.pe/estadisticas/publicaciones/anuarios/ANUARIO_ESTADISTICO_2017.pdf
A173: 8011 | B173: Economica | C173: EJE 2: INFRAESTRUCTURA LOGÍSTICA, DE TRANSPORTE Y DE COMUNICACIONES | D173: Miles de personas en vuelos internacionales | E173: AGE.10.2 | F173: Internacional | G173: Nacional | H173: 2019 | I173: 12.371 | J173: Número de personas | K173: Ministerio de Transportes y Comuniciaciones - MTC: Transporte Aereo Pasajeros 2017 | L173: Ministerio de Transportes y Comuniciaciones - MTC | M173: http://portal.mtc.gob.pe/estadisticas/publicaciones/anuarios/ANUARIO_ESTADISTICO_2017.pdf
A174: 8011 | B174: Economica | C174: EJE 2: INFRAESTRUCTURA LOGÍSTICA, DE TRANSPORTE Y DE COMUNICACIONES | D174: Miles de personas en vuelos internacionales | E174: AGE.10.2 | F174: Internacional | G174: Nacional | H174: 2020 | I174: 2.965 | J174: Número de personas | K174: Ministerio de Transportes y Comuniciaciones - MTC: Transporte Aereo Pasajeros 2017 | L174: Ministerio de Transportes y Comuniciaciones - MTC | M174: http://portal.mtc.gob.pe/estadisticas/publicaciones/anuarios/ANUARIO_ESTADISTICO_2017.pdf
A175: 8011 | B175: Economica | C175: EJE 2: INFRAESTRUCTURA LOGÍSTICA, DE TRANSPORTE Y DE COMUNICACIONES | D175: Miles de personas en vuelos internacionales | E175: AGE.10.2 | F175: Internacional | G175: Nacional | H175: 2021 | J175: Número de personas | K175: Ministerio de Transportes y Comuniciaciones - MTC: Transporte Aereo Pasajeros 2017 | L175: Ministerio de Transportes y Comuniciaciones - MTC | M175: http://portal.mtc.gob.pe/estadisticas/publicaciones/anuarios/ANUARIO_ESTADISTICO_2017.pdf
A176: 8013 | B176: Economica | C176: EJE 2: INFRAESTRUCTURA LOGÍSTICA, DE TRANSPORTE Y DE COMUNICACIONES | D176: Toneladas en vuelos nacionales | E176: AGE.10.3 | F176: Nacional | G176: Nacional | H176: 2014 | I176: 32336.5 | J176: Toneladas | K176: Ministerio de Transportes y Comuniciaciones - MTC: Transporte Aereo Pasajeros 2018 | L176: Ministerio de Transportes y Comuniciaciones - MTC | M176: http://portal.mtc.gob.pe/estadisticas/publicaciones/anuarios/ANUARIO_ESTADISTICO_2017.pdf
A177: 8014 | B177: Economica | C177: EJE 2: INFRAESTRUCTURA LOGÍSTICA, DE TRANSPORTE Y DE COMUNICACIONES | D177: Toneladas en vuelos nacionales | E177: AGE.10.3 | F177: Nacional | G177: Nacional | H177: 2015 | I177: 31573.2 | J177: Toneladas | K177: Ministerio de Transportes y Comuniciaciones - MTC: Transporte Aereo Pasajeros 2018 | L177: Ministerio de Transportes y Comuniciaciones - MTC | M177: http://portal.mtc.gob.pe/estadisticas/publicaciones/anuarios/ANUARIO_ESTADISTICO_2017.pdf
A178: 8015 | B178: Economica | C178: EJE 2: INFRAESTRUCTURA LOGÍSTICA, DE TRANSPORTE Y DE COMUNICACIONES | D178: Toneladas en vuelos nacionales | E178: AGE.10.3 | F178: Nacional | G178: Nacional | H178: 2016 | I178: 28477.2 | J178: Toneladas | K178: Ministerio de Transportes y Comuniciaciones - MTC: Transporte Aereo Pasajeros 2018 | L178: Ministerio de Transportes y Comuniciaciones - MTC | M178: http://portal.mtc.gob.pe/estadisticas/publicaciones/anuarios/ANUARIO_ESTADISTICO_2017.pdf
A179: 8016 | B179: Economica | C179: EJE 2: INFRAESTRUCTURA LOGÍSTICA, DE TRANSPORTE Y DE COMUNICACIONES | D179: Toneladas en vuelos nacionales | E179: AGE.10.3 | F179: Nacional | G179: Nacional | H179: 2017 | I179: 30256 | J179: Toneladas | K179: Ministerio de Transportes y Comuniciaciones - MTC: Transporte Aereo Pasajeros 2018 | L179: Ministerio de Transportes y Comuniciaciones - MTC | M179: http://portal.mtc.gob.pe/estadisticas/publicaciones/anuarios/ANUARIO_ESTADISTICO_2017.pdf
A180: 8017 | B180: Economica | C180: EJE 2: INFRAESTRUCTURA LOGÍSTICA, DE TRANSPORTE Y DE COMUNICACIONES | D180: Toneladas en vuelos nacionales | E180: AGE.10.3 | F180: Nacional | G180: Nacional | H180: 2018 | I180: Sin datos | J180: Toneladas | K180: Ministerio de Transportes y Comuniciaciones - MTC: Transporte Aereo Pasajeros 2018 | L180: Ministerio de Transportes y Comuniciaciones - MTC | M180: http://portal.mtc.gob.pe/estadisticas/publicaciones/anuarios/ANUARIO_ESTADISTICO_2017.pdf
A181: 8017 | B181: Economica | C181: EJE 2: INFRAESTRUCTURA LOGÍSTICA, DE TRANSPORTE Y DE COMUNICACIONES | D181: Toneladas en vuelos nacionales | E181: AGE.10.3 | F181: Nacional | G181: Nacional | H181: 2019 | I181: 30.301 | J181: Toneladas | K181: Ministerio de Transportes y Comuniciaciones - MTC: Transporte Aereo Pasajeros 2018 | L181: Ministerio de Transportes y Comuniciaciones - MTC | M181: http://portal.mtc.gob.pe/estadisticas/publicaciones/anuarios/ANUARIO_ESTADISTICO_2017.pdf
A182: 8017 | B182: Economica | C182: EJE 2: INFRAESTRUCTURA LOGÍSTICA, DE TRANSPORTE Y DE COMUNICACIONES | D182: Toneladas en vuelos nacionales | E182: AGE.10.3 | F182: Nacional | G182: Nacional | H182: 2020 | I182: 18.393 | J182: Toneladas | K182: Ministerio de Transportes y Comuniciaciones - MTC: Transporte Aereo Pasajeros 2018 | L182: Ministerio de Transportes y Comuniciaciones - MTC | M182: http://portal.mtc.gob.pe/estadisticas/publicaciones/anuarios/ANUARIO_ESTADISTICO_2017.pdf
A183: 8017 | B183: Economica | C183: EJE 2: INFRAESTRUCTURA LOGÍSTICA, DE TRANSPORTE Y DE COMUNICACIONES | D183: Toneladas en vuelos nacionales | E183: AGE.10.3 | F183: Nacional | G183: Nacional | H183: 2021 | J183: Toneladas | K183: Ministerio de Transportes y Comuniciaciones - MTC: Transporte Aereo Pasajeros 2018 | L183: Ministerio de Transportes y Comuniciaciones - MTC | M183: http://portal.mtc.gob.pe/estadisticas/publicaciones/anuarios/ANUARIO_ESTADISTICO_2017.pdf
A184: 8019 | B184: Economica | C184: EJE 2: INFRAESTRUCTURA LOGÍSTICA, DE TRANSPORTE Y DE COMUNICACIONES | D184: Toneladas en vuelos internacionales | E184: AGE.10.4 | F184: Internacional | G184: Nacional | H184: 2014 | I184: 305620.6 | J184: Toneladas | K184: Ministerio de Transportes y Comuniciaciones - MTC: Transporte Aereo Pasajeros 2018 | L184: Ministerio de Transportes y Comuniciaciones - MTC | M184: http://portal.mtc.gob.pe/estadisticas/publicaciones/anuarios/ANUARIO_ESTADISTICO_2017.pdf
A185: 8020 | B185: Economica | C185: EJE 2: INFRAESTRUCTURA LOGÍSTICA, DE TRANSPORTE Y DE COMUNICACIONES | D185: Toneladas en vuelos internacionales | E185: AGE.10.4 | F185: Internacional | G185: Nacional | H185: 2015 | I185: 307842.4 | J185: Toneladas | K185: Ministerio de Transportes y Comuniciaciones - MTC: Transporte Aereo Pasajeros 2018 | L185: Ministerio de Transportes y Comuniciaciones - MTC | M185: http://portal.mtc.gob.pe/estadisticas/publicaciones/anuarios/ANUARIO_ESTADISTICO_2017.pdf
A186: 8021 | B186: Economica | C186: EJE 2: INFRAESTRUCTURA LOGÍSTICA, DE TRANSPORTE Y DE COMUNICACIONES | D186: Toneladas en vuelos internacionales | E186: AGE.10.4 | F186: Internacional | G186: Nacional | H186: 2016 | I186: 289166.9 | J186: Toneladas | K186: Ministerio de Transportes y Comuniciaciones - MTC: Transporte Aereo Pasajeros 2018 | L186: Ministerio de Transportes y Comuniciaciones - MTC | M186: http://portal.mtc.gob.pe/estadisticas/publicaciones/anuarios/ANUARIO_ESTADISTICO_2017.pdf
A187: 8022 | B187: Economica | C187: EJE 2: INFRAESTRUCTURA LOGÍSTICA, DE TRANSPORTE Y DE COMUNICACIONES | D187: Toneladas en vuelos internacionales | E187: AGE.10.4 | F187: Internacional | G187: Nacional | H187: 2017 | I187: 289166.9 | J187: Toneladas | K187: Ministerio de Transportes y Comuniciaciones - MTC: Transporte Aereo Pasajeros 2018 | L187: Ministerio de Transportes y Comuniciaciones - MTC | M187: http://portal.mtc.gob.pe/estadisticas/publicaciones/anuarios/ANUARIO_ESTADISTICO_2017.pdf
A188: 8023 | B188: Economica | C188: EJE 2: INFRAESTRUCTURA LOGÍSTICA, DE TRANSPORTE Y DE COMUNICACIONES | D188: Toneladas en vuelos internacionales | E188: AGE.10.4 | F188: Internacional | G188: Nacional | H188: 2018 | I188: Sin datos | J188: Toneladas | K188: Ministerio de Transportes y Comuniciaciones - MTC: Transporte Aereo Pasajeros 2018 | L188: Ministerio de Transportes y Comuniciaciones - MTC | M188: http://portal.mtc.gob.pe/estadisticas/publicaciones/anuarios/ANUARIO_ESTADISTICO_2017.pdf
A189: 8023 | B189: Economica | C189: EJE 2: INFRAESTRUCTURA LOGÍSTICA, DE TRANSPORTE Y DE COMUNICACIONES | D189: Toneladas en vuelos internacionales | E189: AGE.10.4 | F189: Internacional | G189: Nacional | H189: 2019 | I189: 258.413 | J189: Toneladas | K189: Ministerio de Transportes y Comuniciaciones - MTC: Transporte Aereo Pasajeros 2018 | L189: Ministerio de Transportes y Comuniciaciones - MTC | M189: http://portal.mtc.gob.pe/estadisticas/publicaciones/anuarios/ANUARIO_ESTADISTICO_2017.pdf
A190: 8023 | B190: Economica | C190: EJE 2: INFRAESTRUCTURA LOGÍSTICA, DE TRANSPORTE Y DE COMUNICACIONES | D190: Toneladas en vuelos internacionales | E190: AGE.10.4 | F190: Internacional | G190: Nacional | H190: 2020 | I190: 176.283 | J190: Toneladas | K190: Ministerio de Transportes y Comuniciaciones - MTC: Transporte Aereo Pasajeros 2018 | L190: Ministerio de Transportes y Comuniciaciones - MTC | M190: http://portal.mtc.gob.pe/estadisticas/publicaciones/anuarios/ANUARIO_ESTADISTICO_2017.pdf
A191: 8023 | B191: Economica | C191: EJE 2: INFRAESTRUCTURA LOGÍSTICA, DE TRANSPORTE Y DE COMUNICACIONES | D191: Toneladas en vuelos internacionales | E191: AGE.10.4 | F191: Internacional | G191: Nacional | H191: 2021 | J191: Toneladas | K191: Ministerio de Transportes y Comuniciaciones - MTC: Transporte Aereo Pasajeros 2018 | L191: Ministerio de Transportes y Comuniciaciones - MTC | M191: http://portal.mtc.gob.pe/estadisticas/publicaciones/anuarios/ANUARIO_ESTADISTICO_2017.pdf
A192: 8215 | B192: Economica | C192: EJE 2: INFRAESTRUCTURA LOGÍSTICA, DE TRANSPORTE Y DE COMUNICACIONES | D192: % de hogares con al menos 1 miembro con teléfono celular | E192: AGE.8.1 | F192: Rural | G192: Nacional | H192: 2014 | I192: 68.9 | J192: Porcentaje | K192: INEI: Boletín Estadísticas de las TIC. Abril-Junio 2018. Cuadros No. 1 y 3 | L192: Instituto Nacional de Estadística e Informatica (INEI) | M192: https://www.inei.gob.pe/biblioteca-virtual/boletines/tecnologias-de-la-informaciontic/1/
A193: 8216 | B193: Economica | C193: EJE 2: INFRAESTRUCTURA LOGÍSTICA, DE TRANSPORTE Y DE COMUNICACIONES | D193: % de hogares con al menos 1 miembro con teléfono celular | E193: AGE.8.1 | F193: Rural | G193: Nacional | H193: 2015 | I193: 73.1 | J193: Porcentaje | K193: INEI: Boletín Estadísticas de las TIC. Abril-Junio 2018. Cuadros No. 1 y 3 | L193: Instituto Nacional de Estadística e Informatica (INEI) | M193: https://www.inei.gob.pe/biblioteca-virtual/boletines/tecnologias-de-la-informaciontic/1/ | O193: No se presentan datos
A194: 8217 | B194: Economica | C194: EJE 2: INFRAESTRUCTURA LOGÍSTICA, DE TRANSPORTE Y DE COMUNICACIONES | D194: % de hogares con al menos 1 miembro con teléfono celular | E194: AGE.8.1 | F194: Rural | G194: Nacional | H194: 2016 | I194: 76.4 | J194: Porcentaje | K194: INEI: Boletín Estadísticas de las TIC. Abril-Junio 2018. Cuadros No. 1 y 3 | L194: Instituto Nacional de Estadística e Informatica (INEI) | M194: https://www.inei.gob.pe/biblioteca-virtual/boletines/tecnologias-de-la-informaciontic/1/
A195: 8218 | B195: Economica | C195: EJE 2: INFRAESTRUCTURA LOGÍSTICA, DE TRANSPORTE Y DE COMUNICACIONES | D195: % de hogares con al menos 1 miembro con teléfono celular | E195: AGE.8.1 | F195: Rural | G195: Nacional | H195: 2017 | I195: 76.4 | J195: Porcentaje | K195: INEI: Boletín Estadísticas de las TIC. Abril-Junio 2018. Cuadros No. 1 y 3 | L195: Instituto Nacional de Estadística e Informatica (INEI) | M195: https://www.inei.gob.pe/biblioteca-virtual/boletines/tecnologias-de-la-informaciontic/1/
A196: 8219 | B196: Economica | C196: EJE 2: INFRAESTRUCTURA LOGÍSTICA, DE TRANSPORTE Y DE COMUNICACIONES | D196: % de hogares con al menos 1 miembro con teléfono celular | E196: AGE.8.1 | F196: Rural | G196: Nacional | H196: 2018 | I196: 79 | J196: Porcentaje | K196: INEI: Boletín Estadísticas de las TIC. Abril-Junio 2018. Cuadros No. 1 y 3 | L196: Instituto Nacional de Estadística e Informatica (INEI) | M196: https://www.inei.gob.pe/biblioteca-virtual/boletines/tecnologias-de-la-informaciontic/1/
A197: 8221 | B197: Economica | C197: EJE 2: INFRAESTRUCTURA LOGÍSTICA, DE TRANSPORTE Y DE COMUNICACIONES | D197: % de hogares con al menos 1 miembro con teléfono celular | E197: AGE.8.1 | F197: Total | G197: Nacional | H197: 2014 | I197: 84.9 | J197: Porcentaje | K197: INEI: Boletín Estadísticas de las TIC. Abril-Junio 2018. Cuadros No. 1 y 2 | L197: Instituto Nacional de Estadística e Informatica (INEI) | M197: https://www.inei.gob.pe/biblioteca-virtual/boletines/tecnologias-de-la-informaciontic/1/
A198: 8222 | B198: Economica | C198: EJE 2: INFRAESTRUCTURA LOGÍSTICA, DE TRANSPORTE Y DE COMUNICACIONES | D198: % de hogares con al menos 1 miembro con teléfono celular | E198: AGE.8.1 | F198: Total | G198: Nacional | H198: 2015 | I198: 87.2 | J198: Porcentaje | K198: INEI: Boletín Estadísticas de las TIC. Abril-Junio 2018. Cuadros No. 1 y 2 | L198: Instituto Nacional de Estadística e Informatica (INEI) | M198: https://www.inei.gob.pe/biblioteca-virtual/boletines/tecnologias-de-la-informaciontic/1/
A199: 8223 | B199: Economica | C199: EJE 2: INFRAESTRUCTURA LOGÍSTICA, DE TRANSPORTE Y DE COMUNICACIONES | D199: % de hogares con al menos 1 miembro con teléfono celular | E199: AGE.8.1 | F199: Total | G199: Nacional | H199: 2016 | I199: 88.9 | J199: Porcentaje | K199: INEI: Boletín Estadísticas de las TIC. Abril-Junio 2018. Cuadros No. 1 y 2 | L199: Instituto Nacional de Estadística e Informatica (INEI) | M199: https://www.inei.gob.pe/biblioteca-virtual/boletines/tecnologias-de-la-informaciontic/1/
A200: 8224 | B200: Economica | C200: EJE 2: INFRAESTRUCTURA LOGÍSTICA, DE TRANSPORTE Y DE COMUNICACIONES | D200: % de hogares con al menos 1 miembro con teléfono celular | E200: AGE.8.1 | F200: Total | G200: Nacional | H200: 2017 | I200: 88.9 | J200: Porcentaje | K200: INEI: Boletín Estadísticas de las TIC. Abril-Junio 2018. Cuadros No. 1 y 2 | L200: Instituto Nacional de Estadística e Informatica (INEI) | M200: https://www.inei.gob.pe/biblioteca-virtual/boletines/tecnologias-de-la-informaciontic/1/
... 1859 more rows

Sheet ListaIndicadores
A6: OBJETIVO | B6: Código | C6: Indicador | D6: Subindicador | E6: Unidad | F6: Fuente web | G6: 2014 | H6: 2015 | I6: 2016 | J6: 2017 | K6: 2018 | L6: 2019 | M6: 2020 | N6: 2021 | O6: 2022 | P6: 2023 | Q6: 2024 | R6: 2025 | S6: 2026 | T6: Meta 2021 | U6: Meta 2026 | V6: Proyeccion | W6: Proyeccion al 2026 | X6: Semáforo | Y6: Semáforo 2026 | Z6: concatenar | AA6: Meta 2021 | AB6: Meta 2026 | AC6: Proyeccion | AD6: Proyeccion al 2026 | AE6: Semáforo | AF6: Semáforo 2026 | AG6: Positivo/Negativo
A7: EJE 1: ACTIVIDADES ECONÓMICAS PRODUCTIVAS | B7: AGE.6.2 | C7: Acceso a financiamiento | D7: Reportes | E7: Ministerio de la Producción - PRODUCE / Ministerio de Comercio Exterior y Turismo - MINCETUR / Ministerio de Agricultura y Riego - MINAGRI / COFIDE | F7: Ministerio de la Producción - PRODUCE | V7: =+FORECAST(2026,G7:N7,$G$6:$N$6) ->  | X7: =IF(OR(T7="",V7="",T7="No se puede proyectar",V7="Sin datos",AG7=""),"¡Faltan datos!", IF(AG7="P", IF(V7>=(T7*85%),"Verde", IF(AND(V7<(T7*85%),V7>=(T7*50%)),"Ambar", IF(V7<(T7*50%),"Rojo","Verificar!"))), IF(AG7="N", IF(V7<=(T7*115%),"Verde", IF(AND(V7<=(T7*150%),V7>(T7*115%)),"Ambar", IF(V7>(T7*150%),"Rojo","Verificar!"))),"ERROR"))) ->  | Y7: =IF(OR(U7="",W7="",AG7=""),"¡Faltan datos!", IF(AG7="P", IF(W7>=(U7*85%),"Verde", IF(AND(W7<(U7*85%),W7>=(U7*50%)),"Ambar", IF(W7<(U7*50%),"Rojo","Verificar!"))), IF(AG7="N", IF(W7<=(U7*115%),"Verde", IF(AND(W7<=(U7*150%),W7>(U7*115%)),"Ambar", IF(W7>(U7*150%),"Rojo","Verificar!"))),""))) -> ¡Faltan datos! | Z7: =CONCATENATE(C7,D7) -> Acceso a financiamientoReportes | AF7: ¡Faltan datos! | AG7: P
A8: EJE 1: ACTIVIDADES ECONÓMICAS PRODUCTIVAS | B8: AGE.6.1 | C8: Asistencia técnica permanente para su capitalización y diversificación productiva. | D8: Informes | E8: Ministerio de la Producción - PRODUCE / Ministerio de Comercio Exterior y Turismo - MINCETUR / Ministerio de Agricultura y Riego - MINAGRI | F8: Ministerio de la Producción - PRODUCE | V8: =+FORECAST(2026,G8:N8,$G$6:$N$6) ->  | X8: =IF(OR(T8="",V8="",T8="No se puede proyectar",V8="Sin datos",AG8=""),"¡Faltan datos!", IF(AG8="P", IF(V8>=(T8*85%),"Verde", IF(AND(V8<(T8*85%),V8>=(T8*50%)),"Ambar", IF(V8<(T8*50%),"Rojo","Verificar!"))), IF(AG8="N", IF(V8<=(T8*115%),"Verde", IF(AND(V8<=(T8*150%),V8>(T8*115%)),"Ambar", IF(V8>(T8*150%),"Rojo","Verificar!"))),"ERROR"))) ->  | Y8: =IF(OR(U8="",W8="",AG8=""),"¡Faltan datos!", IF(AG8="P", IF(W8>=(U8*85%),"Verde", IF(AND(W8<(U8*85%),W8>=(U8*50%)),"Ambar", IF(W8<(U8*50%),"Rojo","Verificar!"))), IF(AG8="N", IF(W8<=(U8*115%),"Verde", IF(AND(W8<=(U8*150%),W8>(U8*115%)),"Ambar", IF(W8>(U8*150%),"Rojo","Verificar!"))),""))) -> ¡Faltan datos! | Z8: =CONCATENATE(C8,D8) -> Asistencia técnica permanente para su capitalización y diversificación productiva.Informes | AF8: ¡Faltan datos! | AG8: P
A9: EJE 1: ACTIVIDADES ECONÓMICAS PRODUCTIVAS | B9: AGE.2.3 | C9: Definir nuevos circuitos turísticos complementarios. | D9: Circuitos turísticos | E9: Ministerio de Comercio Exterior y Turismo - MINCETUR | F9: Ley General de Turismo. | G9: 2 | T9: 3 | Y9: ¡Faltan datos! | Z9: Definir nuevos circuitos turísticos complementarios.Circuitos turísticos | AA9: 3 | AF9: ¡Faltan datos! | AG9: P
A10: EJE 1: ACTIVIDADES ECONÓMICAS PRODUCTIVAS | B10: AGE.3.1 | C10: Exportaciones FOB No tradicionales (Millones de dólares) | D10: Agropecuarios | E10: INEI: Compendio Estadístico Perú | F10: Instituto Nacional de Estadística e Informatica (INEI) | G10: 4231.3 | H10: 4408.6 | I10: 4701.8 | J10: 4701.8 | K10: 4910.1 | L10: 5379.3 | M10: 5440 | N10: 5412.2 | T10: 5500 | U10: 8250 | V10: 6483 | X10: Verde | Y10: =IF(OR(U10="",W10="",AG10=""),"¡Faltan datos!", IF(AG10="P", IF(W10>=(U10*85%),"Verde", IF(AND(W10<(U10*85%),W10>=(U10*50%)),"Ambar", IF(W10<(U10*50%),"Rojo","Verificar!"))), IF(AG10="N", IF(W10<=(U10*115%),"Verde", IF(AND(W10<=(U10*150%),W10>(U10*115%)),"Ambar", IF(W10>(U10*150%),"Rojo","Verificar!"))),""))) -> ¡Faltan datos! | Z10: Exportaciones FOB No tradicionales (Millones de dólares)Agropecuarios | AA10: 5500 | AB10: 8250 | AC10: 6483 | AD10: 5529.4 | AE10: Verde | AF10: Ambar | AG10: P
A11: EJE 1: ACTIVIDADES ECONÓMICAS PRODUCTIVAS | B11: AGE.3.1 | C11: Exportaciones FOB No tradicionales (Millones de dólares) | D11: Maderas y Papeles y sus Manufacturas | E11: INEI: Compendio Estadístico Perú | F11: Instituto Nacional de Estadística e Informatica (INEI) | G11: 416.3 | H11: 353 | I11: 322.1 | J11: 322.1 | K11: 339 | L11: 482.6 | M11: 329 | N11: 328.7 | T11: 600 | U11: 900 | V11: 338 | X11: Ambar | Y11: ¡Faltan datos! | Z11: Exportaciones FOB No tradicionales (Millones de dólares)Maderas y Papeles y sus Manufacturas | AA11: 600 | AB11: 900 | AC11: 338 | AE11: Ambar | AF11: ¡Faltan datos! | AG11: P
A12: EJE 1: ACTIVIDADES ECONÓMICAS PRODUCTIVAS | B12: AGE.3.1 | C12: Exportaciones FOB No tradicionales (Millones de dólares) | D12: Metal-Mecánicos | E12: INEI: Compendio Estadístico Perú | F12: Instituto Nacional de Estadística e Informatica (INEI) | G12: 581.3 | H12: 533.2 | I12: 445 | J12: 445 | K12: 615.8 | L12: 572 | M12: 471 | N12: 475.9 | T12: 950 | U12: 1425 | V12: 467 | X12: Rojo | Y12: ¡Faltan datos! | Z12: Exportaciones FOB No tradicionales (Millones de dólares)Metal-Mecánicos | AA12: 950 | AB12: 1425 | AC12: 467 | AD12: 693.8 | AE12: Rojo | AF12: Rojo | AG12: P
A13: EJE 1: ACTIVIDADES ECONÓMICAS PRODUCTIVAS | B13: AGE.3.1 | C13: Exportaciones FOB No tradicionales (Millones de dólares) | D13: Minerales No Metálicos | E13: INEI: Compendio Estadístico Perú | F13: Instituto Nacional de Estadística e Informatica (INEI) | G13: 663.6 | H13: 698.5 | I13: 640.3 | J13: 640.3 | K13: 571.8 | L13: 583.7 | M13: 413 | N13: 412.9 | T13: 829 | U13: 1243.5 | V13: 232 | X13: Rojo | Y13: ¡Faltan datos! | Z13: Exportaciones FOB No tradicionales (Millones de dólares)Minerales No Metálicos | AA13: 829 | AB13: 1243.5 | AC13: 232 | AD13: 459.4 | AE13: Rojo | AF13: Rojo | AG13: P
A14: EJE 1: ACTIVIDADES ECONÓMICAS PRODUCTIVAS | B14: AGE.3.1 | C14: Exportaciones FOB No tradicionales (Millones de dólares) | D14: Pesqueros | E14: INEI: Compendio Estadístico Perú | F14: Instituto Nacional de Estadística e Informatica (INEI) | G14: 1155.3 | H14: 932.6 | I14: 908.7 | J14: 908.7 | K14: 2994.9 | L14: 3854.6 | M14: 949 | N14: 947.2 | T14: 1444 | U14: 2166 | V14: 2548 | X14: Verde | Y14: ¡Faltan datos! | Z14: Exportaciones FOB No tradicionales (Millones de dólares)Pesqueros | AA14: 1444 | AB14: 2166 | AC14: 2548 | AD14: 5176.5 | AE14: Verde | AF14: Verde | AG14: P
A15: EJE 1: ACTIVIDADES ECONÓMICAS PRODUCTIVAS | B15: AGE.3.1 | C15: Exportaciones FOB No tradicionales (Millones de dólares) | D15: Químicos | E15: INEI: Compendio Estadístico Perú | F15: Instituto Nacional de Estadística e Informatica (INEI) | G15: 1515 | H15: 1405.9 | I15: 1341.5 | J15: 1341.5 | K15: 1333.2 | L15: 1441.3 | M15: 1455 | N15: 1462.6 | T15: 2000 | U15: 3000 | V15: 1429 | X15: Ambar | Y15: ¡Faltan datos! | Z15: Exportaciones FOB No tradicionales (Millones de dólares)Químicos | AA15: 2000 | AB15: 3000 | AC15: 1429 | AD15: 1198.2 | AE15: Ambar | AF15: Rojo | AG15: P
A16: EJE 1: ACTIVIDADES ECONÓMICAS PRODUCTIVAS | B16: AGE.3.1 | C16: Exportaciones FOB No tradicionales (Millones de dólares) | D16: Sidero-Metalúrgicos y Joyería | E16: INEI: Compendio Estadístico Perú | F16: Instituto Nacional de Estadística e Informatica (INEI) | G16: 1148.5 | H16: 1080.6 | I16: 1084.1 | J16: 1084.1 | K16: 1294.2 | L16: 1252.3 | M16: 949 | N16: 947.5 | T16: 1440 | U16: 2160 | V16: 968 | X16: Ambar | Y16: ¡Faltan datos! | Z16: Exportaciones FOB No tradicionales (Millones de dólares)Sidero-Metalúrgicos y Joyería | AA16: 1440 | AB16: 2160 | AC16: 968 | AD16: 1493.1 | AE16: Ambar | AF16: Ambar | AG16: P
A17: EJE 1: ACTIVIDADES ECONÓMICAS PRODUCTIVAS | B17: AGE.3.1 | C17: Exportaciones FOB No tradicionales (Millones de dólares) | D17: Textiles | E17: INEI: Compendio Estadístico Perú | F17: Instituto Nacional de Estadística e Informatica (INEI) | G17: 1800.2 | H17: 1331.2 | I17: 1196.1 | J17: 1196.1 | K17: 1058.2 | L17: 1080 | M17: 833 | N17: 830.6 | T17: 2500 | V17: 178 | X17: Rojo | Z17: Exportaciones FOB No tradicionales (Millones de dólares)Textiles | AA17: 2500 | AC17: 178 | AE17: Rojo | AG17: P
A18: EJE 1: ACTIVIDADES ECONÓMICAS PRODUCTIVAS | B18: AGE.3.1 | C18: Exportaciones FOB No tradicionales (Millones de dólares) | D18: Valor Total | E18: INEI: Compendio Estadístico Perú | F18: Instituto Nacional de Estadística e Informatica (INEI) | G18: 11676.5 | H18: 10894.6 | I18: 10782.5 | J18: 10782.5 | K18: 13297.2 | L18: 14645.8 | M18: 10839 | N18: 10817.6 | T18: 15263 | V18: 12508 | X18: Ambar | Z18: Exportaciones FOB No tradicionales (Millones de dólares)Valor Total | AA18: 15263 | AC18: 12508 | AE18: Ambar | AG18: P
A19: EJE 1: ACTIVIDADES ECONÓMICAS PRODUCTIVAS | B19: AGE.2.2 | C19: Gasto promedio por turista (US Dólar) | D19: Diario | E19: INEI: Compendio Estadístico Perú | F19: Instituto Nacional de Estadística e Informática | G19: 114 | H19: 115 | I19: 110 | J19: 110 | K19: 99 | T19: 228 | V19: 75 | X19: Rojo | Z19: Gasto promedio por turista (US Dólar)Diario | AA19: 228 | AC19: 75 | AE19: Rojo | AG19: P
A20: EJE 1: ACTIVIDADES ECONÓMICAS PRODUCTIVAS | B20: AGE.2.2 | C20: Gasto promedio por turista (US Dólar) | D20: Total | E20: INEI: Compendio Estadístico Perú | F20: Instituto Nacional de Estadística e Informática | G20: 1362 | H20: 1444 | I20: 1330 | J20: 1330 | K20: 1013 | T20: 2736 | V20: 484 | X20: Rojo | Z20: Gasto promedio por turista (US Dólar)Total | AA20: 2736 | AC20: 484 | AE20: Rojo | AG20: P
A21: EJE 1: ACTIVIDADES ECONÓMICAS PRODUCTIVAS | B21: AGE.2.4 | C21: Incremento del número de aeropuertos que reciban vuelos internacionales. | D21: Aeropuertos | E21: Ministerio de Transportes y Comunicaciones - MTC | F21: Ministerio de Transportes y Comuniciaciones - MTC | G21: 3 | J21: 4 | T21: 5 | V21: 7 | X21: Verde | Z21: Incremento del número de aeropuertos que reciban vuelos internacionales.Aeropuertos | AA21: 5 | AC21: 7 | AE21: Verde | AG21: P
A22: EJE 1: ACTIVIDADES ECONÓMICAS PRODUCTIVAS | B22: AGE.1.1 | C22: Índice del sector manufactura | D22: Índice de Volumen Físico Sector Fabril (Año base 2012=100) | E22: INEI: Compendio Estadístico Perú | F22: Instituto Nacional de Estadística e Informática (INEI) | G22: 101.1 | H22: 99.6 | I22: 98.2 | J22: 98.2 | K22: 104.1 | L22: 104.8 | M22: 114.7 | N22: 116.9 | T22: 122 | V22: 126 | X22: Verde | Z22: Índice del sector manufacturaÍndice de Volumen Físico Sector Fabril (Año base 2012=100) | AA22: 122 | AC22: 126 | AE22: Verde | AG22: P
A23: EJE 1: ACTIVIDADES ECONÓMICAS PRODUCTIVAS | B23: AGE.2.1 | C23: Ingreso de visitantes extranjeros | D23: Resto de mundo | E23: INEI: Compendio Estadístico Perú | F23: Instituto Nacional de Estadística e Informática | G23: 1435785 | H23: 1536470 | I23: 1634009 | J23: 1634009 | K23: 1792.1 | L23: 1880488 | T23: 1283907 | V23: 707618 | X23: Ambar | Z23: Ingreso de visitantes extranjerosResto de mundo | AA23: 1283907 | AC23: 707618 | AE23: Ambar | AG23: P
A24: EJE 1: ACTIVIDADES ECONÓMICAS PRODUCTIVAS | B24: AGE.2.1 | C24: Ingreso de visitantes extranjeros | D24: Sud americanos | E24: INEI: Compendio Estadístico Perú | F24: Instituto Nacional de Estadística e Informática | G24: 1779149 | H24: 1919232 | I24: 2110452 | J24: 2110452 | K24: 2627.3 | L24: 2491299 | T24: 3439258 | V24: 1141361 | X24: Rojo | Z24: Ingreso de visitantes extranjerosSud americanos | AA24: 3439258 | AC24: 1141361 | AE24: Rojo | AG24: P
A25: EJE 1: ACTIVIDADES ECONÓMICAS PRODUCTIVAS | B25: AGE.2.1 | C25: Ingreso de visitantes extranjeros | D25: Total | E25: INEI: Compendio Estadístico Perú | F25: Instituto Nacional de Estadística e Informática | G25: 3214934 | H25: 3455709 | I25: 3744461 | J25: 3744461 | K25: 4419.4 | L25: 4371787 | T25: 4723165 | V25: 1848974 | X25: Rojo | Z25: Ingreso de visitantes extranjerosTotal | AA25: 4723165 | AC25: 1848974 | AE25: Rojo | AG25: P
A26: EJE 1: ACTIVIDADES ECONÓMICAS PRODUCTIVAS | B26: AGE.3.2 | C26: Lograr y sostener un superavit en la balanza comercial. (Millones de US dólares) | D26: Total Nacional | E26: INEI: Compendio Estadístico Perú | F26: Instituto Nacional de Estadística e Informatica (INEI) | G26: -1509.5 | H26: -2916.4 | I26: 1953.3 | J26: 6699.5 | K26: 7196.5 | L26: 6614.2 | M26: 8227.9 | N26: 14833 | V26: 23817 | X26: ¡Faltan datos! | Z26: Lograr y sostener un superavit en la balanza comercial. (Millones de US dólares)Total Nacional | AC26: 23817 | AE26: ¡Faltan datos! | AG26: P
A27: EJE 1: ACTIVIDADES ECONÓMICAS PRODUCTIVAS | B27: AGE.7.2 | C27: Número de convenios suscritos con Gobiernos Regionales para la implementación de Parques Industritales. | D27: Convenios suscritos | E27: Ministerio de la Producción - PRODUCE | F27: Ministerio de la Producción - PRODUCE | T27: 9 | Z27: Número de convenios suscritos con Gobiernos Regionales para la implementación de Parques Industritales.Convenios suscritos | AA27: 9 | AG27: P
A28: EJE 1: ACTIVIDADES ECONÓMICAS PRODUCTIVAS | B28: AGE.4.1 | C28: Número de institiciones acreditadas para realizar la certificación de origen y calidad. | D28: Entidades | E28: Ministerio de Comercio Exterior y Turismo - MINCETUR | F28: Ministerio de Comercio Exterior y Turismo - MINCETUR | G28: 10 | K28: 21 | L28: 21 | M28: 21 | N28: 22 | V28: 32 | X28: ¡Faltan datos! | Z28: Número de institiciones acreditadas para realizar la certificación de origen y calidad.Entidades | AC28: 32 | AE28: ¡Faltan datos! | AG28: P
A29: EJE 1: ACTIVIDADES ECONÓMICAS PRODUCTIVAS | B29: AGE.7.3 | C29: Número de Parques Industriales potenciados que promueven innovación tecnológica y el desarrollo productivo. | D29: 3 (Norte)/3 (Centro)/3 (Sur) | E29: Ministerio de la Producción - PRODUCE | F29: Ministerio de la Producción - PRODUCE | T29: 9 | Z29: Número de Parques Industriales potenciados que promueven innovación tecnológica y el desarrollo productivo.3 (Norte)/3 (Centro)/3 (Sur) | AA29: 9 | AG29: P
A30: EJE 1: ACTIVIDADES ECONÓMICAS PRODUCTIVAS | B30: AGE.5.1 | C30: Plan Nacional y planes regionales aprobados y con financiamiento. para la promoción y sostenimiento de las unidades económicas urbanas de pequeña escala. | D30: Plan Nacional | E30: No determinado | F30: No determinado | T30: 1 | Z30: Plan Nacional y planes regionales aprobados y con financiamiento. para la promoción y sostenimiento de las unidades económicas urbanas de pequeña escala.Plan Nacional | AA30: 1 | AG30: P
A31: EJE 1: ACTIVIDADES ECONÓMICAS PRODUCTIVAS | B31: AGE.5.1 | C31: Plan Nacional y planes regionales aprobados y con financiamiento. para la promoción y sostenimiento de las unidades económicas urbanas de pequeña escala. | D31: Planes Regionales implementados y con financiamiento | E31: No determinado | F31: No determinado | T31: 8 | Z31: Plan Nacional y planes regionales aprobados y con financiamiento. para la promoción y sostenimiento de las unidades económicas urbanas de pequeña escala.Planes Regionales implementados y con financiamiento | AA31: 8 | AG31: P
A32: EJE 1: ACTIVIDADES ECONÓMICAS PRODUCTIVAS | B32: AGE.7.1 | C32: Sistema Nacional de Parques Industriales implementado. (DL 199) | D32: Nacional | E32: Ministerio de la Producción - PRODUCE | F32: Ministerio de la Producción - PRODUCE | Z32: Sistema Nacional de Parques Industriales implementado. (DL 199)Nacional | AG32: P
A33: EJE 2: INFRAESTRUCTURA LOGÍSTICA, DE TRANSPORTE Y DE COMUNICACIONES | B33: AGE.8.1 | C33: % de hogares con al menos 1 miembro con teléfono celular | D33: Rural | E33: INEI: Boletín Estadísticas de las TIC. Abril-Junio 2018. Cuadros No. 1 y 3 | F33: Instituto Nacional de Estadística e Informatica (INEI) | G33: 68.9 | H33: 73.1 | I33: 76.4 | J33: 76.4 | K33: 79 | L33: 81.9 | M33: 82.3 | N33: 84.6 | V33: 96 | X33: ¡Faltan datos! | Z33: % de hogares con al menos 1 miembro con teléfono celular Rural | AC33: 96 | AE33: ¡Faltan datos! | AG33: P
A34: EJE 2: INFRAESTRUCTURA LOGÍSTICA, DE TRANSPORTE Y DE COMUNICACIONES | B34: AGE.8.1 | C34: % de hogares con al menos 1 miembro con teléfono celular | D34: Rural | E34: Ministerio de Transportes y Comuniciaciones: Red Vial del Sistema Nacional de Carreteras (31/07/2018) | F34: Instituto Nacional de Estadística e Informatica (INEI) | T34: 85 | Z34: % de hogares con al menos 1 miembro con teléfono celular Rural | AA34: 85 | AG34: P
A35: EJE 2: INFRAESTRUCTURA LOGÍSTICA, DE TRANSPORTE Y DE COMUNICACIONES | B35: AGE.8.1 | C35: % de hogares con al menos 1 miembro con teléfono celular | D35: Total | E35: INEI - RENAMU. Cuadro No. 8 - Municipalidades que cuentan con servicio de Internet y computadoras con acceso a este servicio, según Departamento, 2017 | F35: Instituto Nacional de Estadística e Informatica (INEI) | T35: 89 | Z35: % de hogares con al menos 1 miembro con teléfono celular Total | AA35: 89 | AG35: P
A36: EJE 2: INFRAESTRUCTURA LOGÍSTICA, DE TRANSPORTE Y DE COMUNICACIONES | B36: AGE.8.1 | C36: % de hogares con al menos 1 miembro con teléfono celular | D36: Total | E36: INEI: Boletín Estadísticas de las TIC. Abril-Junio 2018. Cuadros No. 1 y 2 | F36: Instituto Nacional de Estadística e Informatica (INEI) | G36: 84.9 | H36: 87.2 | I36: 88.9 | J36: 88.9 | K36: 90.9 | L36: 92.6 | M36: 93.2 | N36: 94.2 | V36: 101 | X36: ¡Faltan datos! | Z36: % de hogares con al menos 1 miembro con teléfono celular Total | AC36: 101 | AE36: ¡Faltan datos! | AG36: P
A37: EJE 2: INFRAESTRUCTURA LOGÍSTICA, DE TRANSPORTE Y DE COMUNICACIONES | B37: AGE.9.2 | C37: Km de vía departamental pavimientada respecto del total de Km de vías departamentales | D37: Departamental | E37: Ministerio de Transportes y Comuniciaciones: Red Vial del Sistema Nacional de Carreteras (31/07/2018) | F37: Ministerio de Transportes y Comuniciaciones - MTC | G37: 2429.8 | H37: 3459 | I37: 3672.9 | J37: 3672.9 | K37: 21007.1 | L37: 4261.3 | M37: 4261.7 | N37: 4262.4 | V37: 9515 | X37: ¡Faltan datos! | Z37: Km de vía departamental pavimientada respecto del total de Km de vías departamentales Departamental | AC37: 9515 | AE37: ¡Faltan datos! | AG37: P
A38: EJE 2: INFRAESTRUCTURA LOGÍSTICA, DE TRANSPORTE Y DE COMUNICACIONES | B38: AGE.9.1 | C38: Km de vía nacional pavimientada respecto del total de Km de vías Nacionales | D38: Nacional | E38: Ministerio de Transportes y Comuniciaciones: Red Vial del Sistema Nacional de Carreteras (31/07/2018) | F38: Ministerio de Transportes y Comuniciaciones - MTC | G38: 17411.5 | H38: 18420.1 | I38: 19682.4 | J38: 20367.5 | K38: 21007.1 | L38: 22172.5 | M38: 22384.5 | N38: 22535.1 | V38: 26953 | X38: ¡Faltan datos! | Z38: Km de vía nacional pavimientada respecto del total de Km de vías Nacionales Nacional | AC38: 26953 | AE38: ¡Faltan datos! | AG38: P
A39: EJE 2: INFRAESTRUCTURA LOGÍSTICA, DE TRANSPORTE Y DE COMUNICACIONES | B39: AGE.9.3 | C39: Km de vía vecinal pavimientada respecto del total de Km de vías vecinales | D39: Vecinal | E39: Ministerio de Transportes y Comuniciaciones: Red Vial del Sistema Nacional de Carreteras (31/07/2018) | F39: Ministerio de Transportes y Comuniciaciones - MTC | G39: 1924.6 | H39: 1890.1 | I39: 1898.3 | J39: 1898.3 | K39: 3707.5 | L39: 2335.8 | M39: 2 317,7 | N39: 2781.6 | V39: 3798 | X39: ¡Faltan datos! | Z39: Km de vía vecinal pavimientada respecto del total de Km de vías vecinales Vecinal | AC39: 3798 | AE39: ¡Faltan datos! | AG39: P
A40: EJE 2: INFRAESTRUCTURA LOGÍSTICA, DE TRANSPORTE Y DE COMUNICACIONES | B40: AGE.10.2 | C40: Miles de personas en vuelos internacionales | D40: Internacional | E40: Ministerio de Transportes y Comuniciaciones - MTC: Transporte Aereo Pasajeros 2017 | F40: Ministerio de Transportes y Comuniciaciones - MTC | G40: 8485.3 | H40: 9026.1 | I40: 9964.2 | J40: 9964.2 | K40: 1880.7 | L40: 12.371 | M40: 2.965 | T40: 10432 | V40: -10953 | X40: Rojo | Z40: Miles de personas en vuelos internacionalesInternacional | AA40: 10432 | AC40: -10953 | AE40: Rojo | AG40: P
A41: EJE 2: INFRAESTRUCTURA LOGÍSTICA, DE TRANSPORTE Y DE COMUNICACIONES | B41: AGE.10.1 | C41: Miles de personas en vuelos nacionales | D41: Nacional | E41: Ministerio de Transportes y Comuniciaciones - MTC: Transporte Aereo Pasajeros 2017 | F41: Ministerio de Transportes y Comuniciaciones - MTC | G41: 8950.2 | H41: 10005.2 | I41: 10794 | J41: 11708.3 | K41: 12.71 | L41: 13.828 | M41: 4.876 | T41: 11785 | V41: -12587 | X41: Rojo | Z41: Miles de personas en vuelos nacionalesNacional | AA41: 11785 | AC41: -12587 | AE41: Rojo | AG41: P
A42: EJE 2: INFRAESTRUCTURA LOGÍSTICA, DE TRANSPORTE Y DE COMUNICACIONES | B42: AGE.8.2 | C42: Municipalidades con conexión por fibra óptica o transporte de alta velocidad (con cobertura internet) | D42: Distritos con cobertura Internet | E42: INEI - RENAMU. Cuadro No. 8 - Municipalidades que cuentan con servicio de Internet y computadoras con acceso a este servicio, según Departamento, 2017 | F42: Instituto Nacional de Estadística e Informatica (INEI) | G42: 1478 | H42: 1492 | I42: 1530 | J42: 1530 | K42: 1675 | L42: 1721 | M42: 1766 | T42: 1838 | V42: 2070 | X42: Verde | Z42: Municipalidades con conexión por fibra óptica o transporte de alta velocidad (con cobertura internet)Distritos con cobertura Internet | AA42: 1838 | AC42: 2070 | AE42: Verde | AG42: P
A43: EJE 2: INFRAESTRUCTURA LOGÍSTICA, DE TRANSPORTE Y DE COMUNICACIONES | B43: AGE.10.4 | C43: Toneladas en vuelos internacionales | D43: Internacional | E43: Ministerio de Transportes y Comuniciaciones - MTC: Transporte Aereo Pasajeros 2018 | F43: Ministerio de Transportes y Comuniciaciones - MTC | G43: 305620.6 | H43: 307842.4 | I43: 289166.9 | J43: 289166.9 | K43: 275.34 | L43: 258.413 | M43: 176.283 | T43: 390000 | V43: -414768 | X43: Rojo | Z43: Toneladas en vuelos internacionalesInternacional | AA43: 390000 | AC43: -414768 | AE43: Rojo | AG43: P
A44: EJE 2: INFRAESTRUCTURA LOGÍSTICA, DE TRANSPORTE Y DE COMUNICACIONES | B44: AGE.10.3 | C44: Toneladas en vuelos nacionales | D44: Nacional | E44: Ministerio de Transportes y Comuniciaciones - MTC: Transporte Aereo Pasajeros 2018 | F44: Ministerio de Transportes y Comuniciaciones - MTC | G44: 32336.5 | H44: 31573.2 | I44: 28477.2 | J44: 30256 | K44: 30.34 | L44: 30.301 | M44: 18.393 | T44: 39451 | V44: -43053 | X44: Rojo | Z44: Toneladas en vuelos nacionalesNacional | AA44: 39451 | AC44: -43053 | AE44: Rojo | AG44: P
A45: EJE 3: POLÍTICA FISCAL | B45: AGE.15.1 | C45: Elevar la presión tributaria como % del PIB | D45: Nacional | E45: INEI: Compendio Estadístico Perú | F45: Instituto Nacional de Estadística e Informática (INEI) | G45: 16.7 | H45: 15 | I45: 13.8 | J45: 13.3 | K45: 14.3 | L45: 14.4 | M45: 13 | N45: 16 | T45: 18 | V45: 13 | X45: Ambar | Z45: Elevar la presión tributaria como % del PIB Nacional | AA45: 18 | AC45: 13 | AE45: Ambar | AG45: P
A46: EJE 3: POLÍTICA FISCAL | B46: AGE.15.3 | C46: Elevar la recaudación del impuesto a la renta en empresas y personas naturales y selectivo al consumo (%PBI) | D46: ISC | E46: INEI: Compendio Estadístico Perú | F46: Instituto Nacional de Estadística e Informática (INEI) | G46: 0.9 | H46: 0.9 | I46: 0.9 | J46: 0.9 | K46: 1.3 | L46: 1.1 | M46: 10 | N46: 10 | T46: 1.3 | V46: 14 | X46: Verde | Z46: Elevar la recaudación del impuesto a la renta en empresas y personas naturales y selectivo al consumo (%PBI)ISC | AA46: 1.3 | AC46: 14 | AE46: Verde | AG46: P
A47: EJE 3: POLÍTICA FISCAL | B47: AGE.15.3 | C47: Elevar la recaudación del impuesto a la renta en empresas y personas naturales y selectivo al consumo (%PBI) | D47: Persona jurídica | E47: INEI: Compendio Estadístico Perú | F47: Instituto Nacional de Estadística e Informática (INEI) | G47: 4.4 | H47: 3.4 | I47: 3.4 | J47: 3 | K47: 3.1 | L47: 3.1 | M47: 2.9 | N47: 3.4 | T47: 5 | V47: 2 | X47: Rojo | Z47: Elevar la recaudación del impuesto a la renta en empresas y personas naturales y selectivo al consumo (%PBI)Persona jurídica | AA47: 5 | AC47: 2 | AE47: Rojo | AG47: P
A48: EJE 3: POLÍTICA FISCAL | B48: AGE.15.3 | C48: Elevar la recaudación del impuesto a la renta en empresas y personas naturales y selectivo al consumo (%PBI) | D48: Persona Natural | E48: INEI: Compendio Estadístico Perú | F48: Instituto Nacional de Estadística e Informática (INEI) | G48: 1.9 | H48: 1.8 | I48: 1.8 | J48: 1.7 | K48: 1.7 | L48: 1.8 | M48: 1.8 | N48: 1.8 | T48: 2.1 | V48: 2 | X48: Verde | Z48: Elevar la recaudación del impuesto a la renta en empresas y personas naturales y selectivo al consumo (%PBI)Persona Natural | AA48: 2.1 | AC48: 2 | AE48: Verde | AG48: P
A49: EJE 3: POLÍTICA FISCAL | B49: AGE.15.3 | C49: Elevar la recaudación del impuesto a la renta en empresas y personas naturales y selectivo al consumo (%PBI) | D49: Regularización | E49: INEI: Compendio Estadístico Perú | F49: Instituto Nacional de Estadística e Informática (INEI) | G49: 0.7 | H49: 0.6 | I49: 0.6 | J49: 0.7 | K49: 0.9 | L49: 0.8 | M49: 0.6 | N49: 1 | T49: 0.7 | V49: 1 | X49: Verde | Z49: Elevar la recaudación del impuesto a la renta en empresas y personas naturales y selectivo al consumo (%PBI)Regularización | AA49: 0.7 | AC49: 1 | AE49: Verde | AG49: P
A50: EJE 3: POLÍTICA FISCAL | B50: AGE.15.3 | C50: Elevar la recaudación del impuesto a la renta en empresas y personas naturales y selectivo al consumo (%PBI) | D50: Total | E50: INEI: Compendio Estadístico Perú | F50: Instituto Nacional de Estadística e Informática (INEI) | G50: 7 | H50: 5.8 | I50: 5.7 | J50: 5.7 | K50: 5.6 | L50: 5.7 | M50: 5.3 | N50: 6.3 | T50: 9 | V50: 5 | X50: Ambar | Z50: Elevar la recaudación del impuesto a la renta en empresas y personas naturales y selectivo al consumo (%PBI)Total | AA50: 9 | AC50: 5 | AE50: Ambar | AG50: P
A51: EJE 3: POLÍTICA FISCAL | B51: AGE.15.2 | C51: Elevar la recaudación tributaria en materia de IGV. (%PBI) | D51: Impuesto a la Renta Nacional | E51: INEI: Compendio Estadístico Perú | F51: Instituto Nacional de Estadística e Informática (INEI) | G51: 8.8 | H51: 8.6 | I51: 8.1 | J51: 7.9 | K51: 8.3 | L51: 8.2 | M51: 7.7 | N51: 9 | T51: 9 | V51: 8 | X51: Verde | Z51: Elevar la recaudación tributaria en materia de IGV. (%PBI)Impuesto a la Renta Nacional | AA51: 9 | AC51: 8 | AE51: Verde | AG51: P
A52: EJE 3: POLÍTICA FISCAL | B52: AGE.16.1 | C52: Elevar las contribuciones sociales (%PBI) | D52: Essalud | E52: INEI: Compendio Estadístico Perú | F52: Instituto Nacional de Estadística e Informática (INEI) | G52: 3 | H52: 3 | I52: 2.4 | J52: 2.3 | T52: 2 | V52: 0 | X52: Rojo | Z52: Elevar las contribuciones sociales (%PBI)Essalud | AA52: 2 | AC52: 0 | AE52: Rojo | AG52: P
A53: EJE 3: POLÍTICA FISCAL | B53: AGE.16.1 | C53: Elevar las contribuciones sociales (%PBI) | D53: ONP | E53: INEI: Compendio Estadístico Perú | F53: Instituto Nacional de Estadística e Informática (INEI) | G53: 2.1 | H53: 1.2 | I53: 2.1 | J53: 2 | T53: 0.8 | V53: 2 | X53: Verde | Z53: Elevar las contribuciones sociales (%PBI)ONP | AA53: 0.8 | AC53: 2 | AE53: Verde | AG53: P
A54: EJE 3: POLÍTICA FISCAL | B54: AGE.16.2 | C54: Elevar los ingresos no tributarios (%PBI) | D54: Total | E54: INEI: Compendio Estadístico Perú | F54: Instituto Nacional de Estadística e Informática (INEI) | G54: 0.44 | H54: 0.3 | I54: 0.26 | J54: 0.3 | T54: 0.25 | V54: 0 | X54: Rojo | Z54: Elevar los ingresos no tributarios (%PBI)Total | AA54: 0.25 | AC54: 0 | AE54: Rojo | AG54: P
A55: EJE 3: POLÍTICA FISCAL | B55: AGE.14.1 | C55: Gasto Público Corriente no financiero ni previsional Total y Per capita | D55: G. Corriente sin Prev. ni Deuda | E55: Ministerio de Economía y Finanzas (MEF)- Seguimiento de la Ejecución Presupuestal (Consulta amigable) | F55: Portal de Transparencia Económica | G55: 74620.3 | H55: 81377 | I55: 85467.7 | J55: 96280.4 | K55: 100362 | L55: 100408 | M55: 125644404.9 | N55: 127873458083 | V55: 106640468940 | X55: ¡Faltan datos! | Z55: Gasto Público Corriente no financiero ni previsional Total y Per capitaG. Corriente sin Prev. ni Deuda | AC55: 106640468940 | AE55: ¡Faltan datos! | AG55: P
A56: EJE 3: POLÍTICA FISCAL | B56: AGE.14.1 | C56: Gasto Público Corriente no financiero ni previsional Total y Per capita | D56: G.Proy. per Cápita | E56: Ministerio de Economía y Finanzas (MEF)- Seguimiento de la Ejecución Presupuestal (Consulta amigable) | F56: Portal de Transparencia Económica | G56: 989.5 | H56: 940.4 | I56: 819.1 | J56: 848 | K56: 965.5 | L56: 997.4 | M56: 863181.8 | N56: 1174323095 | V56: 979146790 | X56: ¡Faltan datos! | Z56: Gasto Público Corriente no financiero ni previsional Total y Per capitaG.Proy. per Cápita | AC56: 979146790 | AE56: ¡Faltan datos! | AG56: P
A57: EJE 3: POLÍTICA FISCAL | B57: AGE.14.1 | C57: Gasto Público Corriente no financiero ni previsional Total y Per capita | D57: GCsPD per Cápita | E57: Ministerio de Economía y Finanzas (MEF)- Seguimiento de la Ejecución Presupuestal (Consulta amigable) | F57: Portal de Transparencia Económica | G57: 2343.7 | H57: 2509.8 | I57: 2590.5 | J57: 2875.9 | K57: 2997.8 | L57: 3.1 | M57: 3827.8 | N57: 3870847831 | V57: 3225706903 | X57: ¡Faltan datos! | Z57: Gasto Público Corriente no financiero ni previsional Total y Per capitaGCsPD per Cápita | AC57: 3225706903 | AE57: ¡Faltan datos! | AG57: P
A58: EJE 3: POLÍTICA FISCAL | B58: AGE.14.1 | C58: Gasto Público Corriente no financiero ni previsional Total y Per capita | D58: Pago de Deuda | E58: Ministerio de Economía y Finanzas (MEF)- Seguimiento de la Ejecución Presupuestal (Consulta amigable) | F58: Portal de Transparencia Económica | G58: 9365.5 | H58: 10109.4 | I58: 10841.3 | J58: 10841.3 | K58: 12404.9 | L58: 13251 | M58: 12755390 | N58: 14837369998 | V58: 12372520535 | X58: ¡Faltan datos! | Z58: Gasto Público Corriente no financiero ni previsional Total y Per capitaPago de Deuda | AC58: 12372520535 | AE58: ¡Faltan datos! | AG58: P
A59: EJE 3: POLÍTICA FISCAL | B59: AGE.14.1 | C59: Gasto Público Corriente no financiero ni previsional Total y Per capita | D59: Total Gasto Actividades | E59: Ministerio de Economía y Finanzas (MEF)- Seguimiento de la Ejecución Presupuestal (Consulta amigable) | F59: Portal de Transparencia Económica | G59: 97254.7 | H59: 104713.7 | I59: 109722.5 | J59: 109722.5 | K59: 127814 | L59: 129968 | M59: 154274038.7 | N59: 160126370478 | V59: 133535952644 | X59: ¡Faltan datos! | Z59: Gasto Público Corriente no financiero ni previsional Total y Per capitaTotal Gasto Actividades | AC59: 133535952644 | AE59: ¡Faltan datos! | AG59: P
A60: EJE 3: POLÍTICA FISCAL | B60: AGE.14.1 | C60: Gasto Público Corriente no financiero ni previsional Total y Per capita | D60: Total Previsional | E60: Ministerio de Economía y Finanzas (MEF)- Seguimiento de la Ejecución Presupuestal (Consulta amigable) | F60: Portal de Transparencia Económica | G60: 13268.9 | H60: 13227.3 | I60: 13413.5 | J60: 13413.5 | K60: 14468.4 | L60: 16309 | M60: 15874243.8 | N60: 17415542397 | V60: 14522963297 | X60: ¡Faltan datos! | Z60: Gasto Público Corriente no financiero ni previsional Total y Per capitaTotal Previsional | AC60: 14522963297 | AE60: ¡Faltan datos! | AG60: P
A61: EJE 3: POLÍTICA FISCAL | B61: AGE.12.1 | C61: Gasto Social referido a las funciones de Trabajo, Saneamiento, Vivienda y Desarrollo urbano, Salud, Cultura y deporte, Educación, Protección social y Pensiones (Millones de soles) Devengado SIAF | D61: Cultura y Dep | E61: Ministerio de Economía y Finanzas - MEF / SIAF Consulta Amigable Enero 2019 | F61: Ministerio de Economía y Finanzas (MEF) | G61: 829.7 | H61: 792 | I61: 1392.2 | J61: 1392.2 | K61: 3956 | L61: 1760885.3 | M61: 865971.4 | N61: 832513765 | V61: 695062416 | X61: ¡Faltan datos! | Z61: Gasto Social referido a las funciones de Trabajo, Saneamiento, Vivienda y Desarrollo urbano, Salud, Cultura y deporte, Educación, Protección social y Pensiones (Millones de soles) Devengado SIAFCultura y Dep | AC61: 695062416 | AE61: ¡Faltan datos! | AG61: P
A62: EJE 3: POLÍTICA FISCAL | B62: AGE.12.1 | C62: Gasto Social referido a las funciones de Trabajo, Saneamiento, Vivienda y Desarrollo urbano, Salud, Cultura y deporte, Educación, Protección social y Pensiones (Millones de soles) Devengado SIAF | D62: Educación | E62: Ministerio de Economía y Finanzas - MEF / SIAF Consulta Amigable Enero 2019 | F62: Ministerio de Economía y Finanzas (MEF) | G62: 16109.4 | H62: 18387.7 | I62: 19975.5 | J62: 19975.5 | K62: 27306 | L62: 24921386.8 | M62: 25331355.5 | N62: 27316183350 | V62: 22790136281 | X62: ¡Faltan datos! | Z62: Gasto Social referido a las funciones de Trabajo, Saneamiento, Vivienda y Desarrollo urbano, Salud, Cultura y deporte, Educación, Protección social y Pensiones (Millones de soles) Devengado SIAFEducación | AC62: 22790136281 | AE62: ¡Faltan datos! | AG62: P
A63: EJE 3: POLÍTICA FISCAL | B63: AGE.12.1 | C63: Gasto Social referido a las funciones de Trabajo, Saneamiento, Vivienda y Desarrollo urbano, Salud, Cultura y deporte, Educación, Protección social y Pensiones (Millones de soles) Devengado SIAF | D63: Pensiones | E63: Ministerio de Economía y Finanzas - MEF / SIAF Consulta Amigable Enero 2019 | F63: Ministerio de Economía y Finanzas (MEF) | G63: 13269 | H63: 13227.3 | I63: 13413.5 | J63: 13413.5 | K63: 14469 | L63: 16309.8 | M63: 15874243.8 | N63: 17415542397 | V63: 14522963297 | X63: ¡Faltan datos! | Z63: Gasto Social referido a las funciones de Trabajo, Saneamiento, Vivienda y Desarrollo urbano, Salud, Cultura y deporte, Educación, Protección social y Pensiones (Millones de soles) Devengado SIAFPensiones | AC63: 14522963297 | AE63: ¡Faltan datos! | AG63: P
A64: EJE 3: POLÍTICA FISCAL | B64: AGE.12.1 | C64: Gasto Social referido a las funciones de Trabajo, Saneamiento, Vivienda y Desarrollo urbano, Salud, Cultura y deporte, Educación, Protección social y Pensiones (Millones de soles) Devengado SIAF | D64: Presupuesto | E64: Ministerio de Economía y Finanzas - MEF / SIAF Consulta Amigable Enero 2019 | F64: Ministerio de Economía y Finanzas (MEF) | G64: 50131.7 | H64: 53982.5 | I64: 55816.7 | J64: 55816.7 | K64: 79002 | L64: =L61+L62+L63+L65+L66+L67+L68+L69 -> 36455111.1 | M64: =M61+M62+M63+M65+M66+M67+M68+M69 -> 90252642.6 | N64: 92115298546 | V64: 76835276950 | X64: ¡Faltan datos! | Z64: Gasto Social referido a las funciones de Trabajo, Saneamiento, Vivienda y Desarrollo urbano, Salud, Cultura y deporte, Educación, Protección social y Pensiones (Millones de soles) Devengado SIAFPresupuesto | AC64: 76835276950 | AE64: ¡Faltan datos! | AG64: P
A65: EJE 3: POLÍTICA FISCAL | B65: AGE.12.1 | C65: Gasto Social referido a las funciones de Trabajo, Saneamiento, Vivienda y Desarrollo urbano, Salud, Cultura y deporte, Educación, Protección social y Pensiones (Millones de soles) Devengado SIAF | D65: Prot. Social | E65: Ministerio de Economía y Finanzas - MEF / SIAF Consulta Amigable Enero 2019 | F65: Ministerio de Economía y Finanzas (MEF) | G65: 5563.8 | H65: 5119.6 | I65: 5121.2 | J65: 5121.2 | K65: 6041 | L65: 6480141.9 | M65: 13937503.2 | N65: 14780619019 | V65: 12328748998 | X65: ¡Faltan datos! | Z65: Gasto Social referido a las funciones de Trabajo, Saneamiento, Vivienda y Desarrollo urbano, Salud, Cultura y deporte, Educación, Protección social y Pensiones (Millones de soles) Devengado SIAFProt. Social | AC65: 12328748998 | AE65: ¡Faltan datos! | AG65: P
A66: EJE 3: POLÍTICA FISCAL | B66: AGE.12.1 | C66: Gasto Social referido a las funciones de Trabajo, Saneamiento, Vivienda y Desarrollo urbano, Salud, Cultura y deporte, Educación, Protección social y Pensiones (Millones de soles) Devengado SIAF | D66: Salud | E66: Ministerio de Economía y Finanzas - MEF / SIAF Consulta Amigable Enero 2019 | F66: Ministerio de Economía y Finanzas (MEF) | G66: 11624.5 | H66: 12711.3 | I66: 13419 | J66: 13419 | K66: 18067 | L66: 16614.2 | M66: 22087231.3 | N66: 24458953645 | V66: 20396394869 | X66: ¡Faltan datos! | Z66: Gasto Social referido a las funciones de Trabajo, Saneamiento, Vivienda y Desarrollo urbano, Salud, Cultura y deporte, Educación, Protección social y Pensiones (Millones de soles) Devengado SIAFSalud | AC66: 20396394869 | AE66: ¡Faltan datos! | AG66: P
A67: EJE 3: POLÍTICA FISCAL | B67: AGE.12.1 | C67: Gasto Social referido a las funciones de Trabajo, Saneamiento, Vivienda y Desarrollo urbano, Salud, Cultura y deporte, Educación, Protección social y Pensiones (Millones de soles) Devengado SIAF | D67: Saneamiento | E67: Ministerio de Economía y Finanzas - MEF / SIAF Consulta Amigable Enero 2019 | F67: Ministerio de Economía y Finanzas (MEF) | G67: 964.3 | H67: 782.5 | I67: 538.5 | J67: 538.5 | K67: 5386 | L67: 871217.3 | M67: 794197.9 | N67: 1137078975 | V67: 948440567 | X67: ¡Faltan datos! | Z67: Gasto Social referido a las funciones de Trabajo, Saneamiento, Vivienda y Desarrollo urbano, Salud, Cultura y deporte, Educación, Protección social y Pensiones (Millones de soles) Devengado SIAFSaneamiento | AC67: 948440567 | AE67: ¡Faltan datos! | AG67: P
A68: EJE 3: POLÍTICA FISCAL | B68: AGE.12.1 | C68: Gasto Social referido a las funciones de Trabajo, Saneamiento, Vivienda y Desarrollo urbano, Salud, Cultura y deporte, Educación, Protección social y Pensiones (Millones de soles) Devengado SIAF | D68: Trabajo | E68: Ministerio de Economía y Finanzas - MEF / SIAF Consulta Amigable Enero 2019 | F68: Ministerio de Economía y Finanzas (MEF) | G68: 373.2 | H68: 538.6 | I68: 356.2 | J68: 356.2 | K68: 499 | L68: 515.2 | M68: 8989152.1 | N68: 3529277221 | V68: 2946735933 | X68: ¡Faltan datos! | Z68: Gasto Social referido a las funciones de Trabajo, Saneamiento, Vivienda y Desarrollo urbano, Salud, Cultura y deporte, Educación, Protección social y Pensiones (Millones de soles) Devengado SIAFTrabajo | AC68: 2946735933 | AE68: ¡Faltan datos! | AG68: P
A69: EJE 3: POLÍTICA FISCAL | B69: AGE.12.1 | C69: Gasto Social referido a las funciones de Trabajo, Saneamiento, Vivienda y Desarrollo urbano, Salud, Cultura y deporte, Educación, Protección social y Pensiones (Millones de soles) Devengado SIAF | D69: Vivienda y DU | E69: Ministerio de Economía y Finanzas - MEF / SIAF Consulta Amigable Enero 2019 | F69: Ministerio de Economía y Finanzas (MEF) | G69: 1397.8 | H69: 2423.5 | I69: 1600.6 | J69: 1600.6 | K69: 3278 | L69: 2388040.6 | M69: 2372987.4 | N69: 2645130174 | V69: 2206794588 | X69: ¡Faltan datos! | Z69: Gasto Social referido a las funciones de Trabajo, Saneamiento, Vivienda y Desarrollo urbano, Salud, Cultura y deporte, Educación, Protección social y Pensiones (Millones de soles) Devengado SIAFVivienda y DU | AC69: 2206794588 | AE69: ¡Faltan datos! | AG69: P
A70: EJE 3: POLÍTICA FISCAL | B70: AGE.13.2 | C70: Incremento del Gasto de Inversión para cierre de brechas según prioridades con respecto al año base 2015. | D70: Total Nacional | E70: Ministerio de Economía y Finanzas (MEF)- Seguimiento de la Ejecución Presupuestal (Consulta amigable) | F70: Portal de Transparencia Económica | Z70: Incremento del Gasto de Inversión para cierre de brechas según prioridades con respecto al año base 2015.Total Nacional | AG70: P
A71: EJE 3: POLÍTICA FISCAL | B71: AGE.13.1 | C71: Monto ejecutado en proyectos de inversión. (Devengado) | D71: Total Nacional | E71: Ministerio de Economía y Finanzas (MEF)- Seguimiento de la Ejecución Presupuestal (Consulta amigable) | F71: Portal de Transparencia Económica | G71: 31489.7 | H71: 30481.6 | I71: 26955 | J71: 28311.6 | K71: 32290.3 | L71: 32409.3 | M71: 28333080.8 | N71: 38793763429 | V71: 32346000089 | X71: ¡Faltan datos! | Z71: Monto ejecutado en proyectos de inversión. (Devengado) Total Nacional | AC71: 32346000089 | AE71: ¡Faltan datos! | AG71: P
A72: EJE 3: POLÍTICA FISCAL | B72: AGE.12.2 | C72: Monto ejecutado en programas presupuestales vinculados a servicios universales en salud y educación. PPE: PAN, SMN, Prevención y Control de Cáncer TBC -VIH SIDA, PELA Básica Regular(soles, Devengado Anual) | D72: Cáncer | E72: Ministerio de Economía y Finanzas - MEF / SIAF Consulta Amigable Enero 2019 | F72: Ministerio de Economía y Finanzas (MEF) | G72: 407 | H72: 577 | I72: 568 | J72: 568 | K72: 833.2 | L72: 613.3 | M72: 595818 | N72: 724435581 | V72: =+FORECAST(2026,G72:N72,$G$6:$N$6) -> 604072156 | X72: =IF(OR(T72="",V72="",T72="No se puede proyectar",V72="Sin datos",AG72=""),"¡Faltan datos!", IF(AG72="P", IF(V72>=(T72*85%),"Verde", IF(AND(V72<(T72*85%),V72>=(T72*50%)),"Ambar", IF(V72<(T72*50%),"Rojo","Verificar!"))), IF(AG72="N", IF(V72<=(T72*115%),"Verde", IF(AND(V72<=(T72*150%),V72>(T72*115%)),"Ambar", IF(V72>(T72*150%),"Rojo","Verificar!"))),"ERROR"))) -> ¡Faltan datos! | Z72: =CONCATENATE(C72,D72) -> Monto ejecutado en programas presupuestales vinculados a servicios universales en salud y educación. PPE: PAN, SMN, Prevención y Control de Cáncer TBC -VIH SIDA, PELA Básica Regular(soles, Devengado Anual)Cáncer | AC72: 604072156 | AE72: ¡Faltan datos! | AG72: P
A73: EJE 3: POLÍTICA FISCAL | B73: AGE.12.2 | C73: Monto ejecutado en programas presupuestales vinculados a servicios universales en salud y educación. PPE: PAN, SMN, Prevención y Control de Cáncer TBC -VIH SIDA, PELA Básica Regular(soles, Devengado Anual) | D73: Cáncer | E73: Ministerio de Economía y Finanzas (MEF)- Seguimiento de la Ejecución Presupuestal (Consulta amigable) | F73: Portal de Transparencia Económica | Z73: Monto ejecutado en programas presupuestales vinculados a servicios universales en salud y educación. PPE: PAN, SMN, Prevención y Control de Cáncer TBC -VIH SIDA, PELA Básica Regular(soles, Devengado Anual)Cáncer | AG73: P
A74: EJE 3: POLÍTICA FISCAL | B74: AGE.12.2 | C74: Monto ejecutado en programas presupuestales vinculados a servicios universales en salud y educación. PPE: PAN, SMN, Prevención y Control de Cáncer TBC -VIH SIDA, PELA Básica Regular(soles, Devengado Anual) | D74: Electrificación Rural (046) | E74: Ministerio de Economía y Finanzas - MEF / SIAF Consulta Amigable Enero 2019 | F74: Ministerio de Economía y Finanzas (MEF) | G74: 85 | H74: 147 | I74: 15 | J74: 15 | K74: 509.6 | L74: 59.7 | M74: 83963 | N74: 37993734 | V74: 31714455 | X74: ¡Faltan datos! | Z74: Monto ejecutado en programas presupuestales vinculados a servicios universales en salud y educación. PPE: PAN, SMN, Prevención y Control de Cáncer TBC -VIH SIDA, PELA Básica Regular(soles, Devengado Anual)Electrificación Rural (046) | AC74: 31714455 | AE74: ¡Faltan datos! | AG74: P
A75: EJE 3: POLÍTICA FISCAL | B75: AGE.12.2 | C75: Monto ejecutado en programas presupuestales vinculados a servicios universales en salud y educación. PPE: PAN, SMN, Prevención y Control de Cáncer TBC -VIH SIDA, PELA Básica Regular(soles, Devengado Anual) | D75: Inclusión | E75: Ministerio de Economía y Finanzas - MEF / SIAF Consulta Amigable Enero 2019 | F75: Ministerio de Economía y Finanzas (MEF) | G75: 124 | H75: 123 | I75: 146 | J75: 146 | K75: 172.7 | L75: 183.5 | M75: 198594.9 | N75: 211529590 | V75: 176399938 | X75: ¡Faltan datos! | Z75: Monto ejecutado en programas presupuestales vinculados a servicios universales en salud y educación. PPE: PAN, SMN, Prevención y Control de Cáncer TBC -VIH SIDA, PELA Básica Regular(soles, Devengado Anual)Inclusión | AC75: 176399938 | AE75: ¡Faltan datos! | AG75: P
A76: EJE 3: POLÍTICA FISCAL | B76: AGE.12.2 | C76: Monto ejecutado en programas presupuestales vinculados a servicios universales en salud y educación. PPE: PAN, SMN, Prevención y Control de Cáncer TBC -VIH SIDA, PELA Básica Regular(soles, Devengado Anual) | D76: PAN | E76: Ministerio de Economía y Finanzas - MEF / SIAF Consulta Amigable Enero 2019 | F76: Ministerio de Economía y Finanzas (MEF) | G76: 1693 | H76: 1949 | I76: 1929 | J76: 1929 | K76: 2496.7 | L76: 2514 | M76: 2310134.9 | N76: 2466832343 | V76: 2057150818 | X76: ¡Faltan datos! | Z76: Monto ejecutado en programas presupuestales vinculados a servicios universales en salud y educación. PPE: PAN, SMN, Prevención y Control de Cáncer TBC -VIH SIDA, PELA Básica Regular(soles, Devengado Anual)PAN | AC76: 2057150818 | AE76: ¡Faltan datos! | AG76: P
A77: EJE 3: POLÍTICA FISCAL | B77: AGE.12.2 | C77: Monto ejecutado en programas presupuestales vinculados a servicios universales en salud y educación. PPE: PAN, SMN, Prevención y Control de Cáncer TBC -VIH SIDA, PELA Básica Regular(soles, Devengado Anual) | D77: PELA B.Regular | E77: Ministerio de Economía y Finanzas - MEF / SIAF Consulta Amigable Enero 2019 | F77: Ministerio de Economía y Finanzas (MEF) | G77: 9643 | H77: 11585 | I77: 12902 | J77: 12902 | K77: 17478.1 | L77: 16421.3 | M77: 17084698.9 | N77: 17804175755 | V77: 14847591717 | X77: ¡Faltan datos! | Z77: Monto ejecutado en programas presupuestales vinculados a servicios universales en salud y educación. PPE: PAN, SMN, Prevención y Control de Cáncer TBC -VIH SIDA, PELA Básica Regular(soles, Devengado Anual)PELA B.Regular | AC77: 14847591717 | AE77: ¡Faltan datos! | AG77: P
A78: EJE 3: POLÍTICA FISCAL | B78: AGE.12.2 | C78: Monto ejecutado en programas presupuestales vinculados a servicios universales en salud y educación. PPE: PAN, SMN, Prevención y Control de Cáncer TBC -VIH SIDA, PELA Básica Regular(soles, Devengado Anual) | D78: Saneamiento Rural (083) | E78: Ministerio de Economía y Finanzas - MEF / SIAF Consulta Amigable Enero 2019 | F78: Ministerio de Economía y Finanzas (MEF) | G78: 113 | H78: 361 | I78: 247 | J78: 247 | K78: 2894.7 | L78: 464.1 | M78: 338161.7 | N78: 339099820 | V78: 282797159 | X78: ¡Faltan datos! | Z78: Monto ejecutado en programas presupuestales vinculados a servicios universales en salud y educación. PPE: PAN, SMN, Prevención y Control de Cáncer TBC -VIH SIDA, PELA Básica Regular(soles, Devengado Anual)Saneamiento Rural (083) | AC78: 282797159 | AE78: ¡Faltan datos! | AG78: P
A79: EJE 3: POLÍTICA FISCAL | B79: AGE.12.2 | C79: Monto ejecutado en programas presupuestales vinculados a servicios universales en salud y educación. PPE: PAN, SMN, Prevención y Control de Cáncer TBC -VIH SIDA, PELA Básica Regular(soles, Devengado Anual) | D79: Saneamiento Urbano (082) | E79: Ministerio de Economía y Finanzas - MEF / SIAF Consulta Amigable Enero 2019 | F79: Ministerio de Economía y Finanzas (MEF) | G79: 750 | H79: 343 | I79: 194 | J79: 194 | K79: 2072.2 | L79: 169.3 | M79: 211297.6 | N79: 470101365 | V79: 391884399 | X79: ¡Faltan datos! | Z79: Monto ejecutado en programas presupuestales vinculados a servicios universales en salud y educación. PPE: PAN, SMN, Prevención y Control de Cáncer TBC -VIH SIDA, PELA Básica Regular(soles, Devengado Anual)Saneamiento Urbano (082) | AC79: 391884399 | AE79: ¡Faltan datos! | AG79: P
A80: EJE 3: POLÍTICA FISCAL | B80: AGE.12.2 | C80: Monto ejecutado en programas presupuestales vinculados a servicios universales en salud y educación. PPE: PAN, SMN, Prevención y Control de Cáncer TBC -VIH SIDA, PELA Básica Regular(soles, Devengado Anual) | D80: SMN | E80: Ministerio de Economía y Finanzas - MEF / SIAF Consulta Amigable Enero 2019 | F80: Ministerio de Economía y Finanzas (MEF) | G80: 1365 | H80: 1749 | I80: 1886 | J80: 1886 | K80: 2152.2 | L80: 1896.3 | M80: 1773788.7 | N80: 1898071277 | V80: 1582844785 | X80: ¡Faltan datos! | Z80: Monto ejecutado en programas presupuestales vinculados a servicios universales en salud y educación. PPE: PAN, SMN, Prevención y Control de Cáncer TBC -VIH SIDA, PELA Básica Regular(soles, Devengado Anual)SMN | AC80: 1582844785 | AE80: ¡Faltan datos! | AG80: P
A81: EJE 3: POLÍTICA FISCAL | B81: AGE.12.2 | C81: Monto ejecutado en programas presupuestales vinculados a servicios universales en salud y educación. PPE: PAN, SMN, Prevención y Control de Cáncer TBC -VIH SIDA, PELA Básica Regular(soles, Devengado Anual) | D81: TBC-VIH Sida | E81: Ministerio de Economía y Finanzas - MEF / SIAF Consulta Amigable Enero 2019 | F81: Ministerio de Economía y Finanzas (MEF) | G81: 522 | H81: 590 | I81: 595 | J81: 595 | K81: 742.7 | L81: 675.9 | M81: 630420 | N81: 651447680 | V81: 543270668 | X81: ¡Faltan datos! | Z81: Monto ejecutado en programas presupuestales vinculados a servicios universales en salud y educación. PPE: PAN, SMN, Prevención y Control de Cáncer TBC -VIH SIDA, PELA Básica Regular(soles, Devengado Anual)TBC-VIH Sida | AC81: 543270668 | AE81: ¡Faltan datos! | AG81: P
A82: EJE 3: POLÍTICA FISCAL | B82: AGE.12.2 | C82: Monto ejecutado en programas presupuestales vinculados a servicios universales en salud y educación. PPE: PAN, SMN, Prevención y Control de Cáncer TBC -VIH SIDA, PELA Básica Regular(soles, Devengado Anual) | D82: Telecomunic. (124) | E82: Ministerio de Economía y Finanzas - MEF / SIAF Consulta Amigable Enero 2019 | F82: Ministerio de Economía y Finanzas (MEF) | G82: 78 | H82: 66 | I82: 78 | J82: 78 | K82: 53.5 | L82: 54.7 | M82: 49886.1 | N82: 51220516 | V82: 42715192 | X82: ¡Faltan datos! | Z82: Monto ejecutado en programas presupuestales vinculados a servicios universales en salud y educación. PPE: PAN, SMN, Prevención y Control de Cáncer TBC -VIH SIDA, PELA Básica Regular(soles, Devengado Anual)Telecomunic. (124) | AC82: 42715192 | AE82: ¡Faltan datos! | AG82: P
A83: EJE 3: POLÍTICA FISCAL | B83: AGE.13.4 | C83: Monto ejecutado en proyectos de inversión, según situación del proyecto al cierre del año fiscal | D83: Total Nacional | E83: Ministerio de Economía y Finanzas (MEF)- Seguimiento de la Ejecución Presupuestal (Consulta amigable) | F83: Portal de Transparencia Económica | G83: 26252 | H83: 26535 | I83: 24079 | J83: 28436 | K83: 27604 | L83: 27826 | M83: 28325039933 | N83: 38793763429 | V83: 50199876701 | X83: ¡Faltan datos! | Z83: Monto ejecutado en proyectos de inversión, según situación del proyecto al cierre del año fiscalTotal Nacional | AC83: 50199876701 | AE83: ¡Faltan datos! | AG83: P
A84: EJE 3: POLÍTICA FISCAL | B84: AGE.13.3 | C84: Número de proyectos de inversión con ejecución concluida y que cuentan con informe de cierre. | D84: Total Nacional | E84: Ministerio de Economía y Finanzas (MEF)- Seguimiento de la Ejecución Presupuestal (Consulta amigable) | F84: Portal de Transparencia Económica | Z84: Número de proyectos de inversión con ejecución concluida y que cuentan con informe de cierre. Total Nacional | AG84: P
A85: EJE 3: POLÍTICA FISCAL | B85: AGE.14.2 | C85: Relación entre inversión pública (Millones de Soles) y población rural. | D85: Población Rural | E85: Ministerio de Economía y Finanzas (MEF)- Seguimiento de la Ejecución Presupuestal (Consulta amigable) | F85: Portal de Transparencia Económica | H85: 7257989 | I85: 7174763 | J85: 7174763 | K85: 8542 | L85: 8600 | M85: 8656 | V85: -12158639 | X85: ¡Faltan datos! | Z85: Relación entre inversión pública (Millones de Soles) y población rural.Población Rural | AC85: -12158639 | AE85: ¡Faltan datos! | AG85: P
A86: EJE 3: POLÍTICA FISCAL | B86: AGE.14.2 | C86: Relación entre inversión pública (Millones de Soles) y población rural. | D86: Población Total | E86: Ministerio de Economía y Finanzas (MEF)- Seguimiento de la Ejecución Presupuestal (Consulta amigable) | F86: Portal de Transparencia Económica | G86: 30814175 | H86: 31151643 | I86: 31488625 | J86: 31488625 | K86: 32162 | L86: 32495 | M86: 32824 | V86: -41935254 | X86: ¡Faltan datos! | Z86: Relación entre inversión pública (Millones de Soles) y población rural.Población Total | AC86: -41935254 | AE86: ¡Faltan datos! | AG86: P
A87: EJE 3: POLÍTICA FISCAL | B87: AGE.14.2 | C87: Relación entre inversión pública (Millones de Soles) y población rural. | D87: Proyectos de Inversión | E87: Ministerio de Economía y Finanzas (MEF)- Seguimiento de la Ejecución Presupuestal (Consulta amigable) | F87: Portal de Transparencia Económica | G87: 31840 | H87: 30628 | I87: 27128 | J87: 27128 | V87: 10663 | X87: ¡Faltan datos! | Z87: Relación entre inversión pública (Millones de Soles) y población rural.Proyectos de Inversión | AC87: 10663 | AE87: ¡Faltan datos! | AG87: P
A88: EJE 3: POLÍTICA FISCAL | B88: AGE.11.2 | C88: Se cuenta con plan de corto, mediano y largo plazo para el cierre de brechas de oferta por servicio, con metas fisicas y metas financieras (en gasto corriente e inversión) para el cierre de las mismas. | D88: Plan | E88: Exposición de motivos del Proyecto de Ley del Presupuesto 2021 | F88: Ministerio de Economía y Finanzas (MEF) | Z88: Se cuenta con plan de corto, mediano y largo plazo para el cierre de brechas de oferta por servicio, con metas fisicas y metas financieras (en gasto corriente e inversión) para el cierre de las mismas. Plan | AG88: P
A89: EJE 3: POLÍTICA FISCAL | B89: AGE.11.1 | C89: Se cuenta con un sistema de medición de la brecha de oferta de servicios públicos en salud,nutrición,agua y saneamiento,electrificación,transportes y comunicaciones,seguridad ciudadana,acceso a la justicia | D89: Portal web | E89: Portal del Sistema de medición | F89: Sin datos | Z89: Se cuenta con un sistema de medición de la brecha de oferta de servicios públicos en salud,nutrición,agua y saneamiento,electrificación,transportes y comunicaciones,seguridad ciudadana,acceso a la justiciaPortal web | AG89: P
A90: EJE 4: EMPLEO E INGRESOS | B90: AGE.19.1 | C90: % de PEA-O con seguro de salud | D90: Porcentaje | E90: INEI Evolución de los Indicadores de empleo e ingresos por departamento 2007-2017 (Cuadro No. 10.1) | F90: Instituto Nacional de Estadística e Informática-Encuesta Nacional de Hogares. | G90: 65.8 | H90: 69.7 | I90: 72.2 | J90: 72.6 | K90: 72.7 | L90: 77.5 | M90: 78.2 | V90: 90 | X90: ¡Faltan datos! | Z90: % de PEA-O con seguro de saludPorcentaje | AC90: 90 | AE90: ¡Faltan datos! | AG90: P
A91: EJE 4: EMPLEO E INGRESOS | B91: AGE.19.1 | C91: % de PEA-O con seguro de salud | D91: Porcentaje | E91: Sistema de Información Regional para la Toma de Decisiones (SIRTOD) - Instituto Nacional de Estadística e Información (INEI) | F91: Encuesta Nacional de Hogares (ENAHO) - Instituto Nacional de Estadística e Informática (INEI) | Z91: % de PEA-O con seguro de saludPorcentaje | AG91: P
A92: EJE 4: EMPLEO E INGRESOS | B92: AGE.19.4 | C92: % de Trab. Fam no remunerados que cuentan con Seguro Social | D92: Trabajador familiar | E92: Estadística Institucional Essalud, Instituto Nacional de Estadística e Informática INEI | F92: Sistema Estadístico de Salud (SES) - 2017 | Z92: % de Trab. Fam no remunerados que cuentan con Seguro SocialTrabajador familiar | AG92: P
A93: EJE 4: EMPLEO E INGRESOS | B93: AGE.17.5 | C93: % Pob. Adulta mayor que cuenta con pensión | D93: Nacional | E93: Perú: Situación de la Población Adulta Mayor - Instituto Nacional de Estadística e Informática (INEI) | F93: Instituto Nacional de Estadística e Informática (INEI) - Encuesta Demográfica y de Salud Familiar (ENDES) | G93: 36.7 | H93: 35.8 | I93: 35.3 | J93: 36.7 | K93: 38.7 | L93: 38,1 | M93: 34.6 | N93: 35.3 | V93: 35 | X93: ¡Faltan datos! | Z93: % Pob. Adulta mayor que cuenta con pensiónNacional | AC93: 35 | AE93: ¡Faltan datos! | AG93: P
A94: EJE 4: EMPLEO E INGRESOS | B94: AGE.17.3 | C94: % Var. Anual del ingreso prom. mensual | D94: Variación porcentual | E94: INEI Evolución de los Indicadores de empleo e ingresos por departamento 2007-2017 (Cuadro No. 10.1) | F94: Instituto Nacional de Estadística e Informática - Encuesta Nacional de Hogares | G94: 4.6 | H94: 5.2 | I94: 5 | J94: 0.4 | T94: 0.057 | V94: -10 | X94: Rojo | Z94: % Var. Anual del ingreso prom. mensual Variación porcentual | AA94: 0.057 | AC94: -10 | AE94: Rojo | AG94: P
A95: EJE 4: EMPLEO E INGRESOS | B95: AGE.17.9 | C95: Ajuste anual de la remuneracion minima según fórmula de cálculo aprobada por el Consejo Nacional de Trabajo. | D95: RMV | E95: Ministerio del Trabajo y Promoción del Empleo - MINTRA | F95: Instituto Nacional de Estadística e Informática (INEI) | G95: 750 | H95: 750 | I95: 850 | J95: 850 | K95: 930 | V95: 1286 | X95: ¡Faltan datos! | Z95: Ajuste anual de la remuneracion minima según fórmula de cálculo aprobada por el Consejo Nacional de Trabajo.RMV | AC95: 1286 | AE95: ¡Faltan datos! | AG95: P
A96: EJE 4: EMPLEO E INGRESOS | B96: AGE.17.7 | C96: Asegurados titulares de EsSalud según tipo de seguro del titular | D96: Contrato de Administración de Servicios (CAS) | E96: Estadística Institucional Essalud Diciembre 2017 | F96: Sistema Estadístico de Salud (SES) - 2017 | G96: 292443 | J96: 295.8 | L96: 265 | V96: -476429 | X96: ¡Faltan datos! | Z96: Asegurados titulares de EsSalud según tipo de seguro del titularContrato de Administración de Servicios (CAS) | AC96: -476429 | AE96: ¡Faltan datos! | AG96: P
A97: EJE 4: EMPLEO E INGRESOS | B97: AGE.17.7 | C97: Asegurados titulares de EsSalud según tipo de seguro del titular | D97: Otros (Pescadores) | E97: Estadística Institucional Essalud Diciembre 2017 | F97: Sistema Estadístico de Salud (SES) - 2017 | G97: 12673 | J97: 2.5 | L97: 2.8 | V97: -20670 | X97: ¡Faltan datos! | Z97: Asegurados titulares de EsSalud según tipo de seguro del titularOtros (Pescadores) | AC97: -20670 | AE97: ¡Faltan datos! | AG97: P
A98: EJE 4: EMPLEO E INGRESOS | B98: AGE.17.7 | C98: Asegurados titulares de EsSalud según tipo de seguro del titular | D98: Pensionista | E98: Estadística Institucional Essalud Diciembre 2017 | F98: Sistema Estadístico de Salud (SES) - 2017 | G98: 888063 | J98: 934.4 | L98: 958.2 | V98: -1446437 | X98: ¡Faltan datos! | Z98: Asegurados titulares de EsSalud según tipo de seguro del titularPensionista | AC98: -1446437 | AE98: ¡Faltan datos! | AG98: P
A99: EJE 4: EMPLEO E INGRESOS | B99: AGE.17.7 | C99: Asegurados titulares de EsSalud según tipo de seguro del titular | D99: Trabajador activo | E99: Estadística Institucional Essalud Diciembre 2017 | F99: Sistema Estadístico de Salud (SES) - 2017 | G99: 4233052 | J99: 4530.5 | L99: 4643.4 | V99: -6894404 | X99: ¡Faltan datos! | Z99: Asegurados titulares de EsSalud según tipo de seguro del titularTrabajador activo | AC99: -6894404 | AE99: ¡Faltan datos! | AG99: P
A100: EJE 4: EMPLEO E INGRESOS | B100: AGE.17.7 | C100: Asegurados titulares de EsSalud según tipo de seguro del titular | D100: Trabajadora del Hogar | E100: Estadística Institucional Essalud Diciembre 2017 | F100: Sistema Estadístico de Salud (SES) - 2017 | G100: 59360 | J100: 63.8 | L100: 71.4 | V100: -96667 | X100: ¡Faltan datos! | Z100: Asegurados titulares de EsSalud según tipo de seguro del titularTrabajadora del Hogar | AC100: -96667 | AE100: ¡Faltan datos! | AG100: P
A101: EJE 4: EMPLEO E INGRESOS | B101: AGE.18.5 | C101: Brecha Salarial de Género | D101: Nacional | E101: Sistema de Información Regional para la Toma de Decisiones (SIRTOD) - Instituto Nacional de Estadística e Información (INEI) | F101: Encuesta Nacional de Hogares (ENAHO) - Instituto Nacional de Estadística e Informática (INEI) | G101: 29.7 | H101: 28.6 | I101: 29.2 | J101: 29.3 | K101: 28.6 | L101: 25.8 | T101: 78.7 | V101: 23 | X101: Verde | Z101: Brecha Salarial de GéneroNacional | AA101: 78.7 | AC101: 23 | AE101: Verde | AG101: N
A102: EJE 4: EMPLEO E INGRESOS | B102: AGE.17.6 | C102: Cobertura de población asegurada por EsSalud por tipo de asegurado. | D102: Derecho habiente | E102: Estadística Institucional Essalud Diciembre 2017 | F102: Sistema Estadístico de Salud (SES) - 2017 | G102: 4854575 | H102: 4934892 | I102: 4735706 | J102: 4735706 | K102: 4913 | L102: 4994.4 | M102: 4880 | V102: -6612657 | X102: ¡Faltan datos! | Z102: Cobertura de población asegurada por EsSalud por tipo de asegurado.Derecho habiente | AC102: -6612657 | AE102: ¡Faltan datos! | AG102: P
A103: EJE 4: EMPLEO E INGRESOS | B103: AGE.17.6 | C103: Cobertura de población asegurada por EsSalud por tipo de asegurado. | D103: Titulares | E103: Estadística Institucional Essalud Diciembre 2017 | F103: Sistema Estadístico de Salud (SES) - 2017 | G103: 5790018 | H103: 5819773 | I103: 6201373 | J103: 6201373 | K103: 6579.9 | L103: 6816.6 | M103: 7091.1 | V103: -7871189 | X103: ¡Faltan datos! | Z103: Cobertura de población asegurada por EsSalud por tipo de asegurado.Titulares | AC103: -7871189 | AE103: ¡Faltan datos! | AG103: P
A104: EJE 4: EMPLEO E INGRESOS | B104: AGE.17.6 | C104: Cobertura de población asegurada por EsSalud por tipo de asegurado. | D104: Total | E104: Estadística Institucional Essalud Diciembre 2017 | F104: Sistema Estadístico de Salud (SES) - 2017 | G104: 10644593 | H104: 10754665 | I104: 10937079 | J104: 10937079 | K104: 11493 | L104: 11811 | M104: 11971163 | V104: -1243312 | X104: ¡Faltan datos! | Z104: Cobertura de población asegurada por EsSalud por tipo de asegurado.Total | AC104: -1243312 | AE104: ¡Faltan datos! | AG104: P
A105: EJE 4: EMPLEO E INGRESOS | B105: AGE.17.8 | C105: Cobertura de población titular con seguro agrario en EsSalud | D105: Trabajadores Asegurados Agrarios | E105: Estadística Institucional Essalud Diciembre 2017 | F105: Sistema Estadístico de Salud (SES) - 2017 | G105: 306373 | J105: 371.4 | L105: 406.8 | V105: -498822 | X105: ¡Faltan datos! | Z105: Cobertura de población titular con seguro agrario en EsSaludTrabajadores Asegurados Agrarios | AC105: -498822 | AE105: ¡Faltan datos! | AG105: P
A106: EJE 4: EMPLEO E INGRESOS | B106: AGE.18.4 | C106: Ingreso promedio mensual por trabajo de mujeres y hombres (Soles) | D106: Hombres | E106: INEI PERÚ Brechas de Género | F106: Instituto Nacional de Estadística e Informática - Encuesta Nacional de Hogares | G106: 1399.3 | H106: 1475.3 | I106: 1555.6 | J106: 1555.6 | K106: 1588.6 | L106: 1616.1 | M106: 1373.2 | T106: 1875 | V106: 1585 | X106: Ambar | Z106: Ingreso promedio mensual por trabajo de mujeres y hombres (Soles)Hombres | AA106: 1875 | AC106: 1585 | AE106: Ambar | AG106: P
A107: EJE 4: EMPLEO E INGRESOS | B107: AGE.18.4 | C107: Ingreso promedio mensual por trabajo de mujeres y hombres (Soles) | D107: Mujeres | E107: INEI PERÚ Brechas de Género | F107: Instituto Nacional de Estadística e Informática - Encuesta Nacional de Hogares | G107: 984.2 | H107: 1052.7 | I107: 1100.6 | J107: 1100.6 | K107: 1135 | L107: 1199.4 | M107: 1103.4 | T107: 1477 | V107: 1317 | X107: Verde | Z107: Ingreso promedio mensual por trabajo de mujeres y hombres (Soles)Mujeres | AA107: 1477 | AC107: 1317 | AE107: Verde | AG107: P
A108: EJE 4: EMPLEO E INGRESOS | B108: AGE.19.3 | C108: Miles de personas en Unid. Productivas por sector formal e informal | D108: Formal | E108: INEI: Producción y Empleo Informal en el Perú 2016 (Cuadro 4.1a) | F108: Instituto Nacional de Estadística e Informática-Encuesta Nacional de Hogares. | G108: 937 | H108: 903 | I108: 1139 | J108: 1139 | K108: 1022 | L108: 1004 | M108: 697 | V108: 773 | X108: ¡Faltan datos! | Z108: Miles de personas en Unid. Productivas por sector formal e informalFormal | AC108: 773 | AE108: ¡Faltan datos! | AG108: P
A109: EJE 4: EMPLEO E INGRESOS | B109: AGE.19.3 | C109: Miles de personas en Unid. Productivas por sector formal e informal | D109: Informal | E109: INEI: Producción y Empleo Informal en el Perú 2016 (Cuadro 4.1a) | F109: Instituto Nacional de Estadística e Informática-Encuesta Nacional de Hogares. | G109: 6763 | H109: 6666 | I109: 6878 | J109: 6878 | K109: 7480 | L109: 7626 | M109: 6439 | V109: 7460 | X109: ¡Faltan datos! | Z109: Miles de personas en Unid. Productivas por sector formal e informalInformal | AC109: 7460 | AE109: ¡Faltan datos! | AG109: P
A110: EJE 4: EMPLEO E INGRESOS | B110: AGE.19.2 | C110: PEA O. por empleo formal e informal (Miles de personas) | D110: Empleo Formal | E110: INEI Evolución de los Indicadores de empleo e ingresos por departamento 2007-2017 (Cuadro No. 10.1) | F110: Instituto Nacional de Estadística e Informática-Encuesta Nacional de Hogares. | G110: 4290.9 | H110: 4274.2 | I110: 4539.8 | J110: 4539.8 | K110: 4623.9 | L110: 4670.3 | M110: 3673.5 | V110: 4060 | X110: ¡Faltan datos! | Z110: PEA O. por empleo formal e informal (Miles de personas)Empleo Formal | AC110: 4060 | AE110: ¡Faltan datos! | AG110: P
A111: EJE 4: EMPLEO E INGRESOS | B111: AGE.19.2 | C111: PEA O. por empleo formal e informal (Miles de personas) | D111: Empleo Informal | E111: INEI Evolución de los Indicadores de empleo e ingresos por departamento 2007-2017 (Cuadro No. 10.1) | F111: Instituto Nacional de Estadística e Informática-Encuesta Nacional de Hogares. | G111: 11505.9 | H111: 11645 | I111: 11657.3 | J111: 11657.3 | K111: 12152.6 | L111: 12462.8 | M111: 11228.3 | V111: 12176 | X111: ¡Faltan datos! | Z111: PEA O. por empleo formal e informal (Miles de personas)Empleo Informal | AC111: 12176 | AE111: ¡Faltan datos! | AG111: P
A112: EJE 4: EMPLEO E INGRESOS | B112: AGE.17.4 | C112: Pob. Ocupada afiliada a Sist. Pensiones | D112: Total | E112: INEI Evolución de los Indicadores de empleo e ingresos por departamento 2007-2017 (Cuadro No. 10.1) | F112: Instituto Nacional de Estadística e Informática - Encuesta Nacional de Hogares | G112: 5512.9 | H112: 0.358 | I112: 5584.2 | J112: 5584.2 | K112: 5958.1 | L112: 6119 | M112: 5402.1 | V112: 8827 | X112: ¡Faltan datos! | Z112: Pob. Ocupada afiliada a Sist. PensionesTotal | AC112: 8827 | AE112: ¡Faltan datos! | AG112: P
A113: EJE 4: EMPLEO E INGRESOS | B113: AGE.17.2 | C113: Tasa de crecimiento media anual del empleo por tamaño de empresas. | D113: De 1 a 10 | E113: INEI: Indicadores de Mercado Laboral a nivel Nacional | F113: Instituto Nacional de Estadística e Informática - Encuesta Permanente de Empleo. | G113: 0.9 | H113: 1 | I113: 2.2 | J113: 3 | K113: 2 | L113: 2.1 | M113: -2 | N113: 5.5 | V113: 3 | X113: ¡Faltan datos! | Z113: Tasa de crecimiento media anual del empleo por tamaño de empresas.De 1 a 10 | AC113: 3 | AE113: ¡Faltan datos! | AG113: P
A114: EJE 4: EMPLEO E INGRESOS | B114: AGE.17.2 | C114: Tasa de crecimiento media anual del empleo por tamaño de empresas. | D114: de 11 a 50 | E114: INEI: Indicadores de Mercado Laboral a nivel Nacional | F114: Instituto Nacional de Estadística e Informática - Encuesta Permanente de Empleo. | G114: 3.3 | H114: 3.2 | I114: 0.5 | J114: 0.5 | K114: 3.1 | L114: -1.4 | M114: -27.3 | N114: 37.8 | V114: 11 | X114: ¡Faltan datos! | Z114: Tasa de crecimiento media anual del empleo por tamaño de empresas.de 11 a 50 | AC114: 11 | AE114: ¡Faltan datos! | AG114: P
A115: EJE 4: EMPLEO E INGRESOS | B115: AGE.17.2 | C115: Tasa de crecimiento media anual del empleo por tamaño de empresas. | D115: De 51 y más | E115: INEI: Indicadores de Mercado Laboral a nivel Nacional | F115: Instituto Nacional de Estadística e Informática - Encuesta Permanente de Empleo. | G115: 5.6 | H115: 4.9 | I115: 2 | J115: 2 | K115: 0 | L115: 3.2 | M115: -9.7 | N115: 4.2 | V115: -7 | X115: ¡Faltan datos! | Z115: Tasa de crecimiento media anual del empleo por tamaño de empresas.De 51 y más | AC115: -7 | AE115: ¡Faltan datos! | AG115: P
A116: EJE 4: EMPLEO E INGRESOS | B116: AGE.17.2 | C116: Tasa de crecimiento media anual del empleo por tamaño de empresas. | D116: Total | E116: INEI: Indicadores de Mercado Laboral a nivel Nacional | F116: Instituto Nacional de Estadística e Informática - Encuesta Permanente de Empleo. | G116: 1.9 | H116: 1.8 | I116: 1.8 | J116: 1.8 | K116: 1.6 | L116: 2.1 | M116: -5.5 | N116: 7.1 | T116: 1.5 | V116: 2 | X116: Verde | Z116: Tasa de crecimiento media anual del empleo por tamaño de empresas.Total | AA116: 1.5 | AC116: 2 | AE116: Verde | AG116: P
A117: EJE 4: EMPLEO E INGRESOS | B117: AGE.18.2 | C117: Tasa de actividad de hombres y mujeres, por grandes grupos de edad | D117: % H (14-24) | E117: INEI PERÚ Brechas de Género | F117: Instituto Nacional de Estadística e Informática - Encuesta Nacional de Hogares | G117: 60.1 | H117: 56.7 | I117: 56 | J117: 56 | K117: 55.4 | L117: 56.1 | M117: 53.5 | V117: 49 | X117: ¡Faltan datos! | Z117: Tasa de actividad de hombres y mujeres, por grandes grupos de edad % H (14-24) | AC117: 49 | AE117: ¡Faltan datos! | AG117: P
A118: EJE 4: EMPLEO E INGRESOS | B118: AGE.18.2 | C118: Tasa de actividad de hombres y mujeres, por grandes grupos de edad | D118: % H (25-34) | E118: INEI PERÚ Brechas de Género | F118: Instituto Nacional de Estadística e Informática - Encuesta Nacional de Hogares | G118: 92 | H118: 92.9 | I118: 93.6 | J118: 93.6 | K118: 92.5 | L118: 92.2 | M118: 86.1 | V118: 85 | X118: ¡Faltan datos! | Z118: Tasa de actividad de hombres y mujeres, por grandes grupos de edad % H (25-34) | AC118: 85 | AE118: ¡Faltan datos! | AG118: P
A119: EJE 4: EMPLEO E INGRESOS | B119: AGE.18.2 | C119: Tasa de actividad de hombres y mujeres, por grandes grupos de edad | D119: % H (35-44) | E119: INEI PERÚ Brechas de Género | F119: Instituto Nacional de Estadística e Informática - Encuesta Nacional de Hogares | G119: 97.3 | H119: 96.8 | I119: 97.5 | J119: 97.5 | K119: 96.6 | L119: 96 | M119: 89.4 | V119: 87 | X119: ¡Faltan datos! | Z119: Tasa de actividad de hombres y mujeres, por grandes grupos de edad % H (35-44) | AC119: 87 | AE119: ¡Faltan datos! | AG119: P
A120: EJE 4: EMPLEO E INGRESOS | B120: AGE.18.2 | C120: Tasa de actividad de hombres y mujeres, por grandes grupos de edad | D120: % H (45-54) | E120: INEI PERÚ Brechas de Género | F120: Instituto Nacional de Estadística e Informática - Encuesta Nacional de Hogares | G120: 95.8 | H120: 95.6 | I120: 96.1 | J120: 96.1 | K120: 95.6 | L120: 96.1 | M120: 88.8 | V120: 88 | X120: ¡Faltan datos! | Z120: Tasa de actividad de hombres y mujeres, por grandes grupos de edad % H (45-54) | AC120: 88 | AE120: ¡Faltan datos! | AG120: P
A121: EJE 4: EMPLEO E INGRESOS | B121: AGE.18.2 | C121: Tasa de actividad de hombres y mujeres, por grandes grupos de edad | D121: % H (55-64) | E121: INEI PERÚ Brechas de Género | F121: Instituto Nacional de Estadística e Informática - Encuesta Nacional de Hogares | G121: 90.3 | H121: 91.8 | I121: 92 | J121: 92 | K121: 91.6 | L121: 92.9 | M121: 81.7 | V121: 83 | X121: ¡Faltan datos! | Z121: Tasa de actividad de hombres y mujeres, por grandes grupos de edad % H (55-64) | AC121: 83 | AE121: ¡Faltan datos! | AG121: P
A122: EJE 4: EMPLEO E INGRESOS | B122: AGE.18.2 | C122: Tasa de actividad de hombres y mujeres, por grandes grupos de edad | D122: % M (14-24) | E122: INEI PERÚ Brechas de Género | F122: Instituto Nacional de Estadística e Informática - Encuesta Nacional de Hogares | G122: 47.2 | H122: 45 | I122: 45.8 | J122: 45.8 | K122: 45.2 | L122: 45.3 | M122: 39.8 | V122: 38 | X122: ¡Faltan datos! | Z122: Tasa de actividad de hombres y mujeres, por grandes grupos de edad % M (14-24) | AC122: 38 | AE122: ¡Faltan datos! | AG122: P
A123: EJE 4: EMPLEO E INGRESOS | B123: AGE.18.2 | C123: Tasa de actividad de hombres y mujeres, por grandes grupos de edad | D123: % M (25-34) | E123: INEI PERÚ Brechas de Género | F123: Instituto Nacional de Estadística e Informática - Encuesta Nacional de Hogares | G123: 73.3 | H123: 73.2 | I123: 73.1 | J123: 73.1 | K123: 74.5 | L123: 73.1 | M123: 63 | V123: 62 | X123: ¡Faltan datos! | Z123: Tasa de actividad de hombres y mujeres, por grandes grupos de edad % M (25-34) | AC123: 62 | AE123: ¡Faltan datos! | AG123: P
A124: EJE 4: EMPLEO E INGRESOS | B124: AGE.18.2 | C124: Tasa de actividad de hombres y mujeres, por grandes grupos de edad | D124: % M (35-44) | E124: INEI PERÚ Brechas de Género | F124: Instituto Nacional de Estadística e Informática - Encuesta Nacional de Hogares | G124: 77.9 | H124: 76.5 | I124: 78.6 | J124: 78.6 | K124: 78.8 | L124: 79.1 | M124: 66.3 | V124: 67 | X124: ¡Faltan datos! | Z124: Tasa de actividad de hombres y mujeres, por grandes grupos de edad % M (35-44) | AC124: 67 | AE124: ¡Faltan datos! | AG124: P
A125: EJE 4: EMPLEO E INGRESOS | B125: AGE.18.2 | C125: Tasa de actividad de hombres y mujeres, por grandes grupos de edad | D125: % M (45-54) | E125: INEI PERÚ Brechas de Género | F125: Instituto Nacional de Estadística e Informática - Encuesta Nacional de Hogares | G125: 76.7 | H125: 75.8 | I125: 79.5 | J125: 79.5 | K125: 79.9 | L125: 80.8 | M125: 67 | V125: 71 | X125: ¡Faltan datos! | Z125: Tasa de actividad de hombres y mujeres, por grandes grupos de edad % M (45-54) | AC125: 71 | AE125: ¡Faltan datos! | AG125: P
A126: EJE 4: EMPLEO E INGRESOS | B126: AGE.18.2 | C126: Tasa de actividad de hombres y mujeres, por grandes grupos de edad | D126: % M (55-64) | E126: INEI PERÚ Brechas de Género | F126: Instituto Nacional de Estadística e Informática - Encuesta Nacional de Hogares | G126: 66.4 | H126: 66 | I126: 66 | J126: 66 | K126: 67.8 | L126: 71.4 | M126: 58.1 | V126: 62 | X126: ¡Faltan datos! | Z126: Tasa de actividad de hombres y mujeres, por grandes grupos de edad % M (55-64) | AC126: 62 | AE126: ¡Faltan datos! | AG126: P
A127: EJE 4: EMPLEO E INGRESOS | B127: AGE.18.1 | C127: Tasa de Actividad de hombres y mujeres.En América Latina y El Caribe la tasa de actividad total es 61.7%; mujeres 49.1% y hombres 75.2% (Panorama Laboral 2015 OIT) | D127: % Total | E127: INEI PERÚ Brechas de Género | F127: Instituto Nacional de Estadística e Informática - Encuesta Nacional de Hogares | G127: 72.3 | H127: 71.6 | I127: 72.2 | J127: 72.2 | K127: 72.3 | L127: 72.7 | M127: 64.7 | V127: 65 | X127: ¡Faltan datos! | Z127: Tasa de Actividad de hombres y mujeres.En América Latina y El Caribe la tasa de actividad total es 61.7%; mujeres 49.1% y hombres 75.2% (Panorama Laboral 2015 OIT)% Total | AC127: 65 | AE127: ¡Faltan datos! | AG127: P
A128: EJE 4: EMPLEO E INGRESOS | B128: AGE.18.1 | C128: Tasa de Actividad de hombres y mujeres.En América Latina y El Caribe la tasa de actividad total es 61.7%; mujeres 49.1% y hombres 75.2% (Panorama Laboral 2015 OIT) | D128: Hombres | E128: INEI PERÚ Brechas de Género | F128: Instituto Nacional de Estadística e Informática - Encuesta Nacional de Hogares | G128: 81.4 | H128: 81 | I128: 81.2 | J128: 81.2 | K128: 80.7 | L128: 81.1 | M128: 75 | N128: 80.4 | V128: 76 | X128: ¡Faltan datos! | Z128: Tasa de Actividad de hombres y mujeres.En América Latina y El Caribe la tasa de actividad total es 61.7%; mujeres 49.1% y hombres 75.2% (Panorama Laboral 2015 OIT)Hombres | AC128: 76 | AE128: ¡Faltan datos! | AG128: P
A129: EJE 4: EMPLEO E INGRESOS | B129: AGE.18.1 | C129: Tasa de Actividad de hombres y mujeres.En América Latina y El Caribe la tasa de actividad total es 61.7%; mujeres 49.1% y hombres 75.2% (Panorama Laboral 2015 OIT) | D129: Mujeres | E129: INEI PERÚ Brechas de Género | F129: Instituto Nacional de Estadística e Informática - Encuesta Nacional de Hogares | G129: 63.3 | H129: 62.3 | I129: 63.3 | J129: 63.3 | K129: 64 | L129: 64.5 | M129: 54.5 | N129: 64.4 | V129: 60 | X129: ¡Faltan datos! | Z129: Tasa de Actividad de hombres y mujeres.En América Latina y El Caribe la tasa de actividad total es 61.7%; mujeres 49.1% y hombres 75.2% (Panorama Laboral 2015 OIT)Mujeres | AC129: 60 | AE129: ¡Faltan datos! | AG129: P
A130: EJE 4: EMPLEO E INGRESOS | B130: AGE.17.1 | C130: Tasa de crecimiento media anual de la PEA Ocupada | D130: Total | E130: INEI: Indicadores de Mercado Laboral a nivel Nacional | F130: Instituto Nacional de Estadística e Informática - Encuesta Permanente de Empleo. | G130: 1.9 | H130: 1.8 | I130: 1.8 | J130: 1.8 | K130: 1.6 | L130: 0.021 | M130: -0.13 | N130: 0.149 | T130: 1.5 | V130: -2 | X130: Rojo | Z130: Tasa de crecimiento media anual de la PEA OcupadaTotal | AA130: 1.5 | AC130: -2 | AE130: Rojo | AG130: P
A131: EJE 4: EMPLEO E INGRESOS | B131: AGE.18.3 | C131: Tasa de informalidad laboral para los casos de mujeres y hombres | D131: % Total | E131: INEI PERÚ Brechas de Género | F131: Instituto Nacional de Estadística e Informática - Encuesta Nacional de Hogares | G131: 72.8 | H131: 73.2 | I131: 72 | J131: 72 | K131: 72.4 | L131: 72.7 | M131: 75.3 | V131: 75 | X131: ¡Faltan datos! | Z131: Tasa de informalidad laboral para los casos de mujeres y hombres% Total | AC131: 75 | AE131: ¡Faltan datos! | AG131: N
A132: EJE 4: EMPLEO E INGRESOS | B132: AGE.18.3 | C132: Tasa de informalidad laboral para los casos de mujeres y hombres | D132: Hombres | E132: INEI PERÚ Brechas de Género | F132: Instituto Nacional de Estadística e Informática - Encuesta Nacional de Hogares | G132: 70.3 | H132: 71 | I132: 69.5 | J132: 69.5 | K132: 70.1 | L132: 70.3 | M132: 73.9 | V132: 74 | X132: ¡Faltan datos! | Z132: Tasa de informalidad laboral para los casos de mujeres y hombresHombres | AC132: 74 | AE132: ¡Faltan datos! | AG132: N
A133: EJE 4: EMPLEO E INGRESOS | B133: AGE.18.3 | C133: Tasa de informalidad laboral para los casos de mujeres y hombres | D133: Mujeres | E133: INEI PERÚ Brechas de Género | F133: Instituto Nacional de Estadística e Informática - Encuesta Nacional de Hogares | G133: 76.1 | H133: 75.9 | I133: 75.1 | J133: 75.1 | K133: 75.3 | L133: 75.8 | M133: 77.3 | V133: 77 | X133: ¡Faltan datos! | Z133: Tasa de informalidad laboral para los casos de mujeres y hombresMujeres | AC133: 77 | AE133: ¡Faltan datos! | AG133: N
A134: EJE 5: REDUCCIÓN DE LA POBREZA | B134: AGE.22.3 | C134: Brecha de pobreza Rural | D134: Rural | E134: INEI. Evolución de la Pobreza Monetaria 2007 - 2018 (Cuadro No. 3.5) | F134: Instituto Nacional de Estadística e Informática - Encuesta Nacional de Hogares, 2007 - 2108 | G134: 13.7 | H134: 0.131 | I134: 0.123 | J134: 0.125 | K134: 10.8 | L134: 10.4 | M134: 13.3 | N134: 11.4 | V134: 17 | X134: ¡Faltan datos! | Z134: Brecha de pobreza RuralRural | AC134: 17 | AE134: ¡Faltan datos! | AG134: N
A135: EJE 5: REDUCCIÓN DE LA POBREZA | B135: AGE.22.3 | C135: Brecha de pobreza Rural | D135: Rural | E135: INEI. Evolución de la Pobreza Monetaria 2007 - 2018 (Cuadro No. 3.5) | F135: Instituto Nacional de Estadística e Informática - Encuesta Nacional de Hogares, 2007 - 2109 | H135: 13.1 | Z135: Brecha de pobreza RuralRural | AG135: N
A136: EJE 5: REDUCCIÓN DE LA POBREZA | B136: AGE.22.3 | C136: Brecha de pobreza Rural | D136: Rural | E136: INEI. Evolución de la Pobreza Monetaria 2007 - 2018 (Cuadro No. 3.5) | F136: Instituto Nacional de Estadística e Informática - Encuesta Nacional de Hogares, 2007 - 2110 | I136: 12.3 | V136: =+FORECAST(2026,G136:N136,$G$6:$N$6) ->  | X136: =IF(OR(T136="",V136="",T136="No se puede proyectar",V136="Sin datos",AG136=""),"¡Faltan datos!", IF(AG136="P", IF(V136>=(T136*85%),"Verde", IF(AND(V136<(T136*85%),V136>=(T136*50%)),"Ambar", IF(V136<(T136*50%),"Rojo","Verificar!"))), IF(AG136="N", IF(V136<=(T136*115%),"Verde", IF(AND(V136<=(T136*150%),V136>(T136*115%)),"Ambar", IF(V136>(T136*150%),"Rojo","Verificar!"))),"ERROR"))) ->  | Z136: =CONCATENATE(C136,D136) -> Brecha de pobreza RuralRural | AG136: N
A137: EJE 5: REDUCCIÓN DE LA POBREZA | B137: AGE.22.3 | C137: Brecha de pobreza Rural | D137: Rural | E137: INEI. Evolución de la Pobreza Monetaria 2007 - 2018 (Cuadro No. 3.5) | F137: Instituto Nacional de Estadística e Informática - Encuesta Nacional de Hogares, 2007 - 2111 | J137: 12.3 | Z137: Brecha de pobreza RuralRural | AG137: N
A138: EJE 5: REDUCCIÓN DE LA POBREZA | B138: AGE.22.3 | C138: Brecha de pobreza Rural | D138: Rural | E138: INEI. Evolución de la Pobreza Monetaria 2007 - 2018 (Cuadro No. 3.5) | F138: Instituto Nacional de Estadística e Informática - Encuesta Nacional de Hogares, 2007 - 2112 | K138: 10.8 | Z138: Brecha de pobreza RuralRural | AG138: N
A139: EJE 5: REDUCCIÓN DE LA POBREZA | B139: AGE.22.3 | C139: Brecha de pobreza Rural | D139: Rural | E139: INEI. Evolución de la Pobreza Monetaria 2007 - 2018 (Cuadro No. 3.5) | F139: Instituto Nacional de Estadística e Informática - Encuesta Nacional de Hogares, 2007 - 2113 | T139: 5.7 | Z139: Brecha de pobreza RuralRural | AA139: 5.7 | AG139: N
A140: EJE 5: REDUCCIÓN DE LA POBREZA | B140: AGE.22.1 | C140: Brecha de pobreza Total | D140: Total | E140: INEI. Evolución de la Pobreza Monetaria 2007 - 2018 (Cuadro No. 3.5) | F140: Instituto Nacional de Estadística e Informática - Encuesta Nacional de Hogares, 2007 - 2096 | G140: 5.8 | H140: 0.054 | I140: 0.05 | J140: 0.052 | K140: 4.6 | L140: 4.5 | M140: 7.8 | N140: 6.4 | V140: 10 | X140: ¡Faltan datos! | Z140: Brecha de pobreza TotalTotal | AC140: 10 | AE140: ¡Faltan datos! | AG140: N
A141: EJE 5: REDUCCIÓN DE LA POBREZA | B141: AGE.22.1 | C141: Brecha de pobreza Total | D141: Total | E141: INEI. Evolución de la Pobreza Monetaria 2007 - 2018 (Cuadro No. 3.5) | F141: Instituto Nacional de Estadística e Informática - Encuesta Nacional de Hogares, 2007 - 2097 | H141: 5.4 | Z141: Brecha de pobreza TotalTotal | AG141: N
A142: EJE 5: REDUCCIÓN DE LA POBREZA | B142: AGE.22.1 | C142: Brecha de pobreza Total | D142: Total | E142: INEI. Evolución de la Pobreza Monetaria 2007 - 2018 (Cuadro No. 3.5) | F142: Instituto Nacional de Estadística e Informática - Encuesta Nacional de Hogares, 2007 - 2098 | I142: 5 | Z142: Brecha de pobreza TotalTotal | AG142: N
A143: EJE 5: REDUCCIÓN DE LA POBREZA | B143: AGE.22.1 | C143: Brecha de pobreza Total | D143: Total | E143: INEI. Evolución de la Pobreza Monetaria 2007 - 2018 (Cuadro No. 3.5) | F143: Instituto Nacional de Estadística e Informática - Encuesta Nacional de Hogares, 2007 - 2099 | J143: 5 | Z143: Brecha de pobreza TotalTotal | AG143: N
A144: EJE 5: REDUCCIÓN DE LA POBREZA | B144: AGE.22.1 | C144: Brecha de pobreza Total | D144: Total | E144: INEI. Evolución de la Pobreza Monetaria 2007 - 2018 (Cuadro No. 3.5) | F144: Instituto Nacional de Estadística e Informática - Encuesta Nacional de Hogares, 2007 - 2100 | K144: 4.6 | Z144: Brecha de pobreza TotalTotal | AG144: N
A145: EJE 5: REDUCCIÓN DE LA POBREZA | B145: AGE.22.1 | C145: Brecha de pobreza Total | D145: Total | E145: INEI. Evolución de la Pobreza Monetaria 2007 - 2018 (Cuadro No. 3.5) | F145: Instituto Nacional de Estadística e Informática - Encuesta Nacional de Hogares, 2007 - 2101 | T145: 3.3 | Z145: Brecha de pobreza TotalTotal | AA145: 3.3 | AG145: N
A146: EJE 5: REDUCCIÓN DE LA POBREZA | B146: AGE.22.2 | C146: Brecha de pobreza Urbana | D146: Urbana | E146: INEI. Evolución de la Pobreza Monetaria 2007 - 2018 (Cuadro No. 3.5) | F146: Instituto Nacional de Estadística e Informática - Encuesta Nacional de Hogares, 2007 - 2102 | G146: 3.3 | H146: 0.031 | I146: 0.028 | J146: 0.031 | K146: 2.8 | L146: 2.9 | M146: 6.4 | N146: 5.2 | V146: 8 | X146: ¡Faltan datos! | Z146: Brecha de pobreza UrbanaUrbana | AC146: 8 | AE146: ¡Faltan datos! | AG146: N
A147: EJE 5: REDUCCIÓN DE LA POBREZA | B147: AGE.22.2 | C147: Brecha de pobreza Urbana | D147: Urbana | E147: INEI. Evolución de la Pobreza Monetaria 2007 - 2018 (Cuadro No. 3.5) | F147: Instituto Nacional de Estadística e Informática - Encuesta Nacional de Hogares, 2007 - 2103 | H147: 3.1 | Z147: Brecha de pobreza UrbanaUrbana | AG147: N
A148: EJE 5: REDUCCIÓN DE LA POBREZA | B148: AGE.22.2 | C148: Brecha de pobreza Urbana | D148: Urbana | E148: INEI. Evolución de la Pobreza Monetaria 2007 - 2018 (Cuadro No. 3.5) | F148: Instituto Nacional de Estadística e Informática - Encuesta Nacional de Hogares, 2007 - 2104 | I148: 2.8 | Z148: Brecha de pobreza UrbanaUrbana | AG148: N
A149: EJE 5: REDUCCIÓN DE LA POBREZA | B149: AGE.22.2 | C149: Brecha de pobreza Urbana | D149: Urbana | E149: INEI. Evolución de la Pobreza Monetaria 2007 - 2018 (Cuadro No. 3.5) | F149: Instituto Nacional de Estadística e Informática - Encuesta Nacional de Hogares, 2007 - 2105 | J149: 2.8 | Z149: Brecha de pobreza UrbanaUrbana | AG149: N
A150: EJE 5: REDUCCIÓN DE LA POBREZA | B150: AGE.22.2 | C150: Brecha de pobreza Urbana | D150: Urbana | E150: INEI. Evolución de la Pobreza Monetaria 2007 - 2018 (Cuadro No. 3.5) | F150: Instituto Nacional de Estadística e Informática - Encuesta Nacional de Hogares, 2007 - 2106 | K150: 2.8 | Z150: Brecha de pobreza UrbanaUrbana | AG150: N
A151: EJE 5: REDUCCIÓN DE LA POBREZA | B151: AGE.22.2 | C151: Brecha de pobreza Urbana | D151: Urbana | E151: INEI. Evolución de la Pobreza Monetaria 2007 - 2018 (Cuadro No. 3.5) | F151: Instituto Nacional de Estadística e Informática - Encuesta Nacional de Hogares, 2007 - 2107 | T151: 2.5 | Z151: Brecha de pobreza UrbanaUrbana | AA151: 2.5 | AG151: N
A152: EJE 5: REDUCCIÓN DE LA POBREZA | B152: AGE.21.3 | C152: Población de 65 y más en situación de pobreza monetaria | D152: De 65 a 69 años | E152: INEI. Evolución de la Pobreza Monetaria 2007 - 2018 (Cuadro No. 4.1) | F152: Instituto Nacional de Estadística e Informática - Encuesta Nacional de Hogares, 2007 - 2084 | G152: 18.8 | H152: 0.165 | I152: 0.17 | J152: 0.166 | K152: 15.5 | L152: 14.3 | M152: 18.9 | N152: 17.8 | V152: 25 | X152: ¡Faltan datos! | Z152: Población de 65 y más en situación de pobreza monetariaDe 65 a 69 años | AC152: 25 | AE152: ¡Faltan datos! | AG152: N
A153: EJE 5: REDUCCIÓN DE LA POBREZA | B153: AGE.21.3 | C153: Población de 65 y más en situación de pobreza monetaria | D153: De 65 a 69 años | E153: INEI. Evolución de la Pobreza Monetaria 2007 - 2018 (Cuadro No. 4.1) | F153: Instituto Nacional de Estadística e Informática - Encuesta Nacional de Hogares, 2007 - 2085 | H153: 16.5 | Z153: Población de 65 y más en situación de pobreza monetariaDe 65 a 69 años | AG153: N
A154: EJE 5: REDUCCIÓN DE LA POBREZA | B154: AGE.21.3 | C154: Población de 65 y más en situación de pobreza monetaria | D154: De 65 a 69 años | E154: INEI. Evolución de la Pobreza Monetaria 2007 - 2018 (Cuadro No. 4.1) | F154: Instituto Nacional de Estadística e Informática - Encuesta Nacional de Hogares, 2007 - 2086 | I154: 17 | Z154: Población de 65 y más en situación de pobreza monetariaDe 65 a 69 años | AG154: N
A155: EJE 5: REDUCCIÓN DE LA POBREZA | B155: AGE.21.3 | C155: Población de 65 y más en situación de pobreza monetaria | D155: De 65 a 69 años | E155: INEI. Evolución de la Pobreza Monetaria 2007 - 2018 (Cuadro No. 4.1) | F155: Instituto Nacional de Estadística e Informática - Encuesta Nacional de Hogares, 2007 - 2087 | J155: 17 | Z155: Población de 65 y más en situación de pobreza monetariaDe 65 a 69 años | AG155: N
A156: EJE 5: REDUCCIÓN DE LA POBREZA | B156: AGE.21.3 | C156: Población de 65 y más en situación de pobreza monetaria | D156: De 65 a 69 años | E156: INEI. Evolución de la Pobreza Monetaria 2007 - 2018 (Cuadro No. 4.1) | F156: Instituto Nacional de Estadística e Informática - Encuesta Nacional de Hogares, 2007 - 2088 | K156: 15.5 | Z156: Población de 65 y más en situación de pobreza monetariaDe 65 a 69 años | AG156: N
A157: EJE 5: REDUCCIÓN DE LA POBREZA | B157: AGE.21.3 | C157: Población de 65 y más en situación de pobreza monetaria | D157: De 65 a 69 años | E157: INEI. Evolución de la Pobreza Monetaria 2007 - 2018 (Cuadro No. 4.1) | F157: Instituto Nacional de Estadística e Informática - Encuesta Nacional de Hogares, 2007 - 2089 | T157: 10 | Z157: Población de 65 y más en situación de pobreza monetariaDe 65 a 69 años | AA157: 10 | AG157: N
A158: EJE 5: REDUCCIÓN DE LA POBREZA | B158: AGE.21.3 | C158: Población de 65 y más en situación de pobreza monetaria | D158: De 70 a más | E158: INEI. Evolución de la Pobreza Monetaria 2007 - 2018 (Cuadro No. 4.1) | F158: Instituto Nacional de Estadística e Informática - Encuesta Nacional de Hogares, 2007 - 2090 | G158: 20.4 | H158: 0.186 | I158: 0.182 | J158: 0.18 | K158: 16.8 | L158: 16.2 | M158: 17.4 | N158: 19 | V158: 26 | X158: ¡Faltan datos! | Z158: Población de 65 y más en situación de pobreza monetariaDe 70 a más | AC158: 26 | AE158: ¡Faltan datos! | AG158: N
A159: EJE 5: REDUCCIÓN DE LA POBREZA | B159: AGE.21.3 | C159: Población de 65 y más en situación de pobreza monetaria | D159: De 70 a más | E159: INEI. Evolución de la Pobreza Monetaria 2007 - 2018 (Cuadro No. 4.1) | F159: Instituto Nacional de Estadística e Informática - Encuesta Nacional de Hogares, 2007 - 2091 | H159: 18.6 | Z159: Población de 65 y más en situación de pobreza monetariaDe 70 a más | AG159: N
A160: EJE 5: REDUCCIÓN DE LA POBREZA | B160: AGE.21.3 | C160: Población de 65 y más en situación de pobreza monetaria | D160: De 70 a más | E160: INEI. Evolución de la Pobreza Monetaria 2007 - 2018 (Cuadro No. 4.1) | F160: Instituto Nacional de Estadística e Informática - Encuesta Nacional de Hogares, 2007 - 2092 | I160: 18.2 | Z160: Población de 65 y más en situación de pobreza monetariaDe 70 a más | AG160: N
A161: EJE 5: REDUCCIÓN DE LA POBREZA | B161: AGE.21.3 | C161: Población de 65 y más en situación de pobreza monetaria | D161: De 70 a más | E161: INEI. Evolución de la Pobreza Monetaria 2007 - 2018 (Cuadro No. 4.1) | F161: Instituto Nacional de Estadística e Informática - Encuesta Nacional de Hogares, 2007 - 2093 | J161: 18.2 | Z161: Población de 65 y más en situación de pobreza monetariaDe 70 a más | AG161: N
A162: EJE 5: REDUCCIÓN DE LA POBREZA | B162: AGE.21.3 | C162: Población de 65 y más en situación de pobreza monetaria | D162: De 70 a más | E162: INEI. Evolución de la Pobreza Monetaria 2007 - 2018 (Cuadro No. 4.1) | F162: Instituto Nacional de Estadística e Informática - Encuesta Nacional de Hogares, 2007 - 2094 | K162: 16.9 | Z162: Población de 65 y más en situación de pobreza monetariaDe 70 a más | AG162: N
A163: EJE 5: REDUCCIÓN DE LA POBREZA | B163: AGE.21.3 | C163: Población de 65 y más en situación de pobreza monetaria | D163: De 70 a más | E163: INEI. Evolución de la Pobreza Monetaria 2007 - 2018 (Cuadro No. 4.1) | F163: Instituto Nacional de Estadística e Informática - Encuesta Nacional de Hogares, 2007 - 2095 | T163: 10 | Z163: Población de 65 y más en situación de pobreza monetariaDe 70 a más | AA163: 10 | AG163: N
A164: EJE 5: REDUCCIÓN DE LA POBREZA | B164: AGE.21.2 | C164: Población menor de 20 años en situación de pobreza monetaria | D164: De 0 a 14 años | E164: INEI. Evolución de la Pobreza Monetaria 2007 - 2018 (Cuadro No. 4.1) | F164: Instituto Nacional de Estadística e Informática - Encuesta Nacional de Hogares, 2007 - 2060 | G164: 32.8 | H164: 0.306 | I164: 0.296 | J164: 0.3 | K164: 29.3 | L164: 28 | M164: 40 | N164: 35.1 | V164: 54 | X164: ¡Faltan datos! | Z164: Población menor de 20 años en situación de pobreza monetariaDe 0 a 14 años | AC164: 54 | AE164: ¡Faltan datos! | AG164: N
A165: EJE 5: REDUCCIÓN DE LA POBREZA | B165: AGE.21.2 | C165: Población menor de 20 años en situación de pobreza monetaria | D165: De 0 a 14 años | E165: INEI. Evolución de la Pobreza Monetaria 2007 - 2018 (Cuadro No. 4.1) | F165: Instituto Nacional de Estadística e Informática - Encuesta Nacional de Hogares, 2007 - 2061 | H165: 30.6 | Z165: Población menor de 20 años en situación de pobreza monetariaDe 0 a 14 años | AG165: N
A166: EJE 5: REDUCCIÓN DE LA POBREZA | B166: AGE.21.2 | C166: Población menor de 20 años en situación de pobreza monetaria | D166: De 0 a 14 años | E166: INEI. Evolución de la Pobreza Monetaria 2007 - 2018 (Cuadro No. 4.1) | F166: Instituto Nacional de Estadística e Informática - Encuesta Nacional de Hogares, 2007 - 2062 | I166: 29.6 | Z166: Población menor de 20 años en situación de pobreza monetariaDe 0 a 14 años | AG166: N
A167: EJE 5: REDUCCIÓN DE LA POBREZA | B167: AGE.21.2 | C167: Población menor de 20 años en situación de pobreza monetaria | D167: De 0 a 14 años | E167: INEI. Evolución de la Pobreza Monetaria 2007 - 2018 (Cuadro No. 4.1) | F167: Instituto Nacional de Estadística e Informática - Encuesta Nacional de Hogares, 2007 - 2063 | J167: 29.6 | Z167: Población menor de 20 años en situación de pobreza monetariaDe 0 a 14 años | AG167: N
A168: EJE 5: REDUCCIÓN DE LA POBREZA | B168: AGE.21.2 | C168: Población menor de 20 años en situación de pobreza monetaria | D168: De 0 a 14 años | E168: INEI. Evolución de la Pobreza Monetaria 2007 - 2018 (Cuadro No. 4.1) | F168: Instituto Nacional de Estadística e Informática - Encuesta Nacional de Hogares, 2007 - 2064 | K168: 29.3 | Z168: Población menor de 20 años en situación de pobreza monetariaDe 0 a 14 años | AG168: N
A169: EJE 5: REDUCCIÓN DE LA POBREZA | B169: AGE.21.2 | C169: Población menor de 20 años en situación de pobreza monetaria | D169: De 0 a 14 años | E169: INEI. Evolución de la Pobreza Monetaria 2007 - 2018 (Cuadro No. 4.1) | F169: Instituto Nacional de Estadística e Informática - Encuesta Nacional de Hogares, 2007 - 2065 | T169: 15 | Z169: Población menor de 20 años en situación de pobreza monetariaDe 0 a 14 años | AA169: 15 | AG169: N
A170: EJE 5: REDUCCIÓN DE LA POBREZA | B170: AGE.21.2 | C170: Población menor de 20 años en situación de pobreza monetaria | D170: De 0 A 4 Años | E170: INEI. Evolución de la Pobreza Monetaria 2007 - 2018 (Cuadro No. 4.1) | F170: Instituto Nacional de Estadística e Informática - Encuesta Nacional de Hogares, 2007 - 2066 | G170: 33.6 | H170: 0.323 | I170: 0.292 | J170: 0.327 | K170: 30.6 | L170: 31 | M170: 43.2 | N170: 37.2 | V170: 59 | X170: ¡Faltan datos! | Z170: Población menor de 20 años en situación de pobreza monetariaDe 0 A 4 Años | AC170: 59 | AE170: ¡Faltan datos! | AG170: N
A171: EJE 5: REDUCCIÓN DE LA POBREZA | B171: AGE.21.2 | C171: Población menor de 20 años en situación de pobreza monetaria | D171: De 0 A 4 Años | E171: INEI. Evolución de la Pobreza Monetaria 2007 - 2018 (Cuadro No. 4.1) | F171: Instituto Nacional de Estadística e Informática - Encuesta Nacional de Hogares, 2007 - 2067 | H171: 32.3 | Z171: Población menor de 20 años en situación de pobreza monetariaDe 0 A 4 Años | AG171: N
A172: EJE 5: REDUCCIÓN DE LA POBREZA | B172: AGE.21.2 | C172: Población menor de 20 años en situación de pobreza monetaria | D172: De 0 A 4 Años | E172: INEI. Evolución de la Pobreza Monetaria 2007 - 2018 (Cuadro No. 4.1) | F172: Instituto Nacional de Estadística e Informática - Encuesta Nacional de Hogares, 2007 - 2068 | I172: 29.2 | Z172: Población menor de 20 años en situación de pobreza monetariaDe 0 A 4 Años | AG172: N
A173: EJE 5: REDUCCIÓN DE LA POBREZA | B173: AGE.21.2 | C173: Población menor de 20 años en situación de pobreza monetaria | D173: De 0 A 4 Años | E173: INEI. Evolución de la Pobreza Monetaria 2007 - 2018 (Cuadro No. 4.1) | F173: Instituto Nacional de Estadística e Informática - Encuesta Nacional de Hogares, 2007 - 2069 | J173: 29.2 | Z173: Población menor de 20 años en situación de pobreza monetariaDe 0 A 4 Años | AG173: N
A174: EJE 5: REDUCCIÓN DE LA POBREZA | B174: AGE.21.2 | C174: Población menor de 20 años en situación de pobreza monetaria | D174: De 0 A 4 Años | E174: INEI. Evolución de la Pobreza Monetaria 2007 - 2018 (Cuadro No. 4.1) | F174: Instituto Nacional de Estadística e Informática - Encuesta Nacional de Hogares, 2007 - 2070 | K174: 30.6 | Z174: Población menor de 20 años en situación de pobreza monetariaDe 0 A 4 Años | AG174: N
A175: EJE 5: REDUCCIÓN DE LA POBREZA | B175: AGE.21.2 | C175: Población menor de 20 años en situación de pobreza monetaria | D175: De 0 A 4 Años | E175: INEI. Evolución de la Pobreza Monetaria 2007 - 2018 (Cuadro No. 4.1) | F175: Instituto Nacional de Estadística e Informática - Encuesta Nacional de Hogares, 2007 - 2071 | T175: 15 | Z175: Población menor de 20 años en situación de pobreza monetariaDe 0 A 4 Años | AA175: 15 | AG175: N
A176: EJE 5: REDUCCIÓN DE LA POBREZA | B176: AGE.21.2 | C176: Población menor de 20 años en situación de pobreza monetaria | D176: De 15 A 19 Años | E176: INEI. Evolución de la Pobreza Monetaria 2007 - 2018 (Cuadro No. 4.1) | F176: Instituto Nacional de Estadística e Informática - Encuesta Nacional de Hogares, 2007 - 2072 | G176: 23.4 | H176: 0.235 | I176: 0.224 | J176: 0.228 | K176: 22 | L176: 22.3 | M176: 34.7 | N176: 28.6 | V176: 46 | X176: ¡Faltan datos! | Z176: Población menor de 20 años en situación de pobreza monetariaDe 15 A 19 Años | AC176: 46 | AE176: ¡Faltan datos! | AG176: N
A177: EJE 5: REDUCCIÓN DE LA POBREZA | B177: AGE.21.2 | C177: Población menor de 20 años en situación de pobreza monetaria | D177: De 15 A 19 Años | E177: INEI. Evolución de la Pobreza Monetaria 2007 - 2018 (Cuadro No. 4.1) | F177: Instituto Nacional de Estadística e Informática - Encuesta Nacional de Hogares, 2007 - 2073 | H177: 23.5 | Z177: Población menor de 20 años en situación de pobreza monetariaDe 15 A 19 Años | AG177: N
A178: EJE 5: REDUCCIÓN DE LA POBREZA | B178: AGE.21.2 | C178: Población menor de 20 años en situación de pobreza monetaria | D178: De 15 A 19 Años | E178: INEI. Evolución de la Pobreza Monetaria 2007 - 2018 (Cuadro No. 4.1) | F178: Instituto Nacional de Estadística e Informática - Encuesta Nacional de Hogares, 2007 - 2074 | I178: 22.4 | Z178: Población menor de 20 años en situación de pobreza monetariaDe 15 A 19 Años | AG178: N
A179: EJE 5: REDUCCIÓN DE LA POBREZA | B179: AGE.21.2 | C179: Población menor de 20 años en situación de pobreza monetaria | D179: De 15 A 19 Años | E179: INEI. Evolución de la Pobreza Monetaria 2007 - 2018 (Cuadro No. 4.1) | F179: Instituto Nacional de Estadística e Informática - Encuesta Nacional de Hogares, 2007 - 2075 | J179: 22.4 | Z179: Población menor de 20 años en situación de pobreza monetariaDe 15 A 19 Años | AG179: N
A180: EJE 5: REDUCCIÓN DE LA POBREZA | B180: AGE.21.2 | C180: Población menor de 20 años en situación de pobreza monetaria | D180: De 15 A 19 Años | E180: INEI. Evolución de la Pobreza Monetaria 2007 - 2018 (Cuadro No. 4.1) | F180: Instituto Nacional de Estadística e Informática - Encuesta Nacional de Hogares, 2007 - 2076 | K180: 22 | Z180: Población menor de 20 años en situación de pobreza monetariaDe 15 A 19 Años | AG180: N
A181: EJE 5: REDUCCIÓN DE LA POBREZA | B181: AGE.21.2 | C181: Población menor de 20 años en situación de pobreza monetaria | D181: De 15 A 19 Años | E181: INEI. Evolución de la Pobreza Monetaria 2007 - 2018 (Cuadro No. 4.1) | F181: Instituto Nacional de Estadística e Informática - Encuesta Nacional de Hogares, 2007 - 2077 | T181: 15 | Z181: Población menor de 20 años en situación de pobreza monetariaDe 15 A 19 Años | AA181: 15 | AG181: N
A182: EJE 5: REDUCCIÓN DE LA POBREZA | B182: AGE.21.2 | C182: Población menor de 20 años en situación de pobreza monetaria | D182: De 5 a 9 años | E182: INEI. Evolución de la Pobreza Monetaria 2007 - 2018 (Cuadro No. 4.1) | F182: Instituto Nacional de Estadística e Informática - Encuesta Nacional de Hogares, 2007 - 2078 | G182: 34.2 | H182: 0.32 | I182: 0.308 | J182: 0.325 | K182: 29.2 | L182: 28.5 | M182: 41.9 | N182: 37.8 | V182: 57 | X182: ¡Faltan datos! | Z182: Población menor de 20 años en situación de pobreza monetariaDe 5 a 9 años | AC182: 57 | AE182: ¡Faltan datos! | AG182: N
A183: EJE 5: REDUCCIÓN DE LA POBREZA | B183: AGE.21.2 | C183: Población menor de 20 años en situación de pobreza monetaria | D183: De 5 a 9 años | E183: INEI. Evolución de la Pobreza Monetaria 2007 - 2018 (Cuadro No. 4.1) | F183: Instituto Nacional de Estadística e Informática - Encuesta Nacional de Hogares, 2007 - 2079 | H183: 32 | Z183: Población menor de 20 años en situación de pobreza monetariaDe 5 a 9 años | AG183: N
A184: EJE 5: REDUCCIÓN DE LA POBREZA | B184: AGE.21.2 | C184: Población menor de 20 años en situación de pobreza monetaria | D184: De 5 a 9 años | E184: INEI. Evolución de la Pobreza Monetaria 2007 - 2018 (Cuadro No. 4.1) | F184: Instituto Nacional de Estadística e Informática - Encuesta Nacional de Hogares, 2007 - 2080 | I184: 30.8 | Z184: Población menor de 20 años en situación de pobreza monetariaDe 5 a 9 años | AG184: N
A185: EJE 5: REDUCCIÓN DE LA POBREZA | B185: AGE.21.2 | C185: Población menor de 20 años en situación de pobreza monetaria | D185: De 5 a 9 años | E185: INEI. Evolución de la Pobreza Monetaria 2007 - 2018 (Cuadro No. 4.1) | F185: Instituto Nacional de Estadística e Informática - Encuesta Nacional de Hogares, 2007 - 2081 | J185: 30.8 | Z185: Población menor de 20 años en situación de pobreza monetariaDe 5 a 9 años | AG185: N
A186: EJE 5: REDUCCIÓN DE LA POBREZA | B186: AGE.21.2 | C186: Población menor de 20 años en situación de pobreza monetaria | D186: De 5 a 9 años | E186: INEI. Evolución de la Pobreza Monetaria 2007 - 2018 (Cuadro No. 4.1) | F186: Instituto Nacional de Estadística e Informática - Encuesta Nacional de Hogares, 2007 - 2082 | K186: 29.2 | Z186: Población menor de 20 años en situación de pobreza monetariaDe 5 a 9 años | AG186: N
A187: EJE 5: REDUCCIÓN DE LA POBREZA | B187: AGE.21.2 | C187: Población menor de 20 años en situación de pobreza monetaria | D187: De 5 a 9 años | E187: INEI. Evolución de la Pobreza Monetaria 2007 - 2018 (Cuadro No. 4.1) | F187: Instituto Nacional de Estadística e Informática - Encuesta Nacional de Hogares, 2007 - 2083 | T187: 15 | Z187: Población menor de 20 años en situación de pobreza monetariaDe 5 a 9 años | AA187: 15 | AG187: N
A188: EJE 5: REDUCCIÓN DE LA POBREZA | B188: AGE.21.1 | C188: Proporción de población en hogares con gasto total menor a la línea de pobreza (total, urbana y rural) | D188: Rural | E188: INEI. Evolución de la Pobreza Monetaria 2007 - 2018 (Cuadro No. 3.1) | F188: Instituto Nacional de Estadística e Informática - Encuesta Nacional de Hogares, 2007 - 2042 | G188: 46 | H188: 0.452 | I188: 0.438 | J188: 0.444 | K188: 42.1 | L188: 40.8 | M188: 45.7 | N188: 39.7 | V188: 62 | X188: ¡Faltan datos! | Z188: Proporción de población en hogares con gasto total menor a la línea de pobreza (total, urbana y rural)Rural | AC188: 62 | AE188: ¡Faltan datos! | AG188: N
A189: EJE 5: REDUCCIÓN DE LA POBREZA | B189: AGE.21.1 | C189: Proporción de población en hogares con gasto total menor a la línea de pobreza (total, urbana y rural) | D189: Rural | E189: INEI. Evolución de la Pobreza Monetaria 2007 - 2018 (Cuadro No. 3.1) | F189: Instituto Nacional de Estadística e Informática - Encuesta Nacional de Hogares, 2007 - 2043 | H189: 45.2 | Z189: Proporción de población en hogares con gasto total menor a la línea de pobreza (total, urbana y rural)Rural | AG189: N
A190: EJE 5: REDUCCIÓN DE LA POBREZA | B190: AGE.21.1 | C190: Proporción de población en hogares con gasto total menor a la línea de pobreza (total, urbana y rural) | D190: Rural | E190: INEI. Evolución de la Pobreza Monetaria 2007 - 2018 (Cuadro No. 3.1) | F190: Instituto Nacional de Estadística e Informática - Encuesta Nacional de Hogares, 2007 - 2044 | I190: 43.8 | Z190: Proporción de población en hogares con gasto total menor a la línea de pobreza (total, urbana y rural)Rural | AG190: N
A191: EJE 5: REDUCCIÓN DE LA POBREZA | B191: AGE.21.1 | C191: Proporción de población en hogares con gasto total menor a la línea de pobreza (total, urbana y rural) | D191: Rural | E191: INEI. Evolución de la Pobreza Monetaria 2007 - 2018 (Cuadro No. 3.1) | F191: Instituto Nacional de Estadística e Informática - Encuesta Nacional de Hogares, 2007 - 2045 | J191: 43.8 | Z191: Proporción de población en hogares con gasto total menor a la línea de pobreza (total, urbana y rural)Rural | AG191: N
A192: EJE 5: REDUCCIÓN DE LA POBREZA | B192: AGE.21.1 | C192: Proporción de población en hogares con gasto total menor a la línea de pobreza (total, urbana y rural) | D192: Rural | E192: INEI. Evolución de la Pobreza Monetaria 2007 - 2018 (Cuadro No. 3.1) | F192: Instituto Nacional de Estadística e Informática - Encuesta Nacional de Hogares, 2007 - 2046 | K192: 42.1 | Z192: Proporción de población en hogares con gasto total menor a la línea de pobreza (total, urbana y rural)Rural | AG192: N
A193: EJE 5: REDUCCIÓN DE LA POBREZA | B193: AGE.21.1 | C193: Proporción de población en hogares con gasto total menor a la línea de pobreza (total, urbana y rural) | D193: Rural | E193: INEI. Evolución de la Pobreza Monetaria 2007 - 2018 (Cuadro No. 3.1) | F193: Instituto Nacional de Estadística e Informática - Encuesta Nacional de Hogares, 2007 - 2047 | T193: 23.2 | Z193: Proporción de población en hogares con gasto total menor a la línea de pobreza (total, urbana y rural)Rural | AA193: 23.2 | AG193: N
A194: EJE 5: REDUCCIÓN DE LA POBREZA | B194: AGE.21.1 | C194: Proporción de población en hogares con gasto total menor a la línea de pobreza (total, urbana y rural) | D194: Total | E194: INEI. Evolución de la Pobreza Monetaria 2007 - 2018 (Cuadro No. 3.1) | F194: Instituto Nacional de Estadística e Informática - Encuesta Nacional de Hogares, 2007 - 2048 | G194: 22.7 | H194: 0.218 | I194: 0.207 | J194: 0.217 | K194: 20.5 | L194: 20.2 | M194: 30.1 | N194: 25.9 | V194: 41 | X194: ¡Faltan datos! | Z194: Proporción de población en hogares con gasto total menor a la línea de pobreza (total, urbana y rural)Total | AC194: 41 | AE194: ¡Faltan datos! | AG194: N
A195: EJE 5: REDUCCIÓN DE LA POBREZA | B195: AGE.21.1 | C195: Proporción de población en hogares con gasto total menor a la línea de pobreza (total, urbana y rural) | D195: Total | E195: INEI. Evolución de la Pobreza Monetaria 2007 - 2018 (Cuadro No. 3.1) | F195: Instituto Nacional de Estadística e Informática - Encuesta Nacional de Hogares, 2007 - 2049 | H195: 21.8 | Z195: Proporción de población en hogares con gasto total menor a la línea de pobreza (total, urbana y rural)Total | AG195: N
A196: EJE 5: REDUCCIÓN DE LA POBREZA | B196: AGE.21.1 | C196: Proporción de población en hogares con gasto total menor a la línea de pobreza (total, urbana y rural) | D196: Total | E196: INEI. Evolución de la Pobreza Monetaria 2007 - 2018 (Cuadro No. 3.1) | F196: Instituto Nacional de Estadística e Informática - Encuesta Nacional de Hogares, 2007 - 2050 | I196: 20.7 | Z196: Proporción de población en hogares con gasto total menor a la línea de pobreza (total, urbana y rural)Total | AG196: N
A197: EJE 5: REDUCCIÓN DE LA POBREZA | B197: AGE.21.1 | C197: Proporción de población en hogares con gasto total menor a la línea de pobreza (total, urbana y rural) | D197: Total | E197: INEI. Evolución de la Pobreza Monetaria 2007 - 2018 (Cuadro No. 3.1) | F197: Instituto Nacional de Estadística e Informática - Encuesta Nacional de Hogares, 2007 - 2051 | J197: 20.7 | Z197: Proporción de población en hogares con gasto total menor a la línea de pobreza (total, urbana y rural)Total | AG197: N
A198: EJE 5: REDUCCIÓN DE LA POBREZA | B198: AGE.21.1 | C198: Proporción de población en hogares con gasto total menor a la línea de pobreza (total, urbana y rural) | D198: Total | E198: INEI. Evolución de la Pobreza Monetaria 2007 - 2018 (Cuadro No. 3.1) | F198: Instituto Nacional de Estadística e Informática - Encuesta Nacional de Hogares, 2007 - 2052 | K198: 20.5 | Z198: Proporción de población en hogares con gasto total menor a la línea de pobreza (total, urbana y rural)Total | AG198: N
A199: EJE 5: REDUCCIÓN DE LA POBREZA | B199: AGE.21.1 | C199: Proporción de población en hogares con gasto total menor a la línea de pobreza (total, urbana y rural) | D199: Total | E199: INEI. Evolución de la Pobreza Monetaria 2007 - 2018 (Cuadro No. 3.1) | F199: Instituto Nacional de Estadística e Informática - Encuesta Nacional de Hogares, 2007 - 2053 | T199: 15.2 | Z199: Proporción de población en hogares con gasto total menor a la línea de pobreza (total, urbana y rural)Total | AA199: 15.2 | AG199: N
A200: EJE 5: REDUCCIÓN DE LA POBREZA | B200: AGE.21.1 | C200: Proporción de población en hogares con gasto total menor a la línea de pobreza (total, urbana y rural) | D200: Urbana | E200: INEI. Evolución de la Pobreza Monetaria 2007 - 2018 (Cuadro No. 3.1) | F200: Instituto Nacional de Estadística e Informática - Encuesta Nacional de Hogares, 2007 - 2054 | G200: 15.3 | H200: 0.145 | I200: 0.139 | J200: 0.151 | K200: 14.4 | L200: 14.6 | M200: 26 | N200: 22.3 | V200: =+FORECAST(2026,G200:N200,$G$6:$N$6) -> 36 | X200: =IF(OR(T200="",V200="",T200="No se puede proyectar",V200="Sin datos",AG200=""),"¡Faltan datos!", IF(AG200="P", IF(V200>=(T200*85%),"Verde", IF(AND(V200<(T200*85%),V200>=(T200*50%)),"Ambar", IF(V200<(T200*50%),"Rojo","Verificar!"))), IF(AG200="N", IF(V200<=(T200*115%),"Verde", IF(AND(V200<=(T200*150%),V200>(T200*115%)),"Ambar", IF(V200>(T200*150%),"Rojo","Verificar!"))),"ERROR"))) -> ¡Faltan datos! | Z200: =CONCATENATE(C200,D200) -> Proporción de población en hogares con gasto total menor a la línea de pobreza (total, urbana y rural)Urbana | AC200: 36 | AE200: ¡Faltan datos! | AG200: N
A201: EJE 5: REDUCCIÓN DE LA POBREZA | B201: AGE.21.1 | C201: Proporción de población en hogares con gasto total menor a la línea de pobreza (total, urbana y rural) | D201: Urbana | E201: INEI. Evolución de la Pobreza Monetaria 2007 - 2018 (Cuadro No. 3.1) | F201: Instituto Nacional de Estadística e Informática - Encuesta Nacional de Hogares, 2007 - 2055 | H201: 14.5 | Z201: Proporción de población en hogares con gasto total menor a la línea de pobreza (total, urbana y rural)Urbana | AG201: N
A202: EJE 5: REDUCCIÓN DE LA POBREZA | B202: AGE.21.1 | C202: Proporción de población en hogares con gasto total menor a la línea de pobreza (total, urbana y rural) | D202: Urbana | E202: INEI. Evolución de la Pobreza Monetaria 2007 - 2018 (Cuadro No. 3.1) | F202: Instituto Nacional de Estadística e Informática - Encuesta Nacional de Hogares, 2007 - 2056 | I202: 13.9 | Z202: Proporción de población en hogares con gasto total menor a la línea de pobreza (total, urbana y rural)Urbana | AG202: N
A203: EJE 5: REDUCCIÓN DE LA POBREZA | B203: AGE.21.1 | C203: Proporción de población en hogares con gasto total menor a la línea de pobreza (total, urbana y rural) | D203: Urbana | E203: INEI. Evolución de la Pobreza Monetaria 2007 - 2018 (Cuadro No. 3.1) | F203: Instituto Nacional de Estadística e Informática - Encuesta Nacional de Hogares, 2007 - 2057 | J203: 13.9 | Z203: Proporción de población en hogares con gasto total menor a la línea de pobreza (total, urbana y rural)Urbana | AG203: N
A204: EJE 5: REDUCCIÓN DE LA POBREZA | B204: AGE.21.1 | C204: Proporción de población en hogares con gasto total menor a la línea de pobreza (total, urbana y rural) | D204: Urbana | E204: INEI. Evolución de la Pobreza Monetaria 2007 - 2018 (Cuadro No. 3.1) | F204: Instituto Nacional de Estadística e Informática - Encuesta Nacional de Hogares, 2007 - 2058 | K204: 14.4 | Z204: Proporción de población en hogares con gasto total menor a la línea de pobreza (total, urbana y rural)Urbana | AG204: N
A205: EJE 5: REDUCCIÓN DE LA POBREZA | B205: AGE.21.1 | C205: Proporción de población en hogares con gasto total menor a la línea de pobreza (total, urbana y rural) | D205: Urbana | E205: INEI. Evolución de la Pobreza Monetaria 2007 - 2018 (Cuadro No. 3.1) | F205: Instituto Nacional de Estadística e Informática - Encuesta Nacional de Hogares, 2007 - 2059 | T205: 12.3 | Z205: Proporción de población en hogares con gasto total menor a la línea de pobreza (total, urbana y rural)Urbana | AA205: 12.3 | AG205: N
... 223 more rows

Sheet TDValor
A1: Indicador | B1: Exportaciones FOB No tradicionales (Millones de dólares)
A2: Subindicador | B2: Maderas y Papeles y sus Manufacturas
A4: Suma de Valor | C4: Etiquetas de columna
A5: Etiquetas de fila | B5: Fuente web | C5: 2014 | D5: 2015 | E5: 2016 | F5: 2017 | G5: 2018 | H5: 2021 | I5: 2019 | J5: 2020
A6: Dolares | B6: INEI: Compendio Estadístico Perú | C6: 416.3 | D6: 353 | E6: 322.1 | F6: 322.1 | G6: 339 | H6: 328.7 | I6: 482.6 | J6: 329

Sheet Ind_1d
A6: OBJETIVO | B6: Código | C6: Indicador | D6: Subindicador | E6: Unidad | F6: Fuente web | G6: 2014 | H6: 2015 | I6: 2016 | J6: 2017 | K6: 2018 | L6: Meta 2021 | M6: Proyeccion | N6: Semáforo
A7: EJE 1: ACTIVIDADES ECONÓMICAS PRODUCTIVAS | B7: AGE.6.2 | C7: Acceso a financiamiento | D7: Reportes | E7: Ministerio de la Producción - PRODUCE / Ministerio de Comercio Exterior y Turismo - MINCETUR / Ministerio de Agricultura y Riego - MINAGRI / COFIDE | F7: Ministerio de la Producción - PRODUCE | N7: ¡Faltan datos!
A8: EJE 1: ACTIVIDADES ECONÓMICAS PRODUCTIVAS | B8: AGE.6.1 | C8: Asistencia técnica permanente para su capitalización y diversificación productiva. | D8: Informes | E8: Ministerio de la Producción - PRODUCE / Ministerio de Comercio Exterior y Turismo - MINCETUR / Ministerio de Agricultura y Riego - MINAGRI | F8: Ministerio de la Producción - PRODUCE | N8: ¡Faltan datos!
A9: EJE 1: ACTIVIDADES ECONÓMICAS PRODUCTIVAS | B9: AGE.2.3 | C9: Definir nuevos circuitos turísticos complementarios. | D9: Circuitos turísticos | E9: Ministerio de Comercio Exterior y Turismo - MINCETUR | F9: Ley General de Turismo. | G9: 2 | L9: 3 | N9: ¡Faltan datos!
A10: EJE 1: ACTIVIDADES ECONÓMICAS PRODUCTIVAS | B10: AGE.3.1 | C10: Exportaciones FOB No tradicionales (Millones de dólares) | D10: Agropecuarios | E10: INEI: Compendio Estadístico Perú | F10: Instituto Nacional de Estadística e Informatica (INEI) | G10: 4231.3 | H10: 4408.6 | I10: 4701.8 | J10: 4701.8 | K10: 4910.1 | L10: 5500 | M10: 5416.1 | N10: Verde
A11: EJE 1: ACTIVIDADES ECONÓMICAS PRODUCTIVAS | B11: AGE.3.1 | C11: Exportaciones FOB No tradicionales (Millones de dólares) | D11: Maderas y Papeles y sus Manufacturas | E11: INEI: Compendio Estadístico Perú | F11: Instituto Nacional de Estadística e Informatica (INEI) | G11: 416.3 | H11: 353 | I11: 322.1 | J11: 322.1 | L11: 600 | M11: 180.9 | N11: Ambar
A12: EJE 1: ACTIVIDADES ECONÓMICAS PRODUCTIVAS | B12: AGE.3.1 | C12: Exportaciones FOB No tradicionales (Millones de dólares) | D12: Metal-Mecánicos | E12: INEI: Compendio Estadístico Perú | F12: Instituto Nacional de Estadística e Informatica (INEI) | G12: 581.3 | H12: 533.2 | I12: 445 | J12: 445 | K12: 615.8 | L12: 950 | M12: 514.5 | N12: Rojo
A13: EJE 1: ACTIVIDADES ECONÓMICAS PRODUCTIVAS | B13: AGE.3.1 | C13: Exportaciones FOB No tradicionales (Millones de dólares) | D13: Minerales No Metálicos | E13: INEI: Compendio Estadístico Perú | F13: Instituto Nacional de Estadística e Informatica (INEI) | G13: 663.6 | H13: 698.5 | I13: 640.3 | J13: 640.3 | K13: 571.8 | L13: 829 | M13: 522 | N13: Rojo
A14: EJE 1: ACTIVIDADES ECONÓMICAS PRODUCTIVAS | B14: AGE.3.1 | C14: Exportaciones FOB No tradicionales (Millones de dólares) | D14: Pesqueros | E14: INEI: Compendio Estadístico Perú | F14: Instituto Nacional de Estadística e Informatica (INEI) | G14: 1155.3 | H14: 932.6 | I14: 908.7 | J14: 908.7 | K14: 2994.9 | L14: 1444 | M14: 3207.7 | N14: Verde
A15: EJE 1: ACTIVIDADES ECONÓMICAS PRODUCTIVAS | B15: AGE.3.1 | C15: Exportaciones FOB No tradicionales (Millones de dólares) | D15: Químicos | E15: INEI: Compendio Estadístico Perú | F15: Instituto Nacional de Estadística e Informatica (INEI) | G15: 1515 | H15: 1405.9 | I15: 1341.5 | J15: 1341.5 | K15: 1333.2 | L15: 2000 | M15: 1173.4 | N15: Rojo
A16: EJE 1: ACTIVIDADES ECONÓMICAS PRODUCTIVAS | B16: AGE.3.1 | C16: Exportaciones FOB No tradicionales (Millones de dólares) | D16: Sidero-Metalúrgicos y Joyería | E16: INEI: Compendio Estadístico Perú | F16: Instituto Nacional de Estadística e Informatica (INEI) | G16: 1148.5 | H16: 1080.6 | I16: 1084.1 | J16: 1084.1 | K16: 1294.2 | L16: 1440 | M16: 1285.8 | N16: Verde
A17: EJE 1: ACTIVIDADES ECONÓMICAS PRODUCTIVAS | B17: AGE.3.1 | C17: Exportaciones FOB No tradicionales (Millones de dólares) | D17: Textiles | E17: INEI: Compendio Estadístico Perú | F17: Instituto Nacional de Estadística e Informatica (INEI) | G17: 1800.2 | H17: 1331.2 | I17: 1196.1 | J17: 1196.1 | K17: 1058.2 | L17: 2500 | M17: 506.8 | N17: Ambar
A18: EJE 1: ACTIVIDADES ECONÓMICAS PRODUCTIVAS | B18: AGE.3.1 | C18: Exportaciones FOB No tradicionales (Millones de dólares) | D18: Valor Total | E18: INEI: Compendio Estadístico Perú | F18: Instituto Nacional de Estadística e Informatica (INEI) | G18: 11676.5 | H18: 10894.6 | I18: 10782.5 | J18: 10782.5 | K18: 13297.2 | L18: 15263 | M18: 13051.3 | N18: Verde
A19: EJE 1: ACTIVIDADES ECONÓMICAS PRODUCTIVAS | B19: AGE.2.2 | C19: Gasto promedio por turista (US Dólar) | D19: Diario | E19: INEI: Compendio Estadístico Perú | F19: Instituto Nacional de Estadística e Informática | G19: 114 | H19: 115 | I19: 110 | J19: 110 | L19: 228 | M19: 102.9 | N19: Ambar
A20: EJE 1: ACTIVIDADES ECONÓMICAS PRODUCTIVAS | B20: AGE.2.2 | C20: Gasto promedio por turista (US Dólar) | D20: Total | E20: INEI: Compendio Estadístico Perú | F20: Instituto Nacional de Estadística e Informática | G20: 1362 | H20: 1444 | I20: 1330 | J20: 1330 | L20: 2736 | M20: 1251 | N20: Ambar
A21: EJE 1: ACTIVIDADES ECONÓMICAS PRODUCTIVAS | B21: AGE.2.4 | C21: Incremento del número de aeropuertos que reciban vuelos internacionales. | D21: Aeropuertos | E21: Ministerio de Transportes y Comunicaciones - MTC | F21: Ministerio de Transportes y Comuniciaciones - MTC | G21: 3 | L21: 5 | N21: ¡Faltan datos!
A22: EJE 1: ACTIVIDADES ECONÓMICAS PRODUCTIVAS | B22: AGE.1.1 | C22: Índice del sector manufactura | D22: Índice de Volumen Físico Sector Fabril (Año base 2012=100) | E22: INEI: Compendio Estadístico Perú | F22: Instituto Nacional de Estadística e Informática (INEI) | G22: 101.1 | H22: 99.6 | I22: 98.2 | J22: 98.2 | L22: 122 | M22: 93.7 | N22: Rojo
A23: EJE 1: ACTIVIDADES ECONÓMICAS PRODUCTIVAS | B23: AGE.2.1 | C23: Ingreso de visitantes extranjeros | D23: Resto de mundo | E23: INEI: Compendio Estadístico Perú | F23: Instituto Nacional de Estadística e Informática | G23: 1435785 | H23: 1536470 | I23: 1634009 | J23: 1634009 | L23: 1283907 | M23: 1940784.3 | N23: Verde
A24: EJE 1: ACTIVIDADES ECONÓMICAS PRODUCTIVAS | B24: AGE.2.1 | C24: Ingreso de visitantes extranjeros | D24: Sud americanos | E24: INEI: Compendio Estadístico Perú | F24: Instituto Nacional de Estadística e Informática | G24: 1779149 | H24: 1919232 | I24: 2110452 | J24: 2110452 | L24: 3439258 | M24: 2631642.2 | N24: Rojo
A25: EJE 1: ACTIVIDADES ECONÓMICAS PRODUCTIVAS | B25: AGE.2.1 | C25: Ingreso de visitantes extranjeros | D25: Total | E25: INEI: Compendio Estadístico Perú | F25: Instituto Nacional de Estadística e Informática | G25: 3214934 | H25: 3455709 | I25: 3744461 | J25: 3744461 | L25: 4723165 | M25: 4572424.4 | N25: Verde
A26: EJE 1: ACTIVIDADES ECONÓMICAS PRODUCTIVAS | B26: AGE.3.2 | C26: Lograr y sostener un superavit en la balanza comercial. (Millones de US dólares) | D26: Total Nacional | E26: INEI: Compendio Estadístico Perú | F26: Instituto Nacional de Estadística e Informatica (INEI) | N26: ¡Faltan datos!
A27: EJE 1: ACTIVIDADES ECONÓMICAS PRODUCTIVAS | B27: AGE.7.2 | C27: Número de convenios suscritos con Gobiernos Regionales para la implementación de Parques Industritales. | D27: Convenios suscritos | E27: Ministerio de la Producción - PRODUCE | F27: Ministerio de la Producción - PRODUCE | L27: 9 | N27: ¡Faltan datos!
A28: EJE 1: ACTIVIDADES ECONÓMICAS PRODUCTIVAS | B28: AGE.4.1 | C28: Número de institiciones acreditadas para realizar la certificación de origen y calidad. | D28: Entidades | E28: Ministerio de Comercio Exterior y Turismo - MINCETUR | F28: Ministerio de Comercio Exterior y Turismo - MINCETUR | G28: 10 | N28: ¡Faltan datos!
A29: EJE 1: ACTIVIDADES ECONÓMICAS PRODUCTIVAS | B29: AGE.7.3 | C29: Número de Parques Industriales potenciados que promueven innovación tecnológica y el desarrollo productivo. | D29: 3 (Norte)/3 (Centro)/3 (Sur) | E29: Ministerio de la Producción - PRODUCE | F29: Ministerio de la Producción - PRODUCE | L29: 9 | N29: ¡Faltan datos!
A30: EJE 1: ACTIVIDADES ECONÓMICAS PRODUCTIVAS | B30: AGE.5.1 | C30: Plan Nacional y planes regionales aprobados y con financiamiento. para la promoción y sostenimiento de las unidades económicas urbanas de pequeña escala. | D30: Plan Nacional | E30: No determinado | F30: No determinado | L30: 1 | N30: ¡Faltan datos!
A31: EJE 1: ACTIVIDADES ECONÓMICAS PRODUCTIVAS | B31: AGE.5.1 | C31: Plan Nacional y planes regionales aprobados y con financiamiento. para la promoción y sostenimiento de las unidades económicas urbanas de pequeña escala. | D31: Planes Regionales implementados y con financiamiento | E31: No determinado | F31: No determinado | L31: 8 | N31: ¡Faltan datos!
A32: EJE 1: ACTIVIDADES ECONÓMICAS PRODUCTIVAS | B32: AGE.7.1 | C32: Sistema Nacional de Parques Industriales implementado. (DL 199) | D32: Nacional | E32: Ministerio de la Producción - PRODUCE | F32: Ministerio de la Producción - PRODUCE | N32: ¡Faltan datos!

Sheet Ind_2d
A6: OBJETIVO | B6: Código | C6: Indicador | D6: Subindicador | E6: Unidad | F6: Fuente web | G6: 2014 | H6: 2015 | I6: 2016 | J6: 2017 | K6: 2018 | L6: Meta 2021 | M6: Proyeccion | N6: Semáforo
A7: EJE 2: INFRAESTRUCTURA LOGÍSTICA, DE TRANSPORTE Y DE COMUNICACIONES | B7: AGE.8.1 | C7: % de hogares con al menos 1 miembro con teléfono celular | D7: Rural | E7: INEI: Boletín Estadísticas de las TIC. Abril-Junio 2018. Cuadros No. 1 y 3 | F7: Instituto Nacional de Estadística e Informatica (INEI) | G7: 68.9 | H7: 73.1 | I7: 76.4 | J7: 76.4 | K7: 79 | N7: ¡Faltan datos!
A8: EJE 2: INFRAESTRUCTURA LOGÍSTICA, DE TRANSPORTE Y DE COMUNICACIONES | B8: AGE.8.1 | C8: % de hogares con al menos 1 miembro con teléfono celular | D8: Rural | E8: Ministerio de Transportes y Comuniciaciones: Red Vial del Sistema Nacional de Carreteras (31/07/2018) | F8: Instituto Nacional de Estadística e Informatica (INEI) | L8: 85 | N8: ¡Faltan datos!
A9: EJE 2: INFRAESTRUCTURA LOGÍSTICA, DE TRANSPORTE Y DE COMUNICACIONES | B9: AGE.8.1 | C9: % de hogares con al menos 1 miembro con teléfono celular | D9: Total | E9: INEI - RENAMU. Cuadro No. 8 - Municipalidades que cuentan con servicio de Internet y computadoras con acceso a este servicio, según Departamento, 2017 | F9: Instituto Nacional de Estadística e Informatica (INEI) | L9: 89 | N9: ¡Faltan datos!
A10: EJE 2: INFRAESTRUCTURA LOGÍSTICA, DE TRANSPORTE Y DE COMUNICACIONES | B10: AGE.8.1 | C10: % de hogares con al menos 1 miembro con teléfono celular | D10: Total | E10: INEI: Boletín Estadísticas de las TIC. Abril-Junio 2018. Cuadros No. 1 y 2 | F10: Instituto Nacional de Estadística e Informatica (INEI) | G10: 84.9 | H10: 87.2 | I10: 88.9 | J10: 88.9 | K10: 90.9 | M10: 95 | N10: ¡Faltan datos!
A11: EJE 2: INFRAESTRUCTURA LOGÍSTICA, DE TRANSPORTE Y DE COMUNICACIONES | B11: AGE.9.2 | C11: Km de vía departamental pavimientada respecto del total de Km de vías departamentales | D11: Departamental | E11: Ministerio de Transportes y Comuniciaciones: Red Vial del Sistema Nacional de Carreteras (31/07/2018) | F11: Ministerio de Transportes y Comuniciaciones - MTC | G11: 2429.8 | H11: 3459 | I11: 3672.9 | J11: 3672.9 | K11: 21007.1 | M11: 25532.6 | N11: ¡Faltan datos!
A12: EJE 2: INFRAESTRUCTURA LOGÍSTICA, DE TRANSPORTE Y DE COMUNICACIONES | B12: AGE.9.1 | C12: Km de vía nacional pavimientada respecto del total de Km de vías Nacionales | D12: Nacional | E12: Ministerio de Transportes y Comuniciaciones: Red Vial del Sistema Nacional de Carreteras (31/07/2018) | F12: Ministerio de Transportes y Comuniciaciones - MTC | G12: 17411.5 | H12: 18420.1 | I12: 19682.4 | J12: 20367.5 | K12: 21007.1 | M12: 23947 | N12: ¡Faltan datos!
A13: EJE 2: INFRAESTRUCTURA LOGÍSTICA, DE TRANSPORTE Y DE COMUNICACIONES | B13: AGE.9.3 | C13: Km de vía vecinal pavimientada respecto del total de Km de vías vecinales | D13: Vecinal | E13: Ministerio de Transportes y Comuniciaciones: Red Vial del Sistema Nacional de Carreteras (31/07/2018) | F13: Ministerio de Transportes y Comuniciaciones - MTC | G13: 1924.6 | H13: 1890.1 | I13: 1898.3 | J13: 1898.3 | K13: 3707.5 | M13: 4050.8 | N13: ¡Faltan datos!
A14: EJE 2: INFRAESTRUCTURA LOGÍSTICA, DE TRANSPORTE Y DE COMUNICACIONES | B14: AGE.10.2 | C14: Miles de personas en vuelos internacionales | D14: Internacional | E14: Ministerio de Transportes y Comuniciaciones - MTC: Transporte Aereo Pasajeros 2017 | F14: Ministerio de Transportes y Comuniciaciones - MTC | G14: 8485.3 | H14: 9026.1 | I14: 9964.2 | J14: 9964.2 | K14: 1880.7 | L14: 10432 | M14: 1728.6 | N14: Ambar
A15: EJE 2: INFRAESTRUCTURA LOGÍSTICA, DE TRANSPORTE Y DE COMUNICACIONES | B15: AGE.10.1 | C15: Miles de personas en vuelos nacionales | D15: Nacional | E15: Ministerio de Transportes y Comuniciaciones - MTC: Transporte Aereo Pasajeros 2017 | F15: Ministerio de Transportes y Comuniciaciones - MTC | G15: 8950.2 | H15: 10005.2 | I15: 10794 | J15: 11708.3 | L15: 11785 | M15: 15349.1 | N15: Verde
A16: EJE 2: INFRAESTRUCTURA LOGÍSTICA, DE TRANSPORTE Y DE COMUNICACIONES | B16: AGE.8.2 | C16: Municipalidades con conexión por fibra óptica o transporte de alta velocidad (con cobertura internet) | D16: Distritos con cobertura Internet | E16: INEI - RENAMU. Cuadro No. 8 - Municipalidades que cuentan con servicio de Internet y computadoras con acceso a este servicio, según Departamento, 2017 | F16: Instituto Nacional de Estadística e Informatica (INEI) | G16: 1478 | H16: 1492 | I16: 1530 | J16: 1530 | L16: 1838 | M16: 1614.2 | N16: Verde
A17: EJE 2: INFRAESTRUCTURA LOGÍSTICA, DE TRANSPORTE Y DE COMUNICACIONES | B17: AGE.10.4 | C17: Toneladas en vuelos internacionales | D17: Internacional | E17: Ministerio de Transportes y Comuniciaciones - MTC: Transporte Aereo Pasajeros 2018 | F17: Ministerio de Transportes y Comuniciaciones - MTC | G17: 305620.6 | H17: 307842.4 | I17: 289166.9 | J17: 289166.9 | L17: 390000 | M17: 260529.1 | N17: Rojo
A18: EJE 2: INFRAESTRUCTURA LOGÍSTICA, DE TRANSPORTE Y DE COMUNICACIONES | B18: AGE.10.3 | C18: Toneladas en vuelos nacionales | D18: Nacional | E18: Ministerio de Transportes y Comuniciaciones - MTC: Transporte Aereo Pasajeros 2018 | F18: Ministerio de Transportes y Comuniciaciones - MTC | G18: 32336.5 | H18: 31573.2 | I18: 28477.2 | J18: 30256 | L18: 39451 | M18: 25525.1 | N18: Rojo

Sheet Ind_3d
A6: OBJETIVO | B6: Código | C6: Indicador | D6: Subindicador | E6: Unidad | F6: Fuente web | G6: 2014 | H6: 2015 | I6: 2016 | J6: 2017 | K6: 2018 | L6: Meta 2021 | M6: Proyeccion | N6: Semáforo
A7: EJE 3: POLÍTICA FISCAL | B7: AGE.15.1 | C7: Elevar la presión tributaria como % del PIB | D7: Nacional | E7: INEI: Compendio Estadístico Perú | F7: Instituto Nacional de Estadística e Informática (INEI) | G7: 16.7 | H7: 15 | I7: 13.8 | J7: 13.3 | L7: 18 | M7: 8.4 | N7: Ambar
A8: EJE 3: POLÍTICA FISCAL | B8: AGE.15.3 | C8: Elevar la recaudación del impuesto a la renta en empresas y personas naturales y selectivo al consumo (%PBI) | D8: ISC | E8: INEI: Compendio Estadístico Perú | F8: Instituto Nacional de Estadística e Informática (INEI) | G8: 0.9 | H8: 0.9 | I8: 0.9 | J8: 0.9 | K8: 1.3 | L8: 1.3 | M8: 0.9 | N8: Rojo
A9: EJE 3: POLÍTICA FISCAL | B9: AGE.15.3 | C9: Elevar la recaudación del impuesto a la renta en empresas y personas naturales y selectivo al consumo (%PBI) | D9: Persona jurídica | E9: INEI: Compendio Estadístico Perú | F9: Instituto Nacional de Estadística e Informática (INEI) | G9: 4.4 | H9: 3.4 | I9: 3.4 | J9: 3 | L9: 5 | M9: 1.2 | N9: Ambar
A10: EJE 3: POLÍTICA FISCAL | B10: AGE.15.3 | C10: Elevar la recaudación del impuesto a la renta en empresas y personas naturales y selectivo al consumo (%PBI) | D10: Persona Natural | E10: INEI: Compendio Estadístico Perú | F10: Instituto Nacional de Estadística e Informática (INEI) | G10: 1.9 | H10: 1.8 | I10: 1.8 | J10: 1.7 | L10: 2.1 | M10: 1.5 | N10: Rojo
A11: EJE 3: POLÍTICA FISCAL | B11: AGE.15.3 | C11: Elevar la recaudación del impuesto a la renta en empresas y personas naturales y selectivo al consumo (%PBI) | D11: Regularización | E11: INEI: Compendio Estadístico Perú | F11: Instituto Nacional de Estadística e Informática (INEI) | G11: 0.7 | H11: 0.6 | I11: 0.6 | J11: 0.7 | L11: 0.7 | M11: 0.7 | N11: Verde
A12: EJE 3: POLÍTICA FISCAL | B12: AGE.15.3 | C12: Elevar la recaudación del impuesto a la renta en empresas y personas naturales y selectivo al consumo (%PBI) | D12: Total | E12: INEI: Compendio Estadístico Perú | F12: Instituto Nacional de Estadística e Informática (INEI) | G12: 7 | H12: 5.8 | I12: 5.7 | J12: 5.7 | L12: 9 | M12: 3.8 | N12: Ambar
A13: EJE 3: POLÍTICA FISCAL | B13: AGE.15.2 | C13: Elevar la recaudación tributaria en materia de IGV. (%PBI) | D13: Impuesto a la Renta Nacional | E13: INEI: Compendio Estadístico Perú | F13: Instituto Nacional de Estadística e Informática (INEI) | G13: 8.8 | H13: 8.6 | I13: 8.1 | J13: 7.9 | L13: 9 | M13: 6.6 | N13: Rojo
A14: EJE 3: POLÍTICA FISCAL | B14: AGE.16.1 | C14: Elevar las contribuciones sociales (%PBI) | D14: Essalud | E14: INEI: Compendio Estadístico Perú | F14: Instituto Nacional de Estadística e Informática (INEI) | G14: 3 | H14: 3 | I14: 2.4 | J14: 2.3 | L14: 2 | M14: 1.2 | N14: Rojo
A15: EJE 3: POLÍTICA FISCAL | B15: AGE.16.1 | C15: Elevar las contribuciones sociales (%PBI) | D15: ONP | E15: INEI: Compendio Estadístico Perú | F15: Instituto Nacional de Estadística e Informática (INEI) | G15: 2.1 | H15: 1.2 | I15: 2.1 | J15: 2 | L15: 0.8 | M15: 2.2 | N15: Verde
A16: EJE 3: POLÍTICA FISCAL | B16: AGE.16.2 | C16: Elevar los ingresos no tributarios (%PBI) | D16: Total | E16: INEI: Compendio Estadístico Perú | F16: Instituto Nacional de Estadística e Informática (INEI) | G16: 0.44 | H16: 0.3 | I16: 0.26 | J16: 0.3 | L16: 0.25 | M16: 0.1 | N16: Ambar
A17: EJE 3: POLÍTICA FISCAL | B17: AGE.14.1 | C17: Gasto Público Corriente no financiero ni previsional Total y Per capita | D17: G. Corriente sin Prev. ni Deuda | E17: Ministerio de Economía y Finanzas (MEF)- Seguimiento de la Ejecución Presupuestal (Consulta amigable) | F17: Portal de Transparencia Económica | G17: 74620.3 | H17: 81377 | I17: 85467.7 | J17: 96280.4 | K17: 100362 | M17: 120814.9 | N17: ¡Faltan datos!
A18: EJE 3: POLÍTICA FISCAL | B18: AGE.14.1 | C18: Gasto Público Corriente no financiero ni previsional Total y Per capita | D18: G.Proy. per Cápita | E18: Ministerio de Economía y Finanzas (MEF)- Seguimiento de la Ejecución Presupuestal (Consulta amigable) | F18: Portal de Transparencia Económica | G18: 989.5 | H18: 940.4 | I18: 819.1 | J18: 848 | K18: 965.5 | M18: 842.3 | N18: ¡Faltan datos!
A19: EJE 3: POLÍTICA FISCAL | B19: AGE.14.1 | C19: Gasto Público Corriente no financiero ni previsional Total y Per capita | D19: GCsPD per Cápita | E19: Ministerio de Economía y Finanzas (MEF)- Seguimiento de la Ejecución Presupuestal (Consulta amigable) | F19: Portal de Transparencia Económica | G19: 2343.7 | H19: 2509.8 | I19: 2590.5 | J19: 2875.9 | K19: 2997.8 | M19: 3500.7 | N19: ¡Faltan datos!
A20: EJE 3: POLÍTICA FISCAL | B20: AGE.14.1 | C20: Gasto Público Corriente no financiero ni previsional Total y Per capita | D20: Pago de Deuda | E20: Ministerio de Economía y Finanzas (MEF)- Seguimiento de la Ejecución Presupuestal (Consulta amigable) | F20: Portal de Transparencia Económica | G20: 9365.5 | H20: 10109.4 | I20: 10841.3 | J20: 10841.3 | K20: 12404.9 | M20: 14117.8 | N20: ¡Faltan datos!
A21: EJE 3: POLÍTICA FISCAL | B21: AGE.14.1 | C21: Gasto Público Corriente no financiero ni previsional Total y Per capita | D21: Total Gasto Actividades | E21: Ministerio de Economía y Finanzas (MEF)- Seguimiento de la Ejecución Presupuestal (Consulta amigable) | F21: Portal de Transparencia Económica | G21: 97254.7 | H21: 104713.7 | I21: 109722.5 | J21: 109722.5 | K21: 127814 | M21: 142909.2 | N21: ¡Faltan datos!
A22: EJE 3: POLÍTICA FISCAL | B22: AGE.14.1 | C22: Gasto Público Corriente no financiero ni previsional Total y Per capita | D22: Total Previsional | E22: Ministerio de Economía y Finanzas (MEF)- Seguimiento de la Ejecución Presupuestal (Consulta amigable) | F22: Portal de Transparencia Económica | G22: 13268.9 | H22: 13227.3 | I22: 13413.5 | J22: 13413.5 | K22: 14468.4 | M22: 14850.9 | N22: ¡Faltan datos!
A23: EJE 3: POLÍTICA FISCAL | B23: AGE.12.1 | C23: Gasto Social referido a las funciones de Trabajo, Saneamiento, Vivienda y Desarrollo urbano, Salud, Cultura y deporte, Educación, Protección social y Pensiones (Millones de soles) Devengado SIAF | D23: Cultura y Dep | E23: Ministerio de Economía y Finanzas - MEF / SIAF Consulta Amigable Enero 2019 | F23: Ministerio de Economía y Finanzas (MEF) | G23: 829.7 | H23: 792 | I23: 1392.2 | J23: 1392.2 | K23: 3956 | M23: 5098.8 | N23: ¡Faltan datos!
A24: EJE 3: POLÍTICA FISCAL | B24: AGE.12.1 | C24: Gasto Social referido a las funciones de Trabajo, Saneamiento, Vivienda y Desarrollo urbano, Salud, Cultura y deporte, Educación, Protección social y Pensiones (Millones de soles) Devengado SIAF | D24: Educación | E24: Ministerio de Economía y Finanzas - MEF / SIAF Consulta Amigable Enero 2019 | F24: Ministerio de Economía y Finanzas (MEF) | G24: 16109.4 | H24: 18387.7 | I24: 19975.5 | J24: 19975.5 | K24: 27306 | M24: 32341.3 | N24: ¡Faltan datos!
A25: EJE 3: POLÍTICA FISCAL | B25: AGE.12.1 | C25: Gasto Social referido a las funciones de Trabajo, Saneamiento, Vivienda y Desarrollo urbano, Salud, Cultura y deporte, Educación, Protección social y Pensiones (Millones de soles) Devengado SIAF | D25: Pensiones | E25: Ministerio de Economía y Finanzas - MEF / SIAF Consulta Amigable Enero 2019 | F25: Ministerio de Economía y Finanzas (MEF) | G25: 13269 | H25: 13227.3 | I25: 13413.5 | J25: 13413.5 | K25: 14469 | M25: 14851.6 | N25: ¡Faltan datos!
A26: EJE 3: POLÍTICA FISCAL | B26: AGE.12.1 | C26: Gasto Social referido a las funciones de Trabajo, Saneamiento, Vivienda y Desarrollo urbano, Salud, Cultura y deporte, Educación, Protección social y Pensiones (Millones de soles) Devengado SIAF | D26: Presupuesto | E26: Ministerio de Economía y Finanzas - MEF / SIAF Consulta Amigable Enero 2019 | F26: Ministerio de Economía y Finanzas (MEF) | G26: 50131.7 | H26: 53982.5 | I26: 55816.7 | J26: 55816.7 | K26: 79002 | M26: 88737.3 | N26: ¡Faltan datos!
A27: EJE 3: POLÍTICA FISCAL | B27: AGE.12.1 | C27: Gasto Social referido a las funciones de Trabajo, Saneamiento, Vivienda y Desarrollo urbano, Salud, Cultura y deporte, Educación, Protección social y Pensiones (Millones de soles) Devengado SIAF | D27: Prot. Social | E27: Ministerio de Economía y Finanzas - MEF / SIAF Consulta Amigable Enero 2019 | F27: Ministerio de Economía y Finanzas (MEF) | G27: 5563.8 | H27: 5119.6 | I27: 5121.2 | J27: 5121.2 | K27: 6041 | M27: 5871.4 | N27: ¡Faltan datos!
A28: EJE 3: POLÍTICA FISCAL | B28: AGE.12.1 | C28: Gasto Social referido a las funciones de Trabajo, Saneamiento, Vivienda y Desarrollo urbano, Salud, Cultura y deporte, Educación, Protección social y Pensiones (Millones de soles) Devengado SIAF | D28: Salud | E28: Ministerio de Economía y Finanzas - MEF / SIAF Consulta Amigable Enero 2019 | F28: Ministerio de Economía y Finanzas (MEF) | G28: 11624.5 | H28: 12711.3 | I28: 13419 | J28: 13419 | K28: 18067 | M28: 20644.5 | N28: ¡Faltan datos!
A29: EJE 3: POLÍTICA FISCAL | B29: AGE.12.1 | C29: Gasto Social referido a las funciones de Trabajo, Saneamiento, Vivienda y Desarrollo urbano, Salud, Cultura y deporte, Educación, Protección social y Pensiones (Millones de soles) Devengado SIAF | D29: Saneamiento | E29: Ministerio de Economía y Finanzas - MEF / SIAF Consulta Amigable Enero 2019 | F29: Ministerio de Economía y Finanzas (MEF) | G29: 964.3 | H29: 782.5 | I29: 538.5 | J29: 538.5 | K29: 5386 | M29: 5941.7 | N29: ¡Faltan datos!
A30: EJE 3: POLÍTICA FISCAL | B30: AGE.12.1 | C30: Gasto Social referido a las funciones de Trabajo, Saneamiento, Vivienda y Desarrollo urbano, Salud, Cultura y deporte, Educación, Protección social y Pensiones (Millones de soles) Devengado SIAF | D30: Trabajo | E30: Ministerio de Economía y Finanzas - MEF / SIAF Consulta Amigable Enero 2019 | F30: Ministerio de Economía y Finanzas (MEF) | G30: 373.2 | H30: 538.6 | I30: 356.2 | J30: 356.2 | K30: 499 | M30: 459.2 | N30: ¡Faltan datos!
A31: EJE 3: POLÍTICA FISCAL | B31: AGE.12.1 | C31: Gasto Social referido a las funciones de Trabajo, Saneamiento, Vivienda y Desarrollo urbano, Salud, Cultura y deporte, Educación, Protección social y Pensiones (Millones de soles) Devengado SIAF | D31: Vivienda y DU | E31: Ministerio de Economía y Finanzas - MEF / SIAF Consulta Amigable Enero 2019 | F31: Ministerio de Economía y Finanzas (MEF) | G31: 1397.8 | H31: 2423.5 | I31: 1600.6 | J31: 1600.6 | K31: 3278 | M31: 3528.8 | N31: ¡Faltan datos!
A32: EJE 3: POLÍTICA FISCAL | B32: AGE.13.2 | C32: Incremento del Gasto de Inversión para cierre de brechas según prioridades con respecto al año base 2015. | D32: Total Nacional | E32: Ministerio de Economía y Finanzas (MEF)- Seguimiento de la Ejecución Presupuestal (Consulta amigable) | F32: Portal de Transparencia Económica | N32: ¡Faltan datos!
A33: EJE 3: POLÍTICA FISCAL | B33: AGE.13.1 | C33: Monto ejecutado en proyectos de inversión. (Devengado) | D33: Total Nacional | E33: Ministerio de Economía y Finanzas (MEF)- Seguimiento de la Ejecución Presupuestal (Consulta amigable) | F33: Portal de Transparencia Económica | N33: ¡Faltan datos!
A34: EJE 3: POLÍTICA FISCAL | B34: AGE.12.2 | C34: Monto ejecutado en programas presupuestales vinculados a servicios universales en salud y educación. PPE: PAN, SMN, Prevención y Control de Cáncer TBC -VIH SIDA, PELA Básica Regular(soles, Devengado Anual) | D34: Cáncer | E34: Ministerio de Economía y Finanzas - MEF / SIAF Consulta Amigable Enero 2019 | F34: Ministerio de Economía y Finanzas (MEF) | G34: 407 | H34: 577 | I34: 568 | J34: 568 | K34: 833.2 | M34: 1012.3 | N34: ¡Faltan datos!
A35: EJE 3: POLÍTICA FISCAL | B35: AGE.12.2 | C35: Monto ejecutado en programas presupuestales vinculados a servicios universales en salud y educación. PPE: PAN, SMN, Prevención y Control de Cáncer TBC -VIH SIDA, PELA Básica Regular(soles, Devengado Anual) | D35: Cáncer | E35: Ministerio de Economía y Finanzas (MEF)- Seguimiento de la Ejecución Presupuestal (Consulta amigable) | F35: Portal de Transparencia Económica | N35: ¡Faltan datos!
A36: EJE 3: POLÍTICA FISCAL | B36: AGE.12.2 | C36: Monto ejecutado en programas presupuestales vinculados a servicios universales en salud y educación. PPE: PAN, SMN, Prevención y Control de Cáncer TBC -VIH SIDA, PELA Básica Regular(soles, Devengado Anual) | D36: Electrificación Rural (046) | E36: Ministerio de Economía y Finanzas - MEF / SIAF Consulta Amigable Enero 2019 | F36: Ministerio de Economía y Finanzas (MEF) | G36: 85 | H36: 147 | I36: 15 | J36: 15 | K36: 509.6 | M36: 512.9 | N36: ¡Faltan datos!
A37: EJE 3: POLÍTICA FISCAL | B37: AGE.12.2 | C37: Monto ejecutado en programas presupuestales vinculados a servicios universales en salud y educación. PPE: PAN, SMN, Prevención y Control de Cáncer TBC -VIH SIDA, PELA Básica Regular(soles, Devengado Anual) | D37: Inclusión | E37: Ministerio de Economía y Finanzas - MEF / SIAF Consulta Amigable Enero 2019 | F37: Ministerio de Economía y Finanzas (MEF) | G37: 124 | H37: 123 | I37: 146 | J37: 146 | K37: 172.7 | M37: 202.5 | N37: ¡Faltan datos!
A38: EJE 3: POLÍTICA FISCAL | B38: AGE.12.2 | C38: Monto ejecutado en programas presupuestales vinculados a servicios universales en salud y educación. PPE: PAN, SMN, Prevención y Control de Cáncer TBC -VIH SIDA, PELA Básica Regular(soles, Devengado Anual) | D38: PAN | E38: Ministerio de Economía y Finanzas - MEF / SIAF Consulta Amigable Enero 2019 | F38: Ministerio de Economía y Finanzas (MEF) | G38: 1693 | H38: 1949 | I38: 1929 | J38: 1929 | K38: 2496.7 | M38: 2793 | N38: ¡Faltan datos!
A39: EJE 3: POLÍTICA FISCAL | B39: AGE.12.2 | C39: Monto ejecutado en programas presupuestales vinculados a servicios universales en salud y educación. PPE: PAN, SMN, Prevención y Control de Cáncer TBC -VIH SIDA, PELA Básica Regular(soles, Devengado Anual) | D39: PELA B.Regular | E39: Ministerio de Economía y Finanzas - MEF / SIAF Consulta Amigable Enero 2019 | F39: Ministerio de Economía y Finanzas (MEF) | G39: 9643 | H39: 11585 | I39: 12902 | J39: 12902 | K39: 17478.1 | M39: 21395.6 | N39: ¡Faltan datos!
A40: EJE 3: POLÍTICA FISCAL | B40: AGE.12.2 | C40: Monto ejecutado en programas presupuestales vinculados a servicios universales en salud y educación. PPE: PAN, SMN, Prevención y Control de Cáncer TBC -VIH SIDA, PELA Básica Regular(soles, Devengado Anual) | D40: Saneamiento Rural (083) | E40: Ministerio de Economía y Finanzas - MEF / SIAF Consulta Amigable Enero 2019 | F40: Ministerio de Economía y Finanzas (MEF) | G40: 113 | H40: 361 | I40: 247 | J40: 247 | K40: 2894.7 | M40: 3497.2 | N40: ¡Faltan datos!
A41: EJE 3: POLÍTICA FISCAL | B41: AGE.12.2 | C41: Monto ejecutado en programas presupuestales vinculados a servicios universales en salud y educación. PPE: PAN, SMN, Prevención y Control de Cáncer TBC -VIH SIDA, PELA Básica Regular(soles, Devengado Anual) | D41: Saneamiento Urbano (082) | E41: Ministerio de Economía y Finanzas - MEF / SIAF Consulta Amigable Enero 2019 | F41: Ministerio de Economía y Finanzas (MEF) | G41: 750 | H41: 343 | I41: 194 | J41: 194 | K41: 2072.2 | M41: 1958.3 | N41: ¡Faltan datos!
A42: EJE 3: POLÍTICA FISCAL | B42: AGE.12.2 | C42: Monto ejecutado en programas presupuestales vinculados a servicios universales en salud y educación. PPE: PAN, SMN, Prevención y Control de Cáncer TBC -VIH SIDA, PELA Básica Regular(soles, Devengado Anual) | D42: SMN | E42: Ministerio de Economía y Finanzas - MEF / SIAF Consulta Amigable Enero 2019 | F42: Ministerio de Economía y Finanzas (MEF) | G42: 1365 | H42: 1749 | I42: 1886 | J42: 1886 | K42: 2152.2 | M42: 2663.3 | N42: ¡Faltan datos!
A43: EJE 3: POLÍTICA FISCAL | B43: AGE.12.2 | C43: Monto ejecutado en programas presupuestales vinculados a servicios universales en salud y educación. PPE: PAN, SMN, Prevención y Control de Cáncer TBC -VIH SIDA, PELA Básica Regular(soles, Devengado Anual) | D43: TBC-VIH Sida | E43: Ministerio de Economía y Finanzas - MEF / SIAF Consulta Amigable Enero 2019 | F43: Ministerio de Economía y Finanzas (MEF) | G43: 522 | H43: 590 | I43: 595 | J43: 595 | K43: 742.7 | M43: 832.1 | N43: ¡Faltan datos!
